﻿Directorate,Service,Division,Responsible Unit,Expense Type,Payment Date,Trans No,Net Amount,Supplier Name
Place,General Fund/Council Fund,Homelessness,Hmlss Fams-Management,Services - Professional Fees - Financial Services Fees,05/07/2019,5257664,"2,573.00",National Practitioner Support Service Ltd
Place,General Fund/Council Fund,Homelessness,Hmlss Fams -Hsing Managmnt & Proc Team,Stationery,31/07/2019,5250923,"2,980.00",M&L Signs Ltd
Place,General Fund/Council Fund,Homelessness,Hmlss Fams-Priv Lic Accom,Third Party Payments - Temporary Accommodation Rents - One Room,01/07/2019,5246712,"4,084.25",Meadway Properties LTD
Place,General Fund/Council Fund,Homelessness,Hmlss Fams-Priv Lic Accom,Third Party Payments - Temporary Accommodation Rents - One Room,03/07/2019,5257113,"1,350.00",St James Asset Management Limited
Place,General Fund/Council Fund,Homelessness,Hmlss Fams-Priv Lic Accom,Third Party Payments - Temporary Accommodation Rents - One Room,03/07/2019,5257114,"5,049.00",Ace Property Finder
Place,General Fund/Council Fund,Homelessness,Hmlss Fams-Priv Lic Accom,Third Party Payments - Temporary Accommodation Rents - One Room,03/07/2019,5257115,"7,124.70",Altwood Properties
Place,General Fund/Council Fund,Homelessness,Hmlss Fams-Priv Lic Accom,Third Party Payments - Temporary Accommodation Rents - One Room,03/07/2019,5257116,"100,065.42",Ample Properties & Finance
Place,General Fund/Council Fund,Homelessness,Hmlss Fams-Priv Lic Accom,Third Party Payments - Temporary Accommodation Rents - One Room,03/07/2019,5257117,"1,980.00",Bercleys Properties LTD
Place,General Fund/Council Fund,Homelessness,Hmlss Fams-Priv Lic Accom,Third Party Payments - Temporary Accommodation Rents - One Room,03/07/2019,5257118,"82,109.79",Buildvantage
Place,General Fund/Council Fund,Homelessness,Hmlss Fams-Priv Lic Accom,Third Party Payments - Temporary Accommodation Rents - One Room,03/07/2019,5257119,"72,183.70",CITY HOUSING PARTNERSHIP LTD
Place,General Fund/Council Fund,Homelessness,Hmlss Fams-Priv Lic Accom,Third Party Payments - Temporary Accommodation Rents - One Room,03/07/2019,5257121,"25,629.00",Housing Britain
Place,General Fund/Council Fund,Homelessness,Hmlss Fams-Priv Lic Accom,Third Party Payments - Temporary Accommodation Rents - One Room,03/07/2019,5257145,"1,425.00",Maritime Properties
Place,General Fund/Council Fund,Homelessness,Hmlss Fams-Priv Lic Accom,Third Party Payments - Temporary Accommodation Rents - One Room,03/07/2019,5257146,"124,307.24",Matkap
Place,General Fund/Council Fund,Homelessness,Hmlss Fams-Priv Lic Accom,Third Party Payments - Temporary Accommodation Rents - One Room,03/07/2019,5257147,"3,952.50",Meadway Properties LTD
Place,General Fund/Council Fund,Homelessness,Hmlss Fams-Priv Lic Accom,Third Party Payments - Temporary Accommodation Rents - One Room,03/07/2019,5257148,"8,779.00",Pynnacle Assets
Place,General Fund/Council Fund,Homelessness,Hmlss Fams-Priv Lic Accom,Third Party Payments - Temporary Accommodation Rents - One Room,03/07/2019,5257149,"4,479.00",Pearce Properties Investments Limited
Place,General Fund/Council Fund,Homelessness,Hmlss Fams-Priv Lic Accom,Third Party Payments - Temporary Accommodation Rents - One Room,03/07/2019,5257151,"2,850.00",Apolonia Property Services (Exodus Housing)
Place,General Fund/Council Fund,Homelessness,Hmlss Fams-Priv Lic Accom,Third Party Payments - Temporary Accommodation Rents - One Room,03/07/2019,5257152,"9,616.20",Keymove Estates Limited
Place,General Fund/Council Fund,Homelessness,Hmlss Fams-Priv Lic Accom,Third Party Payments - Temporary Accommodation Rents - One Room,29/07/2019,5258375,"17,284.50",Buxton Homes Poplar Limited
Place,General Fund/Council Fund,Homelessness,Hmlss Fams-Priv Lic Accom,Third Party Payments - Temporary Accommodation Rents - One Room,26/07/2019,5266510,"307,632.48",Poplar HARCA LTD
Place,General Fund/Council Fund,Homelessness,Hmlss Fams-Priv Lic Accom,Third Party Payments - Temporary Accommodation Rents - One Room,18/07/2019,5266516,"1,267.42",Matkap
Place,General Fund/Council Fund,Homelessness,Hmlss Fams-Priv Lic Accom,Third Party Payments - Temporary Accommodation Rents - One Room,18/07/2019,5266517,734.23,Matkap
Place,General Fund/Council Fund,Homelessness,Hmlss Fams-Priv Lic Accom,Third Party Payments - Temporary Accommodation Rents - One Room,18/07/2019,5266519,"3,271.38",Matkap
Place,General Fund/Council Fund,Homelessness,Hmlss Fams-Priv Lic Accom,Third Party Payments - Temporary Accommodation Rents - One Room,18/07/2019,5266532,"1,802.53",Theori Housing Management Services LTD
Place,General Fund/Council Fund,Homelessness,Hmlss Fams-Priv Lic Accom,Third Party Payments - Temporary Accommodation Rents - One Room,19/07/2019,5266694,375.53,Easymove EA Ltd
Place,General Fund/Council Fund,Homelessness,Hmlss Fams-Priv Lic Accom,Third Party Payments - Temporary Accommodation Rents - One Room,19/07/2019,5266697,669.89,Easymove EA Ltd
Place,General Fund/Council Fund,Homelessness,Hmlss Fams-Priv Lic Accom,Third Party Payments - Temporary Accommodation Rents - One Room,19/07/2019,5266698,283.36,Easymove EA Ltd
Place,General Fund/Council Fund,Homelessness,Hmlss Fams-Priv Lic Accom,Third Party Payments - Temporary Accommodation Rents - One Room,22/07/2019,5266940,360.51,D & G lettings Ltd
Place,General Fund/Council Fund,Homelessness,Hmlss Fams-Priv Lic Accom,Third Party Payments - Temporary Accommodation Rents - One Room,26/07/2019,5270271,"10,000.00",LETTINGS INTERNATIONAL
Place,General Fund/Council Fund,Homelessness,Hmlss Fams-Priv Lic Accom,Third Party Payments - Temporary Accommodation Rents - One Room,31/07/2019,5271424,541.68,Theori Housing Management Services LTD
Place,General Fund/Council Fund,Homelessness,Hmlss Fams-Priv Lic Accom,Third Party Payments - Temporary Accommodation Rents - One Room,31/07/2019,5271425,"1,625.40",Fairview Lets
Place,General Fund/Council Fund,Homelessness,Hmlss Fams-Priv Lic Accom,Third Party Payments - Temporary Accommodation Rents - One Room,31/07/2019,5271471,"1,185.95",LETTINGS INTERNATIONAL
Place,General Fund/Council Fund,Homelessness,Hmlss Fams-Priv Lic Accom,Third Party Payments - Temporary Accommodation Rents - One Room,31/07/2019,5271499,"89,690.50",Fairview Lets
Place,General Fund/Council Fund,Homelessness,Hmlss Fams-Priv Lic Accom,Third Party Payments - Temporary Accommodation Rents - One Room,31/07/2019,5271693,415.17,Easymove EA Ltd
Place,General Fund/Council Fund,Homelessness,Hmlss Fams-Priv Lic Accom,Third Party Payments - Service Charges for Private Licenced Accommodation (PLA),29/07/2019,5271171,517.10,EDF  Energy
Place,General Fund/Council Fund,Homelessness,Hmlss Fams-Dilapidations,Third Party Payments - Temporary Accommodation Rents - One Room,26/07/2019,5270290,380.00,TERRA FIRMA PROPERTY SERVICES UK
Place,General Fund/Council Fund,Homelessness,Hmlss Fams-Dilapidations,Third Party Payments - Temporary Accommodation Rents - Three Rooms,26/07/2019,5270300,275.00,MBRC Investments LTD t/a 1st Capital Homes
Place,General Fund/Council Fund,Homelessness,Hmlss Fams-Dilapidations,Third Party Payments - Temporary Accommodation Rents - Two Rooms,26/07/2019,5270289,560.00,TERRA FIRMA PROPERTY SERVICES UK
Place,General Fund/Council Fund,Homelessness,Hmlss Fams-DCLG Grt Funded Exp,Third Party Payments - Voluntary Associations,03/07/2019,5242811,"48,750.00",Providence Row Charity
Place,General Fund/Council Fund,Homelessness,Hmlss Fams-Casch Incent(Fams),Third Party Payments - Rent Incentives,22/07/2019,5266937,"2,500.00",Docklands Estates
Place,General Fund/Council Fund,Homelessness,Hmlss Fams-NST Properties,Third Party Payments - Temporary Accommodation Rents - One Room,18/07/2019,5258380,"9,675.77",Eastend Homes LTD
Place,General Fund/Council Fund,Homelessness,Hmlss Fams-NST Properties,Third Party Payments - Temporary Accommodation Rents - One Room,18/07/2019,5258385,"2,297.62",Southern Housing Group
Place,No Service Specified,No Division Specified,RP Grant Scheme 1-4-1 receipts,Grants to 3rd Parties - Housing Associations,08/07/2019,5256550,"125,557.40",SWAN HOUSING ASSOCIATION
Place,No Service Specified,No Division Specified,RP Grant Scheme 1-4-1 receipts,Grants to 3rd Parties - Housing Associations,05/07/2019,5256551,741.66,George Green Almshouses
Place,No Service Specified,No Division Specified,Community Hubs/Buildings - HRA,Other External Fees - Architects Fees,01/07/2019,5250956,"5,200.00",Bloom Procurement Services Limited
Place,No Service Specified,No Division Specified,Community Hubs/Buildings - HRA,Other External Fees - Consultants Fees,26/07/2019,5266969,"7,250.00",CB Architects Limited
Place,No Service Specified,No Division Specified,Community Hubs/Buildings - HRA,Other External Fees - Other External Fees,31/07/2019,5262943,"2,915.00",Falcon Foodservice Equipment
Place,No Service Specified,No Division Specified,Community Hubs/Buildings - HRA,Other External Fees - Other External Fees,18/07/2019,5266466,"5,200.00",Glamis residents Association
Place,No Service Specified,No Division Specified,Community Hubs/Buildings - HRA,Other External Fees - Other External Fees,26/07/2019,5266467,"1,300.00",Glamis residents Association
Place,No Service Specified,No Division Specified,Community Hubs/Buildings - HRA,Other External Fees - Other External Fees,26/07/2019,5271129,"1,880.00",Thames Water Utilities LTD
Place,No Service Specified,No Division Specified,Community Hubs/Buildings - HRA,Building Works - Main Works,08/07/2019,5242404,"57,095.00",T & B Contractors
Place,No Service Specified,No Division Specified,Community Hubs/Buildings - HRA,Building Works - Main Works,24/07/2019,5255733,849.75,Arcus Consulting LLP
Place,No Service Specified,No Division Specified,Home Repairs - Minor Hazards,Grants to 3rd Parties - Renovation Grants,18/07/2019,5266395,"5,905.00",Evolve AMs UK Ltd
Place,No Service Specified,No Division Specified,Dis Facility Grnt - Discretion,Building Works - Main Works,18/07/2019,5235248,"22,462.00",Controlcare Ltd
Place,No Service Specified,No Division Specified,DFG (Post Jul 03)-Mandatory,Grants to 3rd Parties - Renovation Grants,19/07/2019,5266393,"14,800.00",Evolve AMs UK Ltd
Place,No Service Specified,No Division Specified,DFG (Post Jul 03)-Mandatory,Grants to 3rd Parties - Renovation Grants,19/07/2019,5266394,"7,980.00",Evolve AMs UK Ltd
Place,No Service Specified,No Division Specified,DFG (Post Jul 03)-Mandatory,Grants to 3rd Parties - Renovation Grants,18/07/2019,5266410,788.86,SIMRIC (UK) LTD
Place,No Service Specified,No Division Specified,DFG (Post Jul 03)-Man L/Lord,Grants to 3rd Parties - Renovation Grants,01/07/2019,5256027,"16,371.20",Circle Housing Old Ford
Place,No Service Specified,No Division Specified,DFG (Post Jul 03)-Man L/Lord,Grants to 3rd Parties - Renovation Grants,01/07/2019,5256028,"2,224.30",Circle Housing Old Ford
Place,No Service Specified,No Division Specified,DFG (Post Jul 03)-Man L/Lord,Grants to 3rd Parties - Renovation Grants,18/07/2019,5266396,"4,605.90",Poplar HARCA LTD
Place,No Service Specified,No Division Specified,DFG (Post Jul 03)-Man L/Lord,Grants to 3rd Parties - Renovation Grants,18/07/2019,5266398,"1,707.00",Peabody Trust
Place,No Service Specified,No Division Specified,DFG (Post Jul 03)-Man L/Lord,Grants to 3rd Parties - Renovation Grants,18/07/2019,5266399,"4,330.75",Poplar HARCA LTD
Place,No Service Specified,No Division Specified,DFG (Post Jul 03)-Man L/Lord,Grants to 3rd Parties - Renovation Grants,18/07/2019,5266409,"4,991.00",SIMRIC (UK) LTD
Place,No Service Specified,No Division Specified,DFG (Post Jul 03)-Man L/Lord,Grants to 3rd Parties - Renovation Grants,18/07/2019,5266411,690.00,SIMRIC (UK) LTD
Place,No Service Specified,No Division Specified,DFG (Post Jul 03)-Man L/Lord,Grants to 3rd Parties - Renovation Grants,22/07/2019,5266934,"9,726.85",SIMRIC (UK) LTD
Place,No Service Specified,No Division Specified,DFG (Post Jul 03)-Man L/Lord,Grants to 3rd Parties - Renovation Grants,22/07/2019,5267151,"5,066.00",SIMRIC (UK) LTD
Place,No Service Specified,No Division Specified,DFG (Post Jul 03)-Man L/Lord,Grants to 3rd Parties - Renovation Grants,24/07/2019,5269663,"1,952.22",North London Fire & Security Systems Ltd
Place,No Service Specified,No Division Specified,DFG (Post Jul 03)-Man L/Lord,Grants to 3rd Parties - Renovation Grants,24/07/2019,5269664,"6,180.00",Avenue Property Construction
Place,No Service Specified,No Division Specified,DFG (Post Jul 03)-Man L/Lord,Grants to 3rd Parties - Renovation Grants,26/07/2019,5270278,"5,310.00",One Housing Group
Place,No Service Specified,No Division Specified,DFG (Post Jul 03)-Man L/Lord,Grants to 3rd Parties - Renovation Grants,26/07/2019,5270279,"5,675.00",One Housing Group
Place,No Service Specified,No Division Specified,DFG (Post Jul 03)-Man L/Lord,Grants to 3rd Parties - Renovation Grants,26/07/2019,5270280,"11,255.00",One Housing Group
Place,No Service Specified,No Division Specified,DFG (Post Jul 03)-Man L/Lord,Grants to 3rd Parties - Renovation Grants,26/07/2019,5270282,"7,694.00",One Housing Group
Place,No Service Specified,No Division Specified,DFG (Post Jul 03)-Man L/Lord,Grants to 3rd Parties - Renovation Grants,26/07/2019,5270283,"5,250.00",One Housing Group
Place,No Service Specified,No Division Specified,DFG (Post Jul 03)-Man L/Lord,Grants to 3rd Parties - Renovation Grants,26/07/2019,5270284,"3,530.00",One Housing Group
Place,No Service Specified,No Division Specified,DFG (Post Jul 03)-Man L/Lord,Grants to 3rd Parties - Renovation Grants,26/07/2019,5270287,"4,355.00",One Housing Group
Place,No Service Specified,No Division Specified,DFG (Post Jul 03)-Man L/Lord,Grants to 3rd Parties - Renovation Grants,31/07/2019,5271300,"4,101.12",Poplar HARCA LTD
Place,No Service Specified,No Division Specified,DFG (Post Jul 03)-Man L/Lord,Grants to 3rd Parties - Renovation Grants,31/07/2019,5271303,470.82,CARE & REPAIR SERVICES
Place,Planning Services,Economic Development,Employment & Skills,Contract Cleaning,26/07/2019,5256928,"1,762.74",Wetton Cleaning Services LTD
Place,Planning Services,Economic Development,Employment & Skills,Catering - Hospitality,24/07/2019,5265649,675.75,LIMONCELLO (CATERING & DELICATESSEN) LTD
Place,Corporate & Democratic Core,Corporate Management,Tackling Poverty,Computing - Purchase of Software,31/07/2019,5258498,345.87,Specialist Computer Centres PLC
Place,Planning Services,Economic Development,ITRES Team,Training Expenses - Staff Internal Training,16/07/2019,5246273,"2,500.00",The Knowledge Academy
Place,Corporate & Democratic Core,Corporate Management,Facilities Management,Agency Staff,18/07/2019,5238559,"1,826.50",Hays Specialist Recruitment Ltd
Place,Corporate & Democratic Core,Corporate Management,Facilities Management,Agency Staff,17/07/2019,5252424,"1,439.68",Hays Specialist Recruitment Ltd
Place,Corporate & Democratic Core,Corporate Management,Facilities Management,Agency Staff,17/07/2019,5252425,"1,799.60",Hays Specialist Recruitment Ltd
Place,Corporate & Democratic Core,Corporate Management,Facilities Management,Agency Staff,18/07/2019,5254230,"1,826.50",Hays Specialist Recruitment Ltd
Place,Corporate & Democratic Core,Corporate Management,Facilities Management,Agency Staff,17/07/2019,5254232,"1,799.60",Hays Specialist Recruitment Ltd
Place,Corporate & Democratic Core,Corporate Management,Facilities Management,Agency Staff,18/07/2019,5254235,365.30,Hays Specialist Recruitment Ltd
Place,Corporate & Democratic Core,Corporate Management,Facilities Management,Agency Staff,24/07/2019,5256223,"1,826.50",Hays Specialist Recruitment Ltd
Place,Corporate & Democratic Core,Corporate Management,Facilities Management,Agency Staff,26/07/2019,5256832,"1,826.50",Hays Specialist Recruitment Ltd
Place,Corporate & Democratic Core,Corporate Management,Facilities Management,Agency Staff,26/07/2019,5257877,"1,439.68",Hays Specialist Recruitment Ltd
Place,Corporate & Democratic Core,Corporate Management,Facilities Management,Training Expenses - Staff External Training (UK Based),26/07/2019,5271055,"3,800.00",Charnwood Energy Assessors
Place,Corporate & Democratic Core,Corporate Management,Facilities Management,Materials - Cleaning Materials,10/07/2019,5245084,251.94,The Maintenance Supply Co Ltd
Place,Corporate & Democratic Core,Corporate Management,Facilities Management,Uniforms & Clothing,10/07/2019,5252383,"3,425.53",Burlington Uniforms Ltd
Place,Corporate & Democratic Core,Corporate Management,Facilities Management,Services - Professional Fees - Consultants Fees,18/07/2019,5265392,975.00,Alcumus ISOQAR Ltd
Place,Corporate & Democratic Core,Corporate Management,Postal Services,Comms - Postages,17/07/2019,5265810,"5,000.00",Neopost Ltd
Place,Corporate & Democratic Core,Corporate Management,Postal Services,Comms - Courier,01/07/2019,5238528,"6,595.36",ROYAL MAIL
Place,Corporate & Democratic Core,Corporate Management,Postal Services,Comms - Courier,18/07/2019,5258832,"4,943.62",ROYAL MAIL
Place,Corporate & Democratic Core,Corporate Management,Postal Services,Comms - Courier,18/07/2019,5258833,"6,025.35",ROYAL MAIL
Place,Corporate & Democratic Core,Corporate Management,Postal Services,Comms - Courier,22/07/2019,5258834,"8,340.41",ROYAL MAIL
Place,Corporate & Democratic Core,Corporate Management,Postal Services,Comms - Courier,29/07/2019,5258835,"5,582.77",ROYAL MAIL
Place,Corporate & Democratic Core,Corporate Management,Facilities Management Income,Contract Cleaning,26/07/2019,5257966,352.22,Wetton Cleaning Services LTD
Place,Corporate & Democratic Core,Corporate Management,Facilities Management Income,Services - Professional Fees - Security Fees,03/07/2019,5252453,"2,194.07",Manpower Direct UK
Place,Corporate & Democratic Core,Corporate Management,Facilities Management Income,Computing - Internet,29/07/2019,5258884,371.75,Virgin Media Business
Place,Corporate & Democratic Core,Corporate Management,Montifiore Centre,Contract Cleaning,31/07/2019,5271082,"1,391.76",Wetton Cleaning Services LTD
Place,Corporate & Democratic Core,Corporate Management,Montifiore Centre,Services - Professional Fees - Security Fees,03/07/2019,5252439,720.00,Manpower Direct UK
Place,Corporate & Democratic Core,Corporate Management,Archiving,Services - Professional Fees - Financial Services Fees,31/07/2019,5270237,"2,370.50",Restore PLC
Place,Corporate & Democratic Core,Corporate Management,Archiving,Services - Professional Fees - Financial Services Fees,31/07/2019,5270238,"4,167.29",Restore PLC
Place,Corporate & Democratic Core,Corporate Management,Archiving,Services - Professional Fees - Financial Services Fees,31/07/2019,5270239,671.68,Restore PLC
Place,Corporate & Democratic Core,Corporate Management,Archiving,Services - Professional Fees - Financial Services Fees,31/07/2019,5270240,"1,490.10",Restore PLC
Place,Corporate & Democratic Core,Corporate Management,Archiving,Services - Professional Fees - Financial Services Fees,29/07/2019,5270241,352.71,Restore PLC
Place,Corporate & Democratic Core,Corporate Management,Water Coolers,Kitchen Supplies - Food and Beverages,19/07/2019,5255720,352.00,Cooleraid Ltd
Place,No Service Specified,No Division Specified,CLM Rents,Rent Charges,03/07/2019,5254314,"18,000.00",Eastend Homes LTD
Place,No Service Specified,No Division Specified,CLM Property Leases,Services - Professional Fees - Consultants Fees,29/07/2019,5256339,"60,000.00",JONES LANG LASALLE LTD
Place,No Service Specified,No Division Specified,CLM Energy,Electricity,22/07/2019,5267145,520.00,EDF Energy Customer Field Services
Place,No Service Specified,No Division Specified,CLM Energy,Gas,29/07/2019,5212151,"1,578.78",NPOWER
Place,No Service Specified,No Division Specified,CLM Energy,Gas,29/07/2019,5233963,334.51,NPOWER
Place,No Service Specified,No Division Specified,CLM Energy,Gas,29/07/2019,5242112,283.02,NPOWER
Place,No Service Specified,No Division Specified,CLM Energy,Gas,29/07/2019,5258589,256.63,NPOWER
Place,No Service Specified,No Division Specified,CLM Building Fabrics,Repairs and Maintenance - Responsive - Repair & Maintenance,08/07/2019,5244181,960.00,JC Coster (Metalworks) Ltd
Place,No Service Specified,No Division Specified,CLM Building Fabrics,Repairs and Maintenance - Responsive - Repair & Maintenance,16/07/2019,5249780,"26,360.00",JC Coster (Metalworks) Ltd
Place,No Service Specified,No Division Specified,CLM Contract Cleaning,Contract Cleaning,26/07/2019,5257963,"7,534.21",Wetton Cleaning Services LTD
Place,No Service Specified,No Division Specified,CLM Contract Cleaning,Contract Cleaning,26/07/2019,5257967,486.05,Wetton Cleaning Services LTD
Place,No Service Specified,No Division Specified,CLM Contract Cleaning,Contract Cleaning,26/07/2019,5267028,"-4,402.28",Wetton Cleaning Services LTD
Place,No Service Specified,No Division Specified,CLM Contract Cleaning,Contract Cleaning,31/07/2019,5271080,611.95,Wetton Cleaning Services LTD
Place,No Service Specified,No Division Specified,CLM Contract Cleaning,Contract Cleaning,31/07/2019,5271081,"100,891.84",Wetton Cleaning Services LTD
Place,No Service Specified,No Division Specified,CLM Insurance,Insurances - Premises,31/07/2019,5271001,903.80,Knight Frank LLP
Place,No Service Specified,No Division Specified,"CLM Reactive R&M 		",Repairs and Maintenance - Responsive - Buildings,10/07/2019,5246235,397.40,VMS Network Cabling Ltd
Place,No Service Specified,No Division Specified,"CLM Reactive R&M 		",Repairs and Maintenance - Responsive - Drainage & Sewers,01/07/2019,5220484,450.00,J&L Coster (Drainage) Ltd
Place,No Service Specified,No Division Specified,"CLM Reactive R&M 		",Repairs and Maintenance - Responsive - Electrical,10/07/2019,5256367,"1,500.00",Edmundson Electrical LTD
Place,No Service Specified,No Division Specified,"CLM Reactive R&M 		",Repairs and Maintenance - Responsive - Electrical,26/07/2019,5256368,428.00,Edmundson Electrical LTD
Place,No Service Specified,No Division Specified,"CLM Reactive R&M 		",Repairs and Maintenance - Responsive - Electrical,24/07/2019,5256369,"1,498.00",Edmundson Electrical LTD
Place,No Service Specified,No Division Specified,"CLM Reactive R&M 		",Repairs and Maintenance - Responsive - Electrical,05/07/2019,5256370,"1,926.00",Edmundson Electrical LTD
Place,No Service Specified,No Division Specified,"CLM Reactive R&M 		",Repairs and Maintenance - Responsive - Electrical,03/07/2019,5256391,360.75,Edmundson Electrical LTD
Place,No Service Specified,No Division Specified,"CLM Reactive R&M 		",Repairs and Maintenance - Responsive - Heating Systems,01/07/2019,5218233,296.00,Controlcare Ltd
Place,No Service Specified,No Division Specified,"CLM Reactive R&M 		",Repairs and Maintenance - Responsive - Heating Systems,01/07/2019,5218957,396.00,Controlcare Ltd
Place,No Service Specified,No Division Specified,"CLM Reactive R&M 		",Repairs and Maintenance - Responsive - Heating Systems,01/07/2019,5218958,296.00,Controlcare Ltd
Place,No Service Specified,No Division Specified,"CLM Reactive R&M 		",Repairs and Maintenance - Responsive - Heating Systems,01/07/2019,5219647,590.00,Controlcare Ltd
Place,No Service Specified,No Division Specified,"CLM Reactive R&M 		",Repairs and Maintenance - Responsive - Heating Systems,01/07/2019,5219648,891.00,Controlcare Ltd
Place,No Service Specified,No Division Specified,"CLM Reactive R&M 		",Repairs and Maintenance - Responsive - Heating Systems,01/07/2019,5219649,"1,086.00",Controlcare Ltd
Place,No Service Specified,No Division Specified,"CLM Reactive R&M 		",Repairs and Maintenance - Responsive - Heating Systems,01/07/2019,5219650,296.00,Controlcare Ltd
Place,No Service Specified,No Division Specified,"CLM Reactive R&M 		",Repairs and Maintenance - Responsive - Heating Systems,01/07/2019,5235247,296.00,Controlcare Ltd
Place,No Service Specified,No Division Specified,"CLM Reactive R&M 		",Repairs and Maintenance - Responsive - Mechanical,17/07/2019,5262908,"1,380.00",Eales Shutters Ltd
Place,No Service Specified,No Division Specified,"CLM Reactive R&M 		",Repairs and Maintenance - Responsive - Repair & Maintenance,10/07/2019,5246234,292.79,VMS Network Cabling Ltd
Place,No Service Specified,No Division Specified,"CLM Reactive R&M 		",Repairs and Maintenance - Responsive - Security,18/07/2019,5249985,"2,050.00",JC Coster (Metalworks) Ltd
Place,No Service Specified,No Division Specified,"CLM Reactive R&M 		",Repairs and Maintenance - Responsive - Security,17/07/2019,5258713,"4,675.00",surelock security systems ltd
Place,No Service Specified,No Division Specified,"CLM Reactive R&M 		",Repairs and Maintenance - Responsive - Security,24/07/2019,5267604,"4,235.00",surelock security systems ltd
Place,No Service Specified,No Division Specified,"CLM Reactive R&M 		",Services - Professional Fees - Consultants Fees,24/07/2019,5256841,600.00,The Technology Forge Limited
Place,No Service Specified,No Division Specified,"CLM Reactive R&M 		",Services - Professional Fees - Consultants Fees,26/07/2019,5258469,400.00,One Consulting Group
Place,No Service Specified,No Division Specified,"CLM Reactive R&M 		",Services - Professional Fees - Security Fees,03/07/2019,5252432,437.44,Manpower Direct UK
Place,No Service Specified,No Division Specified,"CLM Reactive R&M 		",Services - Professional Fees - Security Fees,03/07/2019,5252438,"2,025.00",Manpower Direct UK
Place,No Service Specified,No Division Specified,"CLM Reactive R&M 		",Services - Professional Fees - Security Fees,03/07/2019,5252450,"1,291.82",Manpower Direct UK
Place,No Service Specified,No Division Specified,"CLM Reactive R&M 		",Services - Professional Fees - Security Fees,31/07/2019,5266984,540.00,Manpower Direct UK
Place,No Service Specified,No Division Specified,"CLM Planned Maintenance 		",Repairs and Maintenance - Responsive - Repair & Maintenance,08/07/2019,5245877,"2,010.00",Systemair Fans & Spares (Menerga)
Place,No Service Specified,No Division Specified,"CLM Planned Maintenance 		",Repairs and Maintenance - Programmed - Mechanical,24/07/2019,5235245,"3,185.25",Controlcare Ltd
Place,No Service Specified,No Division Specified,"CLM Planned Maintenance 		",Repairs and Maintenance - Programmed - Mechanical,24/07/2019,5235246,"1,905.50",Controlcare Ltd
Place,No Service Specified,No Division Specified,"CLM Planned Maintenance 		",Repairs and Maintenance - Programmed - Security,10/07/2019,5242815,"1,035.00",Pinpoint Ltd
Place,No Service Specified,No Division Specified,"CLM Planned Maintenance 		",Repairs and Maintenance - Programmed - Security,22/07/2019,5255785,837.00,Pinpoint Ltd
Place,No Service Specified,No Division Specified,"CLM Planned Maintenance 		",Repairs and Maintenance - Programmed - Security,24/07/2019,5267605,"7,925.00",surelock security systems ltd
Place,No Service Specified,No Division Specified,"CLM Planned Maintenance 		",Grounds Maintenance - Contract - Highways,31/07/2019,5271004,"1,935.00",PTSG Access & Safety Ltd
Place,No Service Specified,No Division Specified,CLM Grounds Maintenance,Grounds Maintenance - Contract - Horticultural Maintenance,01/07/2019,5238299,"5,056.49",Aspire Community Works
Place,No Service Specified,No Division Specified,CLM Grounds Maintenance,Grounds Maintenance - Contract - Horticultural Maintenance,29/07/2019,5256294,"5,056.49",Aspire Community Works
Place,No Service Specified,No Division Specified,CLM Grounds Maintenance,Grounds Maintenance - Contract - Horticultural Maintenance,31/07/2019,5257769,"5,060.00",Aspire Community Works
Place,No Service Specified,No Division Specified,CLM Grounds Maintenance,Materials - Cleaning Materials,16/07/2019,5246182,323.35,The Maintenance Supply Co Ltd
Place,No Service Specified,No Division Specified,Pest Control (Surveys and Work),Environmental Health Supplies - Baits and Poisons,03/07/2019,5256288,"2,045.00",Nightshift Pest Control Limited
Place,No Service Specified,No Division Specified,Pest Control (Surveys and Work),Environmental Health Supplies - Baits and Poisons,26/07/2019,5256889,"2,045.00",Nightshift Pest Control Limited
Place,No Service Specified,No Division Specified,CLM Remedial Works,Repairs and Maintenance - Responsive - Electrical,10/07/2019,5256390,503.45,Edmundson Electrical LTD
Place,No Service Specified,No Division Specified,CLM Remedial Works,Repairs and Maintenance - Programmed - Electrical,08/07/2019,5256366,503.45,Edmundson Electrical LTD
Place,No Service Specified,No Division Specified,CLM Remedial Works,Repairs and Maintenance - Programmed - Electrical,24/07/2019,5256373,"2,235.00",Edmundson Electrical LTD
Place,No Service Specified,No Division Specified,CLM Remedial Works,Repairs and Maintenance - Programmed - Electrical,05/07/2019,5256384,"1,299.86",Edmundson Electrical LTD
Place,No Service Specified,No Division Specified,CLM Remedial Works,Repairs and Maintenance - Programmed - Electrical,08/07/2019,5256385,"1,010.02",Edmundson Electrical LTD
Place,No Service Specified,No Division Specified,CLM Remedial Works,Repairs and Maintenance - Programmed - Electrical,08/07/2019,5256387,"1,491.78",Edmundson Electrical LTD
Place,No Service Specified,No Division Specified,CLM Remedial Works,Repairs and Maintenance - Programmed - Electrical,10/07/2019,5256392,418.00,Edmundson Electrical LTD
Place,No Service Specified,No Division Specified,CLM Remedial Works,Repairs and Maintenance - Programmed - Electrical,24/07/2019,5257816,503.45,Edmundson Electrical LTD
Place,Highways and Transport Services,Public Transport,Mobility Support,Non Staff Transport Costs - Non Tfl Concessionary Fares,10/07/2019,5257793,"49,176.00",London Councils
Place,Highways and Transport Services,Public Transport,Mobility Support,Non Staff Transport Costs - Taxicards,31/07/2019,5258910,"17,426.00",London Councils
Place,Highways and Transport Services,Public Transport,Mobility Support,Non Staff Transport Costs - Tfl Concessionary fares,01/07/2019,5238437,"2,224,787.00",Transport Trading Limited
Place,Highways and Transport Services,Public Transport,Mobility Support,Printing - External,24/07/2019,5256309,511.56,Allied Publicity Services (Manchester) Limited
Place,Highways and Transport Services,Public Transport,Mobility Support,Services - Professional Fees - Partnership Arrangement,26/07/2019,5271043,422.24,Valtech Limited
Place,Highways and Transport Services,Public Transport,Mobility Support,Payments to Private Contractors - Other Contractors,01/07/2019,5238632,"3,956.00",SHA DISABILITY CONSULTANCY LTD
Place,Highways and Transport Services,Public Transport,Mobility Support,Payments to Private Contractors - Other Contractors,31/07/2019,5266839,"3,552.00",SHA DISABILITY CONSULTANCY LTD
Place,Cultural and Related Services,Open Spaces,Green Team,Repairs and Maintenance - Responsive - Repair & Maintenance,24/07/2019,5239592,"1,950.00",JC Coster (Metalworks) Ltd
Place,Cultural and Related Services,Open Spaces,Green Team,Repairs and Maintenance - Responsive - Repair & Maintenance,10/07/2019,5245046,745.00,JC Coster (Metalworks) Ltd
Place,Cultural and Related Services,Open Spaces,Green Team,Repairs and Maintenance - Responsive - Repair & Maintenance,17/07/2019,5249983,705.00,JC Coster (Metalworks) Ltd
Place,Cultural and Related Services,Open Spaces,Green Team,Repairs and Maintenance - Responsive - Repair & Maintenance,22/07/2019,5252412,455.00,JC Coster (Metalworks) Ltd
Place,Cultural and Related Services,Open Spaces,Green Team,Repairs and Maintenance - Responsive - Repair & Maintenance,24/07/2019,5255673,300.00,JC Coster (Metalworks) Ltd
Place,Cultural and Related Services,Open Spaces,Green Team,Grounds Maintenance - Contract - Horticultural Maintenance,24/07/2019,5255093,862.05,VEOLIA ENVIRONMENTAL SERVICES PLC
Place,Cultural and Related Services,Open Spaces,Green Team,Grounds Maintenance - Contract - Horticultural Maintenance,24/07/2019,5255093,"2,829.85",VEOLIA ENVIRONMENTAL SERVICES PLC
Place,Cultural and Related Services,Open Spaces,Green Team,Grounds Maintenance - Contract - Horticultural Maintenance,24/07/2019,5255093,"4,537.71",VEOLIA ENVIRONMENTAL SERVICES PLC
Place,Cultural and Related Services,Open Spaces,Green Team,Grounds Maintenance - Contract - Horticultural Maintenance,24/07/2019,5255093,"19,825.74",VEOLIA ENVIRONMENTAL SERVICES PLC
Place,Cultural and Related Services,Open Spaces,Green Team,Grounds Maintenance - Contract - Horticultural Maintenance,24/07/2019,5255093,"25,616.92",VEOLIA ENVIRONMENTAL SERVICES PLC
Place,Cultural and Related Services,Open Spaces,Green Team,Grounds Maintenance - Contract - Horticultural Maintenance,24/07/2019,5255093,"2,448.05",VEOLIA ENVIRONMENTAL SERVICES PLC
Place,Cultural and Related Services,Open Spaces,Green Team,Grounds Maintenance - Contract - Horticultural Maintenance,24/07/2019,5255093,740.10,VEOLIA ENVIRONMENTAL SERVICES PLC
Place,Cultural and Related Services,Open Spaces,Green Team,Community Equipment  Supplies - Non Store Items,03/07/2019,5239629,"6,791.57",Boverton nurseries LTD
Place,No Service Specified,No Division Specified,Capital-Major Works (CS),Other External Fees - Other External Fees,31/07/2019,5258841,"20,700.00",E Riley Associates Chartered Surveyors
Place,No Service Specified,No Division Specified,Capital-Major Works (CS),Building Works - Main Works,10/07/2019,5245048,"6,200.00",JC Coster (Metalworks) Ltd
Place,No Service Specified,No Division Specified,Capital-Major Works (CS),Building Works - Main Works,22/07/2019,5257759,"25,722.03",LEVITT BERNSTEIN ASSOCIATES LTD
Place,No Service Specified,No Division Specified,Capital-Major Works (CS),Building Works - Main Works,29/07/2019,5263219,"1,770.00",Robert Myers Associates Ltd
Place,No Service Specified,No Division Specified,Capital-Major Works (CS),Building Works - Main Works,31/07/2019,5271368,"1,740.00",Community Link Trading Ltd
Place,No Service Specified,No Division Specified,CS - Parks & Events,Sundry Creditors - Rechargeable Works - Deposits,18/07/2019,5266389,270.00,WOMEN'S ENVIRONMENTAL NETWORK
Place,No Service Specified,No Division Specified,CS - Parks & Events,Sundry Creditors - Rechargeable Works - Deposits,24/07/2019,5267452,500.00,Haggerston School
Place,No Service Specified,No Division Specified,CS - Parks & Events,Sundry Creditors - Rechargeable Works - Deposits,24/07/2019,5267454,300.00,Fecund Projects Ltd
Place,Planning Services,Community Development,Estates & Valuations,Repairs and Maintenance - Responsive - Repair & Maintenance,31/07/2019,5257867,550.00,JC Coster (Metalworks) Ltd
Place,Planning Services,Community Development,Estates & Valuations,Services - Professional Fees - Consultants Fees,26/07/2019,5258468,"1,431.25",One Consulting Group
Place,Planning Services,Community Development,Estates & Valuations,Services - Professional Fees - Consultants Fees,19/07/2019,5258723,"3,750.00",Strutt & Parker LLP
Place,Planning Services,Community Development,Estates & Valuations,Services - Professional Fees - Valuation Fees,08/07/2019,5250099,"1,950.00",Strutt & Parker LLP
Place,Planning Services,Community Development,Estates & Valuations,Subscriptions - Associations,19/07/2019,5262891,975.00,CIPFA Business Ltd
Place,Highways and Transport Services,"Transport Planning, Policy and Strategy",Public Realm Management,Services - Professional Fees - Environmental Services Fees,26/07/2019,5271121,"2,500.00",LEDNET
Place,Environmental and Regulatory Services,Waste Disposal,Waste Mobilisation Team,Training Expenses - Staff External Training (UK Based),17/07/2019,5265199,"15,322.00",Bloom Procurement Services Limited
Place,Environmental and Regulatory Services,Waste Disposal,Programme Team,Tools and Equipment - Purchase,16/07/2019,5250002,"16,514.24",Egbert H Taylor
Place,Environmental and Regulatory Services,Waste Disposal,Programme Team,Tools and Equipment - Purchase,16/07/2019,5250003,"81,485.83",Egbert H Taylor
Place,Environmental and Regulatory Services,Waste Disposal,Clean and Green Management Team,Other Allowance - Other Staff Expenses,26/07/2019,5267612,408.00,APSE
Place,Environmental and Regulatory Services,Waste Disposal,Clean and Green Management Team,Training Expenses - Staff External Training (UK Based),19/07/2019,5242383,"1,785.00",Project Skills Solutions Ltd
Place,Environmental and Regulatory Services,Waste Disposal,Street Care,Other Sales and Fees - Scaffolding & Hoarding Perm.,24/07/2019,5267673,807.00,N U Living
Place,Environmental and Regulatory Services,Waste Disposal,Waste Disposal,Payments to Private Contractors - Private Contractor,03/07/2019,5242179,"719,081.10",Cory Environmental LTD T/A Cory Riverside Energy
Place,Environmental and Regulatory Services,Waste Disposal,Waste Disposal,Payments to Private Contractors - Private Contractor,29/07/2019,5262882,798.26,Port of London Authority
Place,Environmental and Regulatory Services,Waste Disposal,Waste Disposal,Payments to Private Contractors - Private Contractor,29/07/2019,5262883,583.88,Port of London Authority
Place,Environmental and Regulatory Services,Waste Disposal,Waste Disposal,Payments to Private Contractors - Private Contractor,24/07/2019,5267599,"642,224.13",Cory Environmental LTD T/A Cory Riverside Energy
Place,Environmental and Regulatory Services,Waste Disposal,Waste Disposal,Payments to Private Contractors - Private Contractor,29/07/2019,5271189,"78,154.35",Bywaters
Place,Highways and Transport Services,Winter Service,Winter Works,Payments to Private Contractors - Private Contractor,24/07/2019,5267555,"1,100.00",Meteogroup
Place,Environmental and Regulatory Services,Waste Minimisation,Waste Minimisation,Office Furniture/Equipment,29/07/2019,5258821,"2,184.00",Canford Audio PLC
Place,Other Operating Income and Expenditure,Trading Account Surpluses and Deficits,Client Fleet Mngmnt,Spare Parts,08/07/2019,5246527,265.00,Universal Tyre & Autocentre
Place,Other Operating Income and Expenditure,Trading Account Surpluses and Deficits,Client Fleet Mngmnt,Transport Dept Charges,16/07/2019,5249986,424.74,London Hire Ltd
Place,Other Operating Income and Expenditure,Trading Account Surpluses and Deficits,Client Fleet Mngmnt,Transport Dept Charges,22/07/2019,5255098,910.77,London Hire Ltd
Place,Other Operating Income and Expenditure,Trading Account Surpluses and Deficits,Client Fleet Mngmnt,Transport Dept Charges,22/07/2019,5255099,"2,173.59",London Hire Ltd
Place,Other Operating Income and Expenditure,Trading Account Surpluses and Deficits,Client Fleet Mngmnt,Transport Dept Charges,24/07/2019,5256117,506.62,London Hire Ltd
Place,Other Operating Income and Expenditure,Trading Account Surpluses and Deficits,Client Fleet Mngmnt,Transport Dept Charges,26/07/2019,5256118,"1,410.00",London Hire Ltd
Place,Other Operating Income and Expenditure,Trading Account Surpluses and Deficits,Client Fleet Mngmnt,Transport Dept Charges,26/07/2019,5256119,"2,150.00",London Hire Ltd
Place,Other Operating Income and Expenditure,Trading Account Surpluses and Deficits,Client Fleet Mngmnt,Transport Dept Charges,26/07/2019,5256120,"1,410.00",London Hire Ltd
Place,Other Operating Income and Expenditure,Trading Account Surpluses and Deficits,Client Fleet Mngmnt,Transport Dept Charges,26/07/2019,5256121,"1,410.00",London Hire Ltd
Place,Other Operating Income and Expenditure,Trading Account Surpluses and Deficits,Client Fleet Mngmnt,Transport Dept Charges,26/07/2019,5256122,"1,021.40",London Hire Ltd
Place,Other Operating Income and Expenditure,Trading Account Surpluses and Deficits,Client Fleet Mngmnt,Transport Dept Charges,26/07/2019,5256123,301.81,London Hire Ltd
Place,Other Operating Income and Expenditure,Trading Account Surpluses and Deficits,Client Fleet Mngmnt,Transport Dept Charges,26/07/2019,5256124,301.81,London Hire Ltd
Place,Other Operating Income and Expenditure,Trading Account Surpluses and Deficits,Client Fleet Mngmnt,Transport Dept Charges,26/07/2019,5256125,515.00,London Hire Ltd
Place,Other Operating Income and Expenditure,Trading Account Surpluses and Deficits,Client Fleet Mngmnt,Transport Dept Charges,26/07/2019,5256126,321.89,London Hire Ltd
Place,Other Operating Income and Expenditure,Trading Account Surpluses and Deficits,Client Fleet Mngmnt,Transport Dept Charges,26/07/2019,5256127,301.81,London Hire Ltd
Place,Other Operating Income and Expenditure,Trading Account Surpluses and Deficits,Client Fleet Mngmnt,Transport Dept Charges,26/07/2019,5256128,324.60,London Hire Ltd
Place,Other Operating Income and Expenditure,Trading Account Surpluses and Deficits,Client Fleet Mngmnt,Transport Dept Charges,26/07/2019,5256129,320.00,London Hire Ltd
Place,Other Operating Income and Expenditure,Trading Account Surpluses and Deficits,Client Fleet Mngmnt,Transport Dept Charges,26/07/2019,5256130,301.81,London Hire Ltd
Place,Other Operating Income and Expenditure,Trading Account Surpluses and Deficits,Client Fleet Mngmnt,Transport Dept Charges,26/07/2019,5256131,705.00,London Hire Ltd
Place,Other Operating Income and Expenditure,Trading Account Surpluses and Deficits,Client Fleet Mngmnt,Transport Dept Charges,26/07/2019,5256136,"1,410.00",London Hire Ltd
Place,Other Operating Income and Expenditure,Trading Account Surpluses and Deficits,Client Fleet Mngmnt,Transport Dept Charges,26/07/2019,5256137,320.00,London Hire Ltd
Place,Other Operating Income and Expenditure,Trading Account Surpluses and Deficits,Client Fleet Mngmnt,Transport Dept Charges,26/07/2019,5256138,320.00,London Hire Ltd
Place,Other Operating Income and Expenditure,Trading Account Surpluses and Deficits,Client Fleet Mngmnt,Transport Dept Charges,26/07/2019,5256139,"1,928.70",London Hire Ltd
Place,Other Operating Income and Expenditure,Trading Account Surpluses and Deficits,Client Fleet Mngmnt,Transport Dept Charges,26/07/2019,5256140,320.00,London Hire Ltd
Place,Other Operating Income and Expenditure,Trading Account Surpluses and Deficits,Client Fleet Mngmnt,Transport Dept Charges,26/07/2019,5256141,320.00,London Hire Ltd
Place,Other Operating Income and Expenditure,Trading Account Surpluses and Deficits,Client Fleet Mngmnt,Transport Dept Charges,26/07/2019,5256142,"2,150.00",London Hire Ltd
Place,Other Operating Income and Expenditure,Trading Account Surpluses and Deficits,Client Fleet Mngmnt,Transport Dept Charges,26/07/2019,5256143,"1,528.00",London Hire Ltd
Place,Other Operating Income and Expenditure,Trading Account Surpluses and Deficits,Client Fleet Mngmnt,Transport Dept Charges,26/07/2019,5256144,"2,150.00",London Hire Ltd
Place,Other Operating Income and Expenditure,Trading Account Surpluses and Deficits,Client Fleet Mngmnt,Transport Dept Charges,26/07/2019,5256145,"2,150.00",London Hire Ltd
Place,Other Operating Income and Expenditure,Trading Account Surpluses and Deficits,Client Fleet Mngmnt,Transport Dept Charges,26/07/2019,5256146,"2,150.00",London Hire Ltd
Place,Other Operating Income and Expenditure,Trading Account Surpluses and Deficits,Client Fleet Mngmnt,Transport Dept Charges,26/07/2019,5256147,"2,150.00",London Hire Ltd
Place,Other Operating Income and Expenditure,Trading Account Surpluses and Deficits,Client Fleet Mngmnt,Transport Dept Charges,26/07/2019,5256148,"2,150.00",London Hire Ltd
Place,Other Operating Income and Expenditure,Trading Account Surpluses and Deficits,Client Fleet Mngmnt,Transport Dept Charges,29/07/2019,5256149,270.99,London Hire Ltd
Place,Other Operating Income and Expenditure,Trading Account Surpluses and Deficits,Client Fleet Mngmnt,Transport Dept Charges,26/07/2019,5258996,516.00,L&F Plant Hire t/a Tipperhire
Place,Other Operating Income and Expenditure,Trading Account Surpluses and Deficits,Client Fleet Mngmnt,Transport Dept Charges,26/07/2019,5258997,420.00,L&F Plant Hire t/a Tipperhire
Place,Other Operating Income and Expenditure,Trading Account Surpluses and Deficits,Client Fleet Mngmnt,Transport Dept Charges,26/07/2019,5258998,660.00,L&F Plant Hire t/a Tipperhire
Place,Other Operating Income and Expenditure,Trading Account Surpluses and Deficits,Client Fleet Mngmnt,Transport Dept Charges,26/07/2019,5258999,520.00,L&F Plant Hire t/a Tipperhire
Place,Other Operating Income and Expenditure,Trading Account Surpluses and Deficits,Client Fleet Mngmnt,Transport Dept Charges,26/07/2019,5259000,320.00,L&F Plant Hire t/a Tipperhire
Place,Other Operating Income and Expenditure,Trading Account Surpluses and Deficits,Client Fleet Mngmnt,Transport Dept Charges,26/07/2019,5259001,460.00,L&F Plant Hire t/a Tipperhire
Place,Other Operating Income and Expenditure,Trading Account Surpluses and Deficits,Client Fleet Mngmnt,Transport Dept Charges,26/07/2019,5263291,460.00,L&F Plant Hire t/a Tipperhire
Place,Other Operating Income and Expenditure,Trading Account Surpluses and Deficits,Client Fleet Mngmnt,Transport Dept Charges,26/07/2019,5263292,516.00,L&F Plant Hire t/a Tipperhire
Place,Other Operating Income and Expenditure,Trading Account Surpluses and Deficits,Client Fleet Mngmnt,Transport Dept Charges,26/07/2019,5263293,516.00,L&F Plant Hire t/a Tipperhire
Place,Other Operating Income and Expenditure,Trading Account Surpluses and Deficits,Client Fleet Mngmnt,Transport Dept Charges,26/07/2019,5263294,520.00,L&F Plant Hire t/a Tipperhire
Place,Other Operating Income and Expenditure,Trading Account Surpluses and Deficits,Client Fleet Mngmnt,Transport Dept Charges,26/07/2019,5263295,516.00,L&F Plant Hire t/a Tipperhire
Place,Other Operating Income and Expenditure,Trading Account Surpluses and Deficits,Client Fleet Mngmnt,Transport Dept Charges,26/07/2019,5263296,520.00,L&F Plant Hire t/a Tipperhire
Place,Other Operating Income and Expenditure,Trading Account Surpluses and Deficits,Client Fleet Mngmnt,Non Staff Transport Costs - Reimbursement,08/07/2019,5255203,306.28,Limesquare Vehicle Rental Ltd
Place,Other Operating Income and Expenditure,Trading Account Surpluses and Deficits,Client Fleet Mngmnt,Non Staff Transport Costs - Reimbursement,08/07/2019,5255204,306.28,Limesquare Vehicle Rental Ltd
Place,Other Operating Income and Expenditure,Trading Account Surpluses and Deficits,Client Fleet Mngmnt,Non Staff Transport Costs - Reimbursement,08/07/2019,5255205,306.28,Limesquare Vehicle Rental Ltd
Place,Other Operating Income and Expenditure,Trading Account Surpluses and Deficits,Client Fleet Mngmnt,Non Staff Transport Costs - Reimbursement,08/07/2019,5255206,306.28,Limesquare Vehicle Rental Ltd
Place,Other Operating Income and Expenditure,Trading Account Surpluses and Deficits,Client Fleet Mngmnt,Non Staff Transport Costs - Reimbursement,08/07/2019,5255207,323.64,Limesquare Vehicle Rental Ltd
Place,Other Operating Income and Expenditure,Trading Account Surpluses and Deficits,Client Fleet Mngmnt,Non Staff Transport Costs - Reimbursement,08/07/2019,5255208,323.64,Limesquare Vehicle Rental Ltd
Place,Other Operating Income and Expenditure,Trading Account Surpluses and Deficits,Client Fleet Mngmnt,Non Staff Transport Costs - Reimbursement,08/07/2019,5255209,323.64,Limesquare Vehicle Rental Ltd
Place,Other Operating Income and Expenditure,Trading Account Surpluses and Deficits,Client Fleet Mngmnt,Non Staff Transport Costs - Reimbursement,08/07/2019,5255210,323.64,Limesquare Vehicle Rental Ltd
Place,Other Operating Income and Expenditure,Trading Account Surpluses and Deficits,Client Fleet Mngmnt,Non Staff Transport Costs - Reimbursement,22/07/2019,5255828,269.93,Go Plant Fleet Services Limited
Place,Other Operating Income and Expenditure,Trading Account Surpluses and Deficits,Client Fleet Mngmnt,Non Staff Transport Costs - Reimbursement,22/07/2019,5255843,751.91,Go Plant Fleet Services Limited
Place,Other Operating Income and Expenditure,Trading Account Surpluses and Deficits,Client Fleet Mngmnt,Non Staff Transport Costs - Reimbursement,22/07/2019,5255845,370.88,Go Plant Fleet Services Limited
Place,Other Operating Income and Expenditure,Trading Account Surpluses and Deficits,Client Fleet Mngmnt,Non Staff Transport Costs - Reimbursement,22/07/2019,5255846,370.88,Go Plant Fleet Services Limited
Place,Other Operating Income and Expenditure,Trading Account Surpluses and Deficits,Client Fleet Mngmnt,Non Staff Transport Costs - Reimbursement,22/07/2019,5255848,250.50,Go Plant Fleet Services Limited
Place,Other Operating Income and Expenditure,Trading Account Surpluses and Deficits,Client Fleet Mngmnt,Non Staff Transport Costs - Reimbursement,22/07/2019,5255849,337.27,Go Plant Fleet Services Limited
Place,Other Operating Income and Expenditure,Trading Account Surpluses and Deficits,Client Fleet Mngmnt,Non Staff Transport Costs - Reimbursement,22/07/2019,5255850,633.70,Go Plant Fleet Services Limited
Place,Other Operating Income and Expenditure,Trading Account Surpluses and Deficits,Client Fleet Mngmnt,Non Staff Transport Costs - Reimbursement,22/07/2019,5255851,633.70,Go Plant Fleet Services Limited
Place,Other Operating Income and Expenditure,Trading Account Surpluses and Deficits,Client Fleet Mngmnt,Non Staff Transport Costs - Reimbursement,26/07/2019,5257970,"1,478.60",Hitachi Capital & Commercial Vehicle Svc
Place,Other Operating Income and Expenditure,Trading Account Surpluses and Deficits,Client Fleet Mngmnt,Non Staff Transport Costs - Reimbursement,26/07/2019,5257971,"1,234.55",Hitachi Capital & Commercial Vehicle Svc
Place,Other Operating Income and Expenditure,Trading Account Surpluses and Deficits,Client Fleet Mngmnt,Non Staff Transport Costs - Reimbursement,26/07/2019,5257972,319.21,Hitachi Capital & Commercial Vehicle Svc
Place,Other Operating Income and Expenditure,Trading Account Surpluses and Deficits,Client Fleet Mngmnt,Non Staff Transport Costs - Reimbursement,26/07/2019,5257973,266.14,Hitachi Capital & Commercial Vehicle Svc
Place,Other Operating Income and Expenditure,Trading Account Surpluses and Deficits,Client Fleet Mngmnt,Non Staff Transport Costs - Reimbursement,26/07/2019,5257974,285.73,Hitachi Capital & Commercial Vehicle Svc
Place,Other Operating Income and Expenditure,Trading Account Surpluses and Deficits,Client Fleet Mngmnt,Non Staff Transport Costs - Reimbursement,26/07/2019,5258480,296.40,Limesquare Vehicle Rental Ltd
Place,Other Operating Income and Expenditure,Trading Account Surpluses and Deficits,Client Fleet Mngmnt,Non Staff Transport Costs - Reimbursement,26/07/2019,5258481,296.40,Limesquare Vehicle Rental Ltd
Place,Other Operating Income and Expenditure,Trading Account Surpluses and Deficits,Client Fleet Mngmnt,Non Staff Transport Costs - Reimbursement,26/07/2019,5258482,296.40,Limesquare Vehicle Rental Ltd
Place,Other Operating Income and Expenditure,Trading Account Surpluses and Deficits,Client Fleet Mngmnt,Non Staff Transport Costs - Reimbursement,26/07/2019,5258483,296.40,Limesquare Vehicle Rental Ltd
Place,Other Operating Income and Expenditure,Trading Account Surpluses and Deficits,Client Fleet Mngmnt,Non Staff Transport Costs - Reimbursement,26/07/2019,5258484,313.20,Limesquare Vehicle Rental Ltd
Place,Other Operating Income and Expenditure,Trading Account Surpluses and Deficits,Client Fleet Mngmnt,Non Staff Transport Costs - Reimbursement,26/07/2019,5258485,313.20,Limesquare Vehicle Rental Ltd
Place,Other Operating Income and Expenditure,Trading Account Surpluses and Deficits,Client Fleet Mngmnt,Non Staff Transport Costs - Reimbursement,26/07/2019,5258486,313.20,Limesquare Vehicle Rental Ltd
Place,Other Operating Income and Expenditure,Trading Account Surpluses and Deficits,Client Fleet Mngmnt,Non Staff Transport Costs - Reimbursement,26/07/2019,5258487,313.20,Limesquare Vehicle Rental Ltd
Place,Other Operating Income and Expenditure,Trading Account Surpluses and Deficits,Client Fleet Mngmnt,Non Staff Transport Costs - Reimbursement,26/07/2019,5258508,"1,478.60",Hitachi Capital & Commercial Vehicle Svc
Place,Other Operating Income and Expenditure,Trading Account Surpluses and Deficits,Client Fleet Mngmnt,Non Staff Transport Costs - Reimbursement,26/07/2019,5258509,"1,234.55",Hitachi Capital & Commercial Vehicle Svc
Place,Other Operating Income and Expenditure,Trading Account Surpluses and Deficits,Client Fleet Mngmnt,Non Staff Transport Costs - Reimbursement,26/07/2019,5258510,"1,234.55",Hitachi Capital & Commercial Vehicle Svc
Place,Other Operating Income and Expenditure,Trading Account Surpluses and Deficits,Client Fleet Mngmnt,Non Staff Transport Costs - Reimbursement,26/07/2019,5258511,"1,234.55",Hitachi Capital & Commercial Vehicle Svc
Place,Other Operating Income and Expenditure,Trading Account Surpluses and Deficits,Client Fleet Mngmnt,Non Staff Transport Costs - Reimbursement,26/07/2019,5258512,"1,234.55",Hitachi Capital & Commercial Vehicle Svc
Place,Other Operating Income and Expenditure,Trading Account Surpluses and Deficits,Client Fleet Mngmnt,Non Staff Transport Costs - Reimbursement,29/07/2019,5258562,"1,750.00",Arriva Bus and Coach Ltd
Place,Other Operating Income and Expenditure,Trading Account Surpluses and Deficits,Client Fleet Mngmnt,Non Staff Transport Costs - Reimbursement,31/07/2019,5258901,339.25,Limesquare Vehicle Rental Ltd
Place,Other Operating Income and Expenditure,Trading Account Surpluses and Deficits,Client Fleet Mngmnt,Non Staff Transport Costs - Reimbursement,26/07/2019,5258995,"1,500.00",Go Plant Fleet Services Limited
Place,Other Operating Income and Expenditure,Trading Account Surpluses and Deficits,Client Fleet Mngmnt,Non Staff Transport Costs - Reimbursement,26/07/2019,5263290,"1,500.00",Go Plant Fleet Services Limited
Place,Other Operating Income and Expenditure,Trading Account Surpluses and Deficits,Client Fleet Mngmnt,Services - Professional Fees - Design Fees,19/07/2019,5250924,840.00,M&L Signs Ltd
Place,Other Operating Income and Expenditure,Trading Account Surpluses and Deficits,Client Fleet Mngmnt,Services - Professional Fees - Security Fees,03/07/2019,5252434,"7,955.94",Manpower Direct UK
Place,Other Operating Income and Expenditure,Trading Account Surpluses and Deficits,Client Fleet Mngmnt,Computing - Purchase of Software,26/07/2019,5270202,"2,067.05",jaama
Place,Highways and Transport Services,Parking Services,Parking Services Car Pound,Electricity,22/07/2019,5267144,270.00,EDF Energy Customer Field Services
Place,Highways and Transport Services,"Transport Planning, Policy and Strategy",Engineering Group,Office Furniture/Equipment,10/07/2019,5244182,"1,150.00",JC Coster (Metalworks) Ltd
Place,Highways and Transport Services,"Transport Planning, Policy and Strategy",Engineering Group,Office Furniture/Equipment,26/07/2019,5256376,"2,293.12",Edmundson Electrical LTD
Place,Highways and Transport Services,"Transport Planning, Policy and Strategy",Engineering Group,Office Furniture/Equipment,10/07/2019,5256380,"6,081.30",Edmundson Electrical LTD
Place,Highways and Transport Services,"Transport Planning, Policy and Strategy",Engineering Group,Office Furniture/Equipment,24/07/2019,5256382,"2,120.91",Edmundson Electrical LTD
Place,Highways and Transport Services,"Transport Planning, Policy and Strategy",Engineering Group,Office Furniture/Equipment,24/07/2019,5256388,"2,871.96",Edmundson Electrical LTD
Place,Highways and Transport Services,"Transport Planning, Policy and Strategy",Engineering Group,Office Furniture/Equipment,24/07/2019,5265693,630.00,Unique Office Solutions
Place,Highways and Transport Services,"Transport Planning, Policy and Strategy",Engineering Group,Office Furniture/Equipment,24/07/2019,5265693,"3,625.00",Unique Office Solutions
Place,Highways and Transport Services,"Transport Planning, Policy and Strategy",Engineering Group,Office Furniture/Equipment,24/07/2019,5265693,870.00,Unique Office Solutions
Place,Highways and Transport Services,"Transport Planning, Policy and Strategy",Engineering Group,Office Furniture/Equipment,24/07/2019,5265693,"1,227.36",Unique Office Solutions
Place,Highways and Transport Services,"Transport Planning, Policy and Strategy",Engineering Group,Office Furniture/Equipment,24/07/2019,5265693,399.25,Unique Office Solutions
Place,Highways and Transport Services,"Transport Planning, Policy and Strategy",Engineering Group,Office Furniture/Equipment,24/07/2019,5265693,"6,000.00",Unique Office Solutions
Place,Highways and Transport Services,"Transport Planning, Policy and Strategy",Engineering Group,Office Furniture/Equipment,24/07/2019,5265693,420.00,Unique Office Solutions
Place,Highways and Transport Services,"Transport Planning, Policy and Strategy",Engineering Group,Office Furniture/Equipment,24/07/2019,5265693,"7,560.00",Unique Office Solutions
Place,Highways and Transport Services,"Transport Planning, Policy and Strategy",Engineering Group,Office Furniture/Equipment,24/07/2019,5265693,"13,776.00",Unique Office Solutions
Place,Highways and Transport Services,"Transport Planning, Policy and Strategy",Engineering Group,Office Furniture/Equipment,24/07/2019,5265693,"3,480.00",Unique Office Solutions
Place,Highways and Transport Services,"Transport Planning, Policy and Strategy",Engineering Group,Office Furniture/Equipment,24/07/2019,5265693,"1,965.24",Unique Office Solutions
Place,Highways and Transport Services,"Transport Planning, Policy and Strategy",Engineering Group,Office Furniture/Equipment,24/07/2019,5265693,"3,250.24",Unique Office Solutions
Place,Highways and Transport Services,"Transport Planning, Policy and Strategy",Engineering Group,Office Furniture/Equipment,24/07/2019,5265693,870.00,Unique Office Solutions
Place,Highways and Transport Services,"Transport Planning, Policy and Strategy",Engineering Group,Office Furniture/Equipment,24/07/2019,5265693,"1,600.00",Unique Office Solutions
Place,Highways and Transport Services,"Transport Planning, Policy and Strategy",Engineering Group,Office Furniture/Equipment,24/07/2019,5265693,"1,059.80",Unique Office Solutions
Place,Highways and Transport Services,"Transport Planning, Policy and Strategy",Engineering Group,Computing - Purchase of Hardware,19/07/2019,5252483,"3,248.80",VMS Network Cabling Ltd
Place,Highways and Transport Services,"Transport Planning, Policy and Strategy",Engineering Group,Third Party Payments - Other Local Authorities,29/07/2019,5258422,"79,614.52",TFL Surface Transport
Place,Highways and Transport Services,"Transport Planning, Policy and Strategy",Engineering Group,Third Party Payments - Other Local Authorities,29/07/2019,5258423,"79,614.52",TFL Surface Transport
Place,Highways and Transport Services,"Transport Planning, Policy and Strategy",Engineering Group,Payments to Private Contractors - Environmental Services Fees,26/07/2019,5256319,"15,713.00",Campbell Associates
Place,Highways and Transport Services,Traffic Management and Road Safety,TFL-Funded Projects,Payments to Private Contractors - Other Contractors,31/07/2019,5202887,"16,402.00",Cycling Instructor LTD
Place,Highways and Transport Services,Traffic Management and Road Safety,TFL-Funded Projects,Payments to Private Contractors - Other Contractors,26/07/2019,5256358,590.62,Walk East CIC
Place,Highways and Transport Services,Traffic Management and Road Safety,TFL-Funded Projects,Payments to Private Contractors - Other Contractors,31/07/2019,5256820,"2,633.00",Rollapaluza Ltd
Place,Highways and Transport Services,Traffic Management and Road Safety,TFL-Funded Projects,Payments to Private Contractors - Other Contractors,18/07/2019,5258720,432.00,BIKE WORKS CIC
Place,Highways and Transport Services,Traffic Management and Road Safety,TFL-Funded Projects,Payments to Private Contractors - Other Contractors,17/07/2019,5263256,625.00,Cycle-Works Ltd
Place,Highways and Transport Services,Parking Services,Parking Permits,Printing - External,17/07/2019,5254284,"2,480.00",Parking and Secure Documents
Place,Highways and Transport Services,Parking Services,Parking Permits,Other Sales and Fees - Residents,01/07/2019,5254007,420.83,Our Lady & Joseph Catholic Primary School
Place,Highways and Transport Services,Parking Services,Parking Permits,Other Sales and Fees - Residents,03/07/2019,5256561,272.50,Badger Holdings Ltd
Place,Highways and Transport Services,Parking Services,Parking Permits,Other Sales and Fees - Residents,18/07/2019,5266365,489.83,Savills (uk) Ltd
Place,Highways and Transport Services,Parking Services,Parking Permits,Other Sales and Fees - Residents,18/07/2019,5266366,290.25,G4S INTERGRATED SERVICES
Place,Highways and Transport Services,Parking Services,Parking Permits,Other Sales and Fees - Residents,18/07/2019,5266368,467.50,HILL PARTNERSHIPS LTD
Place,Highways and Transport Services,Parking Services,Parking Permits,Other Sales and Fees - Residents,18/07/2019,5266392,365.92,East London NHS Foundation Trust
Place,Highways and Transport Services,Parking Services,Parking Permits,Other Sales and Fees - Residents,26/07/2019,5270259,272.50,SPICER HAART
Place,Highways and Transport Services,Parking Services,Parking Business Unit,Computing - Maint Agreements - Software,03/07/2019,5255793,671.50,Chipside LTD
Place,Highways and Transport Services,Parking Services,Parking Business Unit,Computing - Maint Agreements - Software,18/07/2019,5258908,275.00,Buchanan Order Management
Place,Highways and Transport Services,Parking Services,Parking Business Unit,Computing - Maint Agreements - Software,26/07/2019,5258909,"1,299.00",Buchanan Order Management
Place,Highways and Transport Services,Parking Services,Parking On-Street,Staff Advertising,03/07/2019,5238586,"1,225.00",TMP UK Ltd
Place,Highways and Transport Services,Parking Services,Parking On-Street,Staff Advertising,24/07/2019,5258874,"1,453.00",TMP UK Ltd
Place,Highways and Transport Services,Parking Services,Parking On-Street,Parking Bays - Parking Signs and Posts,03/07/2019,5235145,"4,505.00",Flowbird Smart City UK Limited
Place,Highways and Transport Services,Parking Services,Parking On-Street,Parking Bays - Parking Signs and Posts,01/07/2019,5238184,300.00,JC Coster (Metalworks) Ltd
Place,Highways and Transport Services,Parking Services,Parking On-Street,Parking Bays - Parking Signs and Posts,18/07/2019,5266465,500.00,PaybyPhone UK Limited
Place,Highways and Transport Services,Parking Services,Parking On-Street,Communications,24/07/2019,5234015,"24,642.52",Cobalt Telephone Technologies
Place,Highways and Transport Services,Parking Services,Removals,Payments to Private Contractors - Clamping Contractors,10/07/2019,5249875,"5,276.01",NSL LTD
Place,Highways and Transport Services,Parking Services,Removals,Payments to Private Contractors - Clamping Contractors,05/07/2019,5249876,"6,258.16",NSL LTD
Place,Highways and Transport Services,Parking Services,Removals,Payments to Private Contractors - Clamping Contractors,26/07/2019,5267339,"39,784.29",NSL LTD
Place,Highways and Transport Services,Parking Services,Parking Reps/Appeals,Services - Professional Fees - Financial Services Fees,31/07/2019,5271654,"27,534.80",London Councils
Place,Highways and Transport Services,"Transport Planning, Policy and Strategy",Street Works,Non Staff Advertising - Public Notices,01/07/2019,5242776,365.00,TMP UK Ltd
Place,Highways and Transport Services,"Transport Planning, Policy and Strategy",Street Works,Non Staff Advertising - Public Notices,10/07/2019,5249803,"2,501.00",TMP UK Ltd
Place,Highways and Transport Services,"Transport Planning, Policy and Strategy",Street Works,Non Staff Advertising - Public Notices,18/07/2019,5256255,629.00,TMP UK Ltd
Place,Highways and Transport Services,"Transport Planning, Policy and Strategy",Street Works,Non Staff Advertising - Public Notices,18/07/2019,5256256,389.00,TMP UK Ltd
Place,Highways and Transport Services,"Transport Planning, Policy and Strategy",Street Works,Non Staff Advertising - Public Notices,31/07/2019,5265641,461.00,TMP UK Ltd
Place,Highways and Transport Services,"Environmental, Safety and Routine Maintenance",Local Lead Flood Grant,Payments to Private Contractors - Private Contractor,18/07/2019,5235243,"1,110.25",Specialist Computer Centres PLC
Place,Environmental and Regulatory Services,Regulatory Services,"Food Safety		",Tools and Equipment - Purchase,16/07/2019,5250995,456.00,Klipspringer
Place,Environmental and Regulatory Services,Regulatory Services,"Food Safety		",Audio/Video Supplies,10/07/2019,5245200,395.00,ESPO
Place,Environmental and Regulatory Services,Regulatory Services,"Health & Safety at Work (Enforcement)		",Services - Professional Fees - Consultants Fees,01/07/2019,5242786,250.00,Netwatch Global ltd
Place,Environmental and Regulatory Services,Regulatory Services,Pollution Team,Training Expenses - Staff External Training (UK Based),19/07/2019,5250010,"5,675.00",Global Action Plan
Place,Environmental and Regulatory Services,Regulatory Services,Animal Warden Service,Uniforms & Clothing,31/07/2019,5266801,262.00,SMI Group
Place,Environmental and Regulatory Services,Regulatory Services,Animal Warden Service,Uniforms & Clothing,24/07/2019,5266802,254.94,SMI Group
Place,Environmental and Regulatory Services,Regulatory Services,Animal Warden Service,Services - Professional Fees - Environmental Services Fees,31/07/2019,5230368,"5,948.90",JRB Enterprise Ltd
Place,Environmental and Regulatory Services,"Cemetery, Cremation and Mortuary Services",Parish Funeral Service,Services - Professional Fees - Burial Fees,05/07/2019,5246070,957.00,T Cribb & Sons
Place,Environmental and Regulatory Services,"Cemetery, Cremation and Mortuary Services",Parish Funeral Service,Services - Professional Fees - Burial Fees,19/07/2019,5254191,875.00,T Cribb & Sons
Place,Environmental and Regulatory Services,"Cemetery, Cremation and Mortuary Services",Poplar Mortuary,Services - Professional Fees - Consultants Fees,16/07/2019,5250081,492.50,Agilisys Professional Services
Place,Environmental and Regulatory Services,"Cemetery, Cremation and Mortuary Services",Poplar Mortuary,Comms - Purchase of Equipment,03/07/2019,5239630,785.52,Bell Integration
Place,Environmental and Regulatory Services,Regulatory Services,Pest Control,Environmental Health Supplies - Baits and Poisons,01/07/2019,5242422,"2,382.20",KillGerm Chemicals
Place,Environmental and Regulatory Services,Regulatory Services,Pest Control,Environmental Health Supplies - Baits and Poisons,16/07/2019,5246489,"2,375.90",Barrettine Environmental Health
Place,Environmental and Regulatory Services,Regulatory Services,Health & Housing,Tools and Equipment - Purchase,08/07/2019,5246607,302.50,Klipspringer
Place,Environmental and Regulatory Services,Regulatory Services,Health & Housing,Services - Professional Fees - Consultants Fees,16/07/2019,5250085,945.00,Agilisys Professional Services
Place,Environmental and Regulatory Services,Regulatory Services,Health & Housing,Services - Professional Fees - Counsel's Fees,26/07/2019,5270297,"1,400.00",5 Pump Court CDS
Place,Other Operating Income and Expenditure,Trading Account Surpluses and Deficits,Markets Management A/c,Property Leases - Buildings,08/07/2019,5246190,350.00,Portable Toilet Hire London Ltd
Place,Other Operating Income and Expenditure,Trading Account Surpluses and Deficits,Markets Management A/c,Property Leases - Buildings,16/07/2019,5255184,350.00,Portable Toilet Hire London Ltd
Place,Other Operating Income and Expenditure,Trading Account Surpluses and Deficits,Markets Management A/c,Property Leases - Buildings,31/07/2019,5258881,350.00,Portable Toilet Hire London Ltd
Place,Other Operating Income and Expenditure,Trading Account Surpluses and Deficits,Markets Management A/c,Property Leases - Buildings,22/07/2019,5265184,350.00,Portable Toilet Hire London Ltd
Place,Other Operating Income and Expenditure,Trading Account Surpluses and Deficits,Markets Management A/c,Fixtures and Fittings - Purchases - Security,17/07/2019,5233832,"2,880.00",Charter Security PLC
Place,Other Operating Income and Expenditure,Trading Account Surpluses and Deficits,Markets Management A/c,Fixtures and Fittings - Purchases - Security,24/07/2019,5250990,"2,880.00",Charter Security PLC
Place,Other Operating Income and Expenditure,Trading Account Surpluses and Deficits,Markets Management A/c,Storage Costs,03/07/2019,5256197,405.00,Bullman Marine Supplies & Continers LTD
Place,Other Operating Income and Expenditure,Trading Account Surpluses and Deficits,Markets Management A/c,Events & Exhibition Supplies,24/07/2019,5256904,"1,105.00",CITY B GROUP LTD
Place,Environmental and Regulatory Services,Regulatory Services,Landlord Licensing,Services - Professional Fees - Counsel's Fees,03/07/2019,5256097,"2,500.00",GRAYS INN SQUARE BARRISTERS CHAMBERS
Place,Environmental and Regulatory Services,Regulatory Services,Late Night Levy,Training Expenses - Staff External Training (UK Based),29/07/2019,5256286,"9,000.00",Transform Uk Communities Ltd
Place,Planning Services,Development Control,Development Management,Non Staff Advertising - Public Notices,03/07/2019,5246187,"1,589.00",TMP UK Ltd
Place,Planning Services,Development Control,Development Management,Non Staff Advertising - Public Notices,10/07/2019,5249802,"1,397.00",TMP UK Ltd
Place,Planning Services,Development Control,Development Management,Non Staff Advertising - Public Notices,17/07/2019,5256254,"1,061.00",TMP UK Ltd
Place,Planning Services,Development Control,Development Management,Non Staff Advertising - Public Notices,24/07/2019,5258875,941.00,TMP UK Ltd
Place,Planning Services,Development Control,Development Management,Non Staff Advertising - Public Notices,31/07/2019,5265638,"1,193.00",TMP UK Ltd
Place,Planning Services,Development Control,Development Management,Services - Professional Fees - Consultants Fees,19/07/2019,5255197,"1,025.00",Iceni Projects Ltd
Place,Planning Services,Development Control,Development Management,Services - Professional Fees - Consultants Fees,19/07/2019,5255758,"2,280.00",Building Resarch Establishment Ltd
Place,Planning Services,Development Control,Development Management,Services - Professional Fees - Consultants Fees,22/07/2019,5255759,780.00,Building Resarch Establishment Ltd
Place,Planning Services,Development Control,Development Management,Services - Professional Fees - Consultants Fees,24/07/2019,5256915,"2,530.00",Building Resarch Establishment Ltd
Place,Planning Services,Development Control,Development Management,Services - Professional Fees - Viability Advice,01/07/2019,5239612,"3,500.00",BNP Paribas Real Estate Advisory LTD
Place,Planning Services,Development Control,Development Management,Services - Professional Fees - Environmental Impact Assessment (EIA) Reviews,10/07/2019,5249857,"8,966.00",Temple Group Ltd
Place,Planning Services,Development Control,Development Management,Services - Professional Fees - Environmental Impact Assessment (EIA) Reviews,10/07/2019,5249858,"-1,102.97",Temple Group Ltd
Place,Planning Services,Development Control,Development Management,Services - Professional Fees - Environmental Impact Assessment (EIA) Reviews,10/07/2019,5249859,762.41,Temple Group Ltd
Place,Planning Services,Development Control,Development Management,Services - Professional Fees - Environmental Impact Assessment (EIA) Reviews,10/07/2019,5249860,686.08,Temple Group Ltd
Place,Planning Services,Development Control,Development Management,Services - Professional Fees - Environmental Impact Assessment (EIA) Reviews,10/07/2019,5249861,"3,423.75",Temple Group Ltd
Place,Planning Services,Development Control,Development Management,Services - Professional Fees - Environmental Impact Assessment (EIA) Reviews,10/07/2019,5249862,"4,793.26",Temple Group Ltd
Place,Planning Services,Development Control,Development Management,Services - Professional Fees - Environmental Impact Assessment (EIA) Reviews,10/07/2019,5249863,428.80,Temple Group Ltd
Place,Planning Services,Development Control,Development Management,Services - Professional Fees - Environmental Impact Assessment (EIA) Reviews,10/07/2019,5249865,"1,964.98",Temple Group Ltd
Place,Planning Services,Development Control,Development Management,Services - Professional Fees - Environmental Impact Assessment (EIA) Reviews,10/07/2019,5249866,"2,990.45",Temple Group Ltd
Place,Planning Services,Development Control,Development Management,Services - Professional Fees - Daylight/Sunlight Reviews,19/07/2019,5254228,600.00,Anstey Horne & Co Ltd
Place,Planning Services,Development Control,Development Management,Services - Professional Fees - Daylight/Sunlight Reviews,24/07/2019,5256209,"2,000.00",Anstey Horne & Co Ltd
Place,Planning Services,Development Control,Development Management,Services - Professional Fees - Daylight/Sunlight Reviews,19/07/2019,5257980,"2,550.00",GVA T/A Avison Young
Place,Planning Services,Development Control,Development Management,Services - Professional Fees - Daylight/Sunlight Reviews,19/07/2019,5265176,"1,600.00",Delva Patman Redler LLP
Place,Planning Services,Development Control,Development Management,Pre-planning Application Advice - Fees Inc.(General Purp.) Income,31/07/2019,5271469,"5,000.00",Paul Hayer
Place,Planning Services,Development Control,Development Management,Planning Fees - Statutory Planning Fees,31/07/2019,5270288,"14,396.50",PORTALPLANQUEST LIMITED
Place,Planning Services,Planning Policy,Application Support,Office Furniture/Equipment,05/07/2019,5245045,368.09,CCS Media Ltd
Place,Planning Services,Planning Policy,Application Support,Office Furniture/Equipment,08/07/2019,5246067,"1,765.63",CCS Media Ltd
Place,Planning Services,Planning Policy,Application Support,Other Sales and Fees - Fees Inc.(General Purp.) Income,17/07/2019,5258597,325.02,The Vesey Partnership Ltd
Place,Planning Services,Planning Policy,Application Support,Other Sales and Fees - Fees Inc.(General Purp.) Income,17/07/2019,5265490,259.00,Trethowans
Place,Planning Services,Planning Policy,Historic Buildings,Grants - Grants To Other Organisations,24/07/2019,5267165,"95,902.00",Oxford House in Bethnal Green LTD
Place,Cultural and Related Services,Open Spaces,Aboriculture Management,Grounds Maintenance - Contract - Trees & Shrubs,18/07/2019,5242824,860.00,CITY SUBURBAN TREE SURGEONS
Place,Cultural and Related Services,Open Spaces,Aboriculture Management,Grounds Maintenance - Contract - Trees & Shrubs,31/07/2019,5257986,637.50,CITY SUBURBAN TREE SURGEONS
Place,Cultural and Related Services,Open Spaces,Aboriculture Management,Grounds Maintenance - Contract - Trees & Shrubs,31/07/2019,5257987,"2,995.00",CITY SUBURBAN TREE SURGEONS
Place,Cultural and Related Services,Open Spaces,Aboriculture Management,Grounds Maintenance - Contract - Trees & Shrubs,31/07/2019,5257988,480.00,CITY SUBURBAN TREE SURGEONS
Place,Cultural and Related Services,Open Spaces,Aboriculture Management,Grounds Maintenance - Contract - Trees & Shrubs,31/07/2019,5257989,"3,155.00",CITY SUBURBAN TREE SURGEONS
Place,Cultural and Related Services,Open Spaces,Aboriculture Management,Grounds Maintenance - Contract - Highways Trees,18/07/2019,5242823,"1,645.00",CITY SUBURBAN TREE SURGEONS
Place,Cultural and Related Services,Open Spaces,Aboriculture Management,Grounds Maintenance - Contract - Highways Trees,31/07/2019,5257985,"4,989.13",CITY SUBURBAN TREE SURGEONS
Place,No Service Specified,No Division Specified,Arts-Park Events,Sundry Creditors - Rechargeable Works - Rendered Accounts/Refunds,18/07/2019,5266408,"2,000.00",Mannings Fairview Co Ltd
Place,No Service Specified,No Division Specified,Arts-Park Events,Sundry Creditors - Rechargeable Works - Rendered Accounts/Refunds,22/07/2019,5267174,250.00,THE TURKS HEAD CHARITY
Place,No Service Specified,No Division Specified,Arts-Park Events,Sundry Creditors - Rechargeable Works - Rendered Accounts/Refunds,24/07/2019,5267447,250.00,North Meets East Ltd
Place,No Service Specified,No Division Specified,Arts-Park Events,Sundry Creditors - Rechargeable Works - Rendered Accounts/Refunds,24/07/2019,5267448,250.00,Rukhsanas Ltd
Place,No Service Specified,No Division Specified,Arts-Park Events,Sundry Creditors - Rechargeable Works - Rendered Accounts/Refunds,24/07/2019,5267450,250.00,Grassroots Trust
Place,No Service Specified,No Division Specified,Capital Works - P&E,Building Works - Main Works,16/07/2019,5256297,"17,000.00",Occam's Razor Consulting Ltd
Place,No Service Specified,No Division Specified,Capital Works - P&E,Acquisition of Equipment,10/07/2019,5245080,"1,202.00",Broxap Ltd
Place,Other Operating Income and Expenditure,Trading Account Surpluses and Deficits,Passenger Transport,Contract Cleaning,26/07/2019,5256924,705.88,Wetton Cleaning Services LTD
Place,Other Operating Income and Expenditure,Trading Account Surpluses and Deficits,Passenger Transport,Third Party Payments - Payments to Schools,05/07/2019,5245885,450.00,London Borough Of Redbridge
Place,Other Operating Income and Expenditure,Trading Account Surpluses and Deficits,Passenger Transport,Third Party Payments - Payments to Schools,05/07/2019,5245886,850.00,London Borough Of Redbridge
Place,Other Operating Income and Expenditure,Trading Account Surpluses and Deficits,Passenger Transport,Third Party Payments - Payments to Schools,05/07/2019,5246316,850.00,London Borough Of Redbridge
Place,Other Operating Income and Expenditure,Trading Account Surpluses and Deficits,Vehicle Maintenance Operation,Spare Parts,01/07/2019,5242813,301.10,Leighway Auto Electrics LTD
Place,Other Operating Income and Expenditure,Trading Account Surpluses and Deficits,Vehicle Maintenance Operation,Spare Parts,19/07/2019,5249854,291.10,Leighway Auto Electrics LTD
Place,Other Operating Income and Expenditure,Trading Account Surpluses and Deficits,Vehicle Maintenance Operation,Spare Parts,08/07/2019,5249855,301.10,Leighway Auto Electrics LTD
Place,Other Operating Income and Expenditure,Trading Account Surpluses and Deficits,Vehicle Maintenance Operation,Spare Parts,08/07/2019,5250988,291.10,Leighway Auto Electrics LTD
Place,Other Operating Income and Expenditure,Trading Account Surpluses and Deficits,Vehicle Maintenance Operation,Spare Parts,19/07/2019,5255225,301.10,Leighway Auto Electrics LTD
Place,Other Operating Income and Expenditure,Trading Account Surpluses and Deficits,Vehicle Maintenance Operation,Spare Parts,19/07/2019,5256338,301.10,Leighway Auto Electrics LTD
Place,Other Operating Income and Expenditure,Trading Account Surpluses and Deficits,Vehicle Maintenance Operation,Spare Parts,24/07/2019,5256933,308.10,Leighway Auto Electrics LTD
Place,Other Operating Income and Expenditure,Trading Account Surpluses and Deficits,Vehicle Maintenance Operation,Spare Parts,24/07/2019,5257792,308.10,Leighway Auto Electrics LTD
Place,Other Operating Income and Expenditure,Trading Account Surpluses and Deficits,Vehicle Maintenance Operation,Spare Parts,26/07/2019,5265659,283.60,Leighway Auto Electrics LTD
Place,Other Operating Income and Expenditure,Trading Account Surpluses and Deficits,Vehicle Maintenance Operation,Vehicle Maintenance - Repairs,05/07/2019,5242726,634.00,DT Trucks Ltd
Place,Other Operating Income and Expenditure,Trading Account Surpluses and Deficits,Vehicle Maintenance Operation,Vehicle Maintenance - Repairs,08/07/2019,5245849,375.77,Walker Crane Services LTD
Place,Other Operating Income and Expenditure,Trading Account Surpluses and Deficits,Vehicle Maintenance Operation,Vehicle Maintenance - Repairs,10/07/2019,5246704,598.05,TLS - Tail Lift Services
Place,Other Operating Income and Expenditure,Trading Account Surpluses and Deficits,Vehicle Maintenance Operation,Vehicle Maintenance - Repairs,16/07/2019,5249798,262.99,Autosmart International Ltd
Place,Other Operating Income and Expenditure,Trading Account Surpluses and Deficits,Vehicle Maintenance Operation,Vehicle Maintenance - Repairs,16/07/2019,5254333,299.14,Raevan Supplies Ltd
Place,Other Operating Income and Expenditure,Trading Account Surpluses and Deficits,Vehicle Maintenance Operation,Vehicle Maintenance - Repairs,26/07/2019,5270173,276.95,United Lifting Technology Ltd
Place,Other Operating Income and Expenditure,Trading Account Surpluses and Deficits,Vehicle Maintenance Operation,Transport Dept Charges,08/07/2019,5246500,325.96,R A Commercial Components
Place,Other Operating Income and Expenditure,Trading Account Surpluses and Deficits,Vehicle Maintenance Operation,Transport Dept Charges,01/07/2019,5249778,400.20,Safety-Kleen UK LTD
Place,Other Operating Income and Expenditure,Trading Account Surpluses and Deficits,Vehicle Maintenance Operation,Transport Dept Charges,19/07/2019,5255109,294.91,R A Commercial Components
Place,Other Operating Income and Expenditure,Trading Account Surpluses and Deficits,Vehicle Maintenance Operation,Transport Dept Charges,24/07/2019,5257748,469.00,R A Commercial Components
Place,Other Operating Income and Expenditure,Trading Account Surpluses and Deficits,Vehicle Maintenance Operation,Transport Dept Charges,26/07/2019,5271059,370.60,S & B Commercials PLC
Place,Other Operating Income and Expenditure,Trading Account Surpluses and Deficits,Vehicle Maintenance Operation,Transport Dept Charges,26/07/2019,5271061,272.00,S & B Commercials PLC
Place,Other Operating Income and Expenditure,Trading Account Surpluses and Deficits,Vehicle Maintenance Operation,Transport Dept Charges,26/07/2019,5271063,282.00,S & B Commercials PLC
Place,Other Operating Income and Expenditure,Trading Account Surpluses and Deficits,Vehicle Maintenance Operation,Transport Dept Charges,26/07/2019,5271069,872.10,S & B Commercials PLC
Place,Other Operating Income and Expenditure,Trading Account Surpluses and Deficits,Vehicle Maintenance Operation,Transport Dept Charges,26/07/2019,5271070,447.10,S & B Commercials PLC
Place,Other Operating Income and Expenditure,Trading Account Surpluses and Deficits,Vehicle Maintenance Operation,Transport Dept Charges,26/07/2019,5271071,336.00,S & B Commercials PLC
Place,Other Operating Income and Expenditure,Trading Account Surpluses and Deficits,Vehicle Maintenance Operation,Transport Dept Charges,26/07/2019,5271073,374.00,S & B Commercials PLC
Place,Other Operating Income and Expenditure,Trading Account Surpluses and Deficits,Vehicle Maintenance Operation,Transport Dept Charges,26/07/2019,5271079,-370.60,S & B Commercials PLC
Place,Corporate & Democratic Core,Corporate Management,D&R Director,Office Furniture/Equipment,08/07/2019,5246066,297.00,CCS Media Ltd
Place,Planning Services,Planning Policy,Plan Making,Non Staff Advertising - Public Notices,03/07/2019,5242162,557.00,TMP UK Ltd
Place,Corporate & Democratic Core,Corporate Management,S&I - Management Team,Subscriptions - Associations,03/07/2019,5256060,"26,446.25",The Housing Ombudsman
Place,Planning Services,Economic Development,ED Management,Services - Professional Fees - Consultants Fees,31/07/2019,5256318,"8,300.00",WHITE LABEL PUBLISHING LTD T/A WHITE LABEL CONSULTANTS
Place,General Fund/Council Fund,Housing Strategy,ALMO Client Team,Subscriptions - Subscriptions to Associations,31/07/2019,5258408,747.50,HQN LTD
Place,Highways and Transport Services,"Transport Planning, Policy and Strategy",Crossrail,Third Party Payments - Other Establishments,10/07/2019,5242744,500.00,Crossrail Complaints Commissioner
Place,Planning Services,Community Development,Infrastructure Planning,Staff Advertising,31/07/2019,5265639,545.00,TMP UK Ltd
Place,Planning Services,Community Development,Harford St Community Centre,Contract Cleaning,26/07/2019,5256927,688.25,Wetton Cleaning Services LTD
Place,Planning Services,Community Development,Harford St Community Centre,Comms - Telephone Rental - Phones,10/07/2019,5246490,296.47,Maintel Europe Ltd
Place,Planning Services,Community Development,THCIL Revenue,Services - Professional Fees - Legal Fees/Expenses,26/07/2019,5262890,288.00,Sharpe Pritchard
Place,Planning Services,Community Development,"Strategy, Partnerships & Private Sector Housing",Services - Professional Fees - Consultants Fees,24/07/2019,5258904,695.00,Brigit Graham Computing
Place,Planning Services,Community Development,"Strategy, Partnerships & Private Sector Housing",Grants - Grants To Other Organisations,03/07/2019,5232044,"5,182.75",East End Citizens Advice Bureau
Place,Planning Services,Community Development,"Strategy, Partnerships & Private Sector Housing",Subscriptions - Subscriptions to Associations,31/07/2019,5258408,373.75,HQN LTD
Place,Planning Services,Community Development,"Strategy, Partnerships & Private Sector Housing",Third Party Payments - Subscriptions to Associations,03/07/2019,5245751,"2,500.00",London Borough of Camden
Place,No Service Specified,No Division Specified,Community Infrastructure Levy,Other Authorities Creditors - MCIL - Expenditure (Mayor's Community Infrastructure Levy),29/07/2019,5266709,"3,110,558.00",TRANSPORT FOR LONDON
Place,Planning Services,Community Development,Barkentine,Third Party Payments - Other Agencies,29/07/2019,5267002,"75,651.00",Barkantine Heat & Power Company LTD
Place,No Service Specified,No Division Specified,Purchase of Accomm for TA 1-4-1 receipts,Acquisition of Land/Buildings - Buybacks,24/07/2019,5258616,"320,000.00",Foot Anstey
Place,No Service Specified,No Division Specified,Purchase of Accomm for TA 1-4-1 receipts,Acquisition of Land/Buildings - Buybacks,24/07/2019,5266401,"315,000.00",Foot Anstey
Place,No Service Specified,No Division Specified,Purchase of Accomm for TA 1-4-1 receipts,Acquisition of Land/Buildings - Buybacks,24/07/2019,5266402,"400,000.00",Foot Anstey
Place,No Service Specified,No Division Specified,Purchase of Accomm for TA 1-4-1 receipts,Acquisition of Land/Buildings - Stamp Duty,24/07/2019,5258616,"15,600.00",Foot Anstey
Place,No Service Specified,No Division Specified,Purchase of Accomm for TA 1-4-1 receipts,Acquisition of Land/Buildings - Stamp Duty,24/07/2019,5266401,"15,200.00",Foot Anstey
Place,No Service Specified,No Division Specified,Purchase of Accomm for TA 1-4-1 receipts,Acquisition of Land/Buildings - Stamp Duty,24/07/2019,5266402,"22,000.00",Foot Anstey
Place,No Service Specified,No Division Specified,Purchase of Accomm for TA 1-4-1 receipts,Acquisition of Land/Buildings - Stamp Duty,24/07/2019,5266933,"31,250.00",H M Revenue & Customs Only
Place,No Service Specified,No Division Specified,Purchase of Accomm for TA 1-4-1 receipts,Legal Fees,26/07/2019,5267546,"1,257.17",Foot Anstey
Place,No Service Specified,No Division Specified,Purchase of Accomm for TA 1-4-1 receipts,Legal Fees,26/07/2019,5267547,"1,257.17",Foot Anstey
Place,No Service Specified,No Division Specified,Purchase of Accomm for TA 1-4-1 receipts,Legal Fees,26/07/2019,5267548,"1,257.17",Foot Anstey
Place,No Service Specified,No Division Specified,Purchase of Accomm for TA 1-4-1 receipts,Legal Fees,26/07/2019,5267549,"1,295.80",Foot Anstey
Place,No Service Specified,No Division Specified,Purchase of Accomm for TA 1-4-1 receipts,Other External Fees - Valuation Fees,26/07/2019,5258471,"5,700.00",Copping Joyce Surveyors
Place,No Service Specified,No Division Specified,Community Hubs/Buildings - (CAP) GF,Other External Fees - Consultants Fees,31/07/2019,5271363,"2,100.00",Staton Cohen Ltd
Place,No Service Specified,No Division Specified,Community Hubs/Buildings - (CAP) GF,Other External Fees - Other External Fees,26/07/2019,5270177,"2,450.10",Poplar HARCA LTD
Place,No Service Specified,No Division Specified,Carbon Reduction,Other Capital Payments - Other capital costs,18/07/2019,5266553,"17,151.32",ARNHEM WHARF PRIMARY SCHOOL
Place,No Service Specified,No Division Specified,Carbon Reduction,Grants to 3rd Parties - Renovation Grants,05/07/2019,5257663,"5,000.00",S & B Nagpal
Place,No Service Specified,No Division Specified,High Street & TownCentre's Capital,Other Capital Payments - Regen Initiatives,03/07/2019,5242002,"12,500.00",J&L Coster (Drainage) Ltd
Place,No Service Specified,No Division Specified,High Street & TownCentre's Capital,Other Capital Payments - Regen Initiatives,24/07/2019,5256905,600.00,CITY B GROUP LTD
Place,No Service Specified,No Division Specified,High Street & TownCentre's Capital,Other Capital Payments - Regen Initiatives,22/07/2019,5267164,870.00,Kross Consulting ltd
Place,No Service Specified,No Division Specified,High Street & TownCentre's Capital,Acquisition of Vehicles,16/07/2019,5252476,"24,582.00",John Bradshaw t/a Bradshaw Electric Vehicles
Place,No Service Specified,No Division Specified,High Street & TownCentre's Capital,Acquisition of Equipment,22/07/2019,5252477,952.00,John Bradshaw t/a Bradshaw Electric Vehicles
Place,No Service Specified,No Division Specified,Whitechapel Civic Centre - CAP,Other External Fees - Project Management Fees,26/07/2019,5266445,"36,716.52",Turner & Townsend
Place,No Service Specified,No Division Specified,Poplar HARCA Purchase of Temporary Accommodation,Other External Fees - Valuation Fees,26/07/2019,5257940,"16,100.00",Copping Joyce Surveyors
Place,No Service Specified,No Division Specified,St.Georges Town Hall refurbishment,Other External Fees - Consultants Fees,26/07/2019,5250957,"6,000.00",Bloom Procurement Services Limited
Place,No Service Specified,No Division Specified,St.Georges Town Hall refurbishment,Other External Fees - Consultants Fees,29/07/2019,5266441,"1,579.60",Bloom Procurement Services Limited
Place,No Service Specified,No Division Specified,Angela Court Burdett Road,Other External Fees - Consultants Fees,26/07/2019,5267651,"2,500.00",GERALD EVE LLP
Place,No Service Specified,No Division Specified,Angela Court Burdett Road,Other External Fees - Consultants Fees,26/07/2019,5267652,"2,000.00",GERALD EVE LLP
Place,Planning Services,Community Development,Property Maintenance Team,Agency Staff,24/07/2019,5238557,"1,340.00",Hays Specialist Recruitment Ltd
Place,Planning Services,Community Development,Property Maintenance Team,Agency Staff,24/07/2019,5238560,638.00,Hays Specialist Recruitment Ltd
Place,Planning Services,Community Development,Property Maintenance Team,Agency Staff,01/07/2019,5250925,387.50,Hays Specialist Recruitment Ltd
Place,Planning Services,Community Development,Property Maintenance Team,Agency Staff,24/07/2019,5256218,638.00,Hays Specialist Recruitment Ltd
Place,Planning Services,Community Development,Property Maintenance Team,Agency Staff,24/07/2019,5256219,638.00,Hays Specialist Recruitment Ltd
Place,Planning Services,Community Development,Property Maintenance Team,Agency Staff,24/07/2019,5256220,638.00,Hays Specialist Recruitment Ltd
Place,Planning Services,Community Development,Property Maintenance Team,Agency Staff,24/07/2019,5256222,797.50,Hays Specialist Recruitment Ltd
Place,Planning Services,Community Development,Property Maintenance Team,Agency Staff,26/07/2019,5256827,"1,675.00",Hays Specialist Recruitment Ltd
Place,Planning Services,Community Development,Property Maintenance Team,Agency Staff,26/07/2019,5256828,"1,675.00",Hays Specialist Recruitment Ltd
Place,Planning Services,Community Development,Property Maintenance Team,Agency Staff,26/07/2019,5256829,"1,340.00",Hays Specialist Recruitment Ltd
Place,Planning Services,Community Development,Property Maintenance Team,Agency Staff,26/07/2019,5256830,797.50,Hays Specialist Recruitment Ltd
Place,Planning Services,Community Development,Property Maintenance Team,Agency Staff - Staff External Training (UK Based),18/07/2019,5238558,"1,723.60",Hays Specialist Recruitment Ltd
Place,Planning Services,Community Development,Property Maintenance Team,Agency Staff - Staff External Training (UK Based),18/07/2019,5254231,"1,723.60",Hays Specialist Recruitment Ltd
Place,Planning Services,Community Development,Property Maintenance Team,Agency Staff - Staff External Training (UK Based),18/07/2019,5254233,"1,378.88",Hays Specialist Recruitment Ltd
Place,Planning Services,Community Development,Property Maintenance Team,Agency Staff - Staff External Training (UK Based),18/07/2019,5254234,"1,723.60",Hays Specialist Recruitment Ltd
Place,Planning Services,Community Development,Property Maintenance Team,Agency Staff - Staff External Training (UK Based),24/07/2019,5256221,"1,723.60",Hays Specialist Recruitment Ltd
Place,Planning Services,Community Development,Property Maintenance Team,Agency Staff - Staff External Training (UK Based),26/07/2019,5256831,"1,723.60",Hays Specialist Recruitment Ltd
Place,Planning Services,Community Development,Asset Maximisation (Rev),Comms - Purchase of Equipment,08/07/2019,5242789,"1,178.28",Bell Integration
Housing Revenue Account,HRA Income,Leaseholders Charges for Services and Facilities,Leasehold Service Charges,Services - Professional Fees - Consultants Fees,26/07/2019,5256357,"2,535.00",Strutt & Parker LLP
Housing Revenue Account,HRA Income,Tenants' Charges for Services and Facilities,Estate Parking Income,Payments to Private Contractors - General Contractors,26/07/2019,5258724,"29,259.70",NSL LTD
Housing Revenue Account,HRA Expenditure,Supervision and Management,Water Commission,Water Services - Unmetered,31/07/2019,5270160,"-821,124.55",THAMES WATER PLC
Housing Revenue Account,HRA Expenditure,Repairs and Maintenance,Repairs Non Attributable � Change to Repairs Blocks (monitoring),Comms - Telephone Rental - Lifts,29/07/2019,5258917,"2,907.92",Daisy Communications PLC
Housing Revenue Account,HRA Expenditure,Repairs and Maintenance,Repairs Non Rechargeable Change to Repairs Block (Other),Repairs and Maintenance - Cyclical - L8 Risk Assessments - Water Tank Servicing,19/07/2019,5266819,"9,774.12",Urban Environments Ltd
Housing Revenue Account,HRA Expenditure,Repairs and Maintenance,Repairs Non Rechargeable Change to Repairs Block (Other),Repairs and Maintenance - Cyclical - L8 Risk Assessments - Water Tank Servicing,19/07/2019,5266820,"6,737.62",Urban Environments Ltd
Housing Revenue Account,HRA Expenditure,Special Services,Cleaning Materials & Equipment,Refuse Collection,01/07/2019,5242121,429.84,IOD Skip Hire Ltd
Housing Revenue Account,HRA Expenditure,Special Services,Cleaning Materials & Equipment,Refuse Collection,08/07/2019,5245752,296.24,IOD Skip Hire Ltd
Housing Revenue Account,HRA Expenditure,Special Services,Cleaning Materials & Equipment,Refuse Collection,05/07/2019,5249814,475.77,Cory Environmental LTD T/A Cory Riverside Energy
Housing Revenue Account,HRA Expenditure,Special Services,Cleaning Materials & Equipment,Refuse Collection,16/07/2019,5255103,281.32,IOD Skip Hire Ltd
Housing Revenue Account,HRA Expenditure,Special Services,Cleaning Materials & Equipment,Refuse Collection,16/07/2019,5255104,451.44,IOD Skip Hire Ltd
Housing Revenue Account,HRA Expenditure,Special Services,Cleaning Materials & Equipment,Refuse Collection,19/07/2019,5255105,281.32,IOD Skip Hire Ltd
Housing Revenue Account,HRA Expenditure,Special Services,Cleaning Materials & Equipment,Refuse Collection,19/07/2019,5257937,459.55,Cory Environmental LTD T/A Cory Riverside Energy
Housing Revenue Account,HRA Expenditure,Special Services,Cleaning Materials & Equipment,Refuse Collection,19/07/2019,5258894,558.65,Cory Environmental LTD T/A Cory Riverside Energy
Housing Revenue Account,HRA Expenditure,Special Services,Cleaning Materials & Equipment,Refuse Collection,26/07/2019,5258895,267.59,Cory Environmental LTD T/A Cory Riverside Energy
Housing Revenue Account,HRA Expenditure,Special Services,Cleaning Materials & Equipment,Refuse Collection,19/07/2019,5263279,"3,080.00",GREENER SOLUTIONS LTD
Housing Revenue Account,HRA Expenditure,Special Services,Cleaning Materials & Equipment,Materials - Cleaning Materials,03/07/2019,5242044,"1,510.21",GREENER SOLUTIONS LTD
Housing Revenue Account,HRA Expenditure,Special Services,Cleaning Materials & Equipment,Materials - Cleaning Materials,03/07/2019,5242045,"1,212.36",GREENER SOLUTIONS LTD
Housing Revenue Account,HRA Expenditure,Special Services,Cleaning Materials & Equipment,Materials - Cleaning Materials,31/07/2019,5242276,"1,408.80",GREENER SOLUTIONS LTD
Housing Revenue Account,HRA Expenditure,Special Services,Cleaning Materials & Equipment,Materials - Cleaning Materials,03/07/2019,5242513,"5,341.01",GREENER SOLUTIONS LTD
Housing Revenue Account,HRA Expenditure,Special Services,Cleaning Materials & Equipment,Materials - Cleaning Materials,31/07/2019,5242514,807.89,GREENER SOLUTIONS LTD
Housing Revenue Account,HRA Expenditure,Special Services,Cleaning Materials & Equipment,Materials - Cleaning Materials,31/07/2019,5242515,"2,142.53",GREENER SOLUTIONS LTD
Housing Revenue Account,HRA Expenditure,Special Services,Cleaning Materials & Equipment,Materials - Cleaning Materials,08/07/2019,5245266,"8,910.00",GREENER SOLUTIONS LTD
Housing Revenue Account,HRA Expenditure,Special Services,Cleaning Materials & Equipment,Materials - Cleaning Materials,10/07/2019,5246307,"3,065.60",GREENER SOLUTIONS LTD
Housing Revenue Account,HRA Expenditure,Special Services,Cleaning Materials & Equipment,Materials - Cleaning Materials,31/07/2019,5246696,"1,645.95",GREENER SOLUTIONS LTD
Housing Revenue Account,HRA Expenditure,Special Services,Cleaning Materials & Equipment,Materials - Cleaning Materials,16/07/2019,5249901,"1,364.26",GREENER SOLUTIONS LTD
Housing Revenue Account,HRA Expenditure,Special Services,Cleaning Materials & Equipment,Materials - Cleaning Materials,16/07/2019,5249902,842.97,GREENER SOLUTIONS LTD
Housing Revenue Account,HRA Expenditure,Special Services,Cleaning Materials & Equipment,Materials - Cleaning Materials,16/07/2019,5249903,253.72,GREENER SOLUTIONS LTD
Housing Revenue Account,HRA Expenditure,Special Services,Cleaning Materials & Equipment,Materials - Cleaning Materials,16/07/2019,5250190,460.88,GREENER SOLUTIONS LTD
Housing Revenue Account,HRA Expenditure,Special Services,Cleaning Materials & Equipment,Materials - Cleaning Materials,16/07/2019,5250191,423.15,GREENER SOLUTIONS LTD
Housing Revenue Account,HRA Expenditure,Special Services,Cleaning Materials & Equipment,Materials - Cleaning Materials,17/07/2019,5252595,"1,933.92",GREENER SOLUTIONS LTD
Housing Revenue Account,HRA Expenditure,Special Services,Cleaning Materials & Equipment,Materials - Cleaning Materials,22/07/2019,5255307,"1,462.05",GREENER SOLUTIONS LTD
Housing Revenue Account,HRA Expenditure,Special Services,Cleaning Materials & Equipment,Materials - Cleaning Materials,31/07/2019,5256474,"1,387.50",GREENER SOLUTIONS LTD
Housing Revenue Account,HRA Expenditure,Special Services,Cleaning Materials & Equipment,Materials - Cleaning Materials,31/07/2019,5256475,792.96,GREENER SOLUTIONS LTD
Housing Revenue Account,HRA Expenditure,Special Services,Cleaning Materials & Equipment,Materials - Cleaning Materials,31/07/2019,5256476,390.84,GREENER SOLUTIONS LTD
Housing Revenue Account,HRA Expenditure,Special Services,Cleaning Materials & Equipment,Materials - Cleaning Materials,31/07/2019,5256477,411.83,GREENER SOLUTIONS LTD
Housing Revenue Account,HRA Expenditure,Special Services,Cleaning Materials & Equipment,Materials - Cleaning Materials,31/07/2019,5257854,"1,481.35",GREENER SOLUTIONS LTD
Housing Revenue Account,HRA Expenditure,Special Services,Cleaning Materials & Equipment,Materials - Cleaning Materials,31/07/2019,5257855,"4,608.19",GREENER SOLUTIONS LTD
Housing Revenue Account,HRA Expenditure,Special Services,Cleaning Materials & Equipment,Materials - Cleaning Materials,31/07/2019,5258067,"1,599.98",GREENER SOLUTIONS LTD
Housing Revenue Account,HRA Expenditure,Special Services,Cleaning Materials & Equipment,Materials - Cleaning Materials,31/07/2019,5258553,"1,108.84",GREENER SOLUTIONS LTD
Housing Revenue Account,HRA Expenditure,Special Services,Cleaning Materials & Equipment,Materials - Cleaning Materials,31/07/2019,5258554,"1,466.40",GREENER SOLUTIONS LTD
Housing Revenue Account,HRA Expenditure,Special Services,Cleaning Materials & Equipment,Materials - Cleaning Materials,31/07/2019,5258555,"1,906.35",GREENER SOLUTIONS LTD
Housing Revenue Account,HRA Expenditure,Special Services,Cleaning Materials & Equipment,Materials - Cleaning Materials,31/07/2019,5258990,"1,035.00",GREENER SOLUTIONS LTD
Housing Revenue Account,HRA Expenditure,Special Services,Cleaning Materials & Equipment,Materials - Cleaning Materials,31/07/2019,5258992,"3,882.37",GREENER SOLUTIONS LTD
Housing Revenue Account,HRA Expenditure,Special Services,Concierge,Agency Staff,31/07/2019,5256934,"10,440.00",OCS T/A LEGION
Housing Revenue Account,HRA Expenditure,Special Services,Concierge,Agency Staff,31/07/2019,5256935,"10,440.00",OCS T/A LEGION
Housing Revenue Account,HRA Expenditure,Special Services,Concierge,Agency Staff,31/07/2019,5256936,"10,440.00",OCS T/A LEGION
Housing Revenue Account,HRA Expenditure,Special Services,Concierge,Agency Staff,31/07/2019,5256937,"10,440.00",OCS T/A LEGION
Housing Revenue Account,No Service Specified,No Division Specified,Mayoral ASB Initiative,Grounds Maintenance - Contract - Horticultural Maintenance,05/07/2019,5256252,"29,518.50",Parkguard
Housing Revenue Account,No Service Specified,No Division Specified,Mayoral ASB Initiative,Grounds Maintenance - Contract - Horticultural Maintenance,19/07/2019,5256860,"28,977.25",Parkguard
Housing Revenue Account,No Service Specified,No Division Specified,Mayoral ASB Initiative,Grounds Maintenance - Contract - Horticultural Maintenance,18/07/2019,5262906,"28,135.75",Parkguard
Housing Revenue Account,HRA Expenditure,Supervision and Management,Service Charge Payments,Property Leases - Buildings,01/07/2019,5246180,"22,412.50",Blackstone Property Management
Housing Revenue Account,HRA Expenditure,Supervision and Management,Service Charge Payments,Property Leases - Buildings,29/07/2019,5258499,"6,231.75",Birchfield House Co-operative
Housing Revenue Account,HRA Expenditure,Supervision and Management,Service Charge Payments,Property Leases - Buildings,18/07/2019,5263160,"5,619.80",Wanderslore Pension LTD
Housing Revenue Account,HRA Expenditure,"Rents, Rates, Taxes and Other Charges",Water Rates,Water Services - Unmetered,31/07/2019,5270160,"1,740,720.19",THAMES WATER PLC
Housing Revenue Account,HRA Expenditure,Supervision and Management,Poplar Baths & Dame Colet,Repairs and Maintenance - Responsive - Repair & Maintenance,22/07/2019,5257738,"54,606.37",Folera Ltd
Housing Revenue Account,HRA Expenditure,Supervision and Management,Poplar Baths & Dame Colet,Repairs and Maintenance - Responsive - Repair & Maintenance,24/07/2019,5257739,"65,139.72",Folera Ltd
Housing Revenue Account,HRA Expenditure,Supervision and Management,Community Investment Budget,Training Expenses - Staff External Training (UK Based),16/07/2019,5250955,"12,500.00",Go Train Limited
Housing Revenue Account,HRA Expenditure,Supervision and Management,Community Investment Budget,Training Expenses - Staff External Training (UK Based),08/07/2019,5263233,"12,500.00",Go Train Limited
Housing Revenue Account,HRA Expenditure,Supervision and Management,Community Investment Budget,Third Party Payments - Voluntary Associations,31/07/2019,5271255,"5,000.00",Osmani Trust
Housing Revenue Account,HRA Expenditure,Repairs and Maintenance,Openview,Repairs and Maintenance - Responsive - Fixed Site Overheads,01/07/2019,5239646,"2,500.00",Openview Security Solutions Ltd
Housing Revenue Account,No Service Specified,No Division Specified,Capital Schemes-Housing,Other External Fees - CDM Planning Supervisor,16/07/2019,5250967,529.20,Watts Group Limited
Housing Revenue Account,No Service Specified,No Division Specified,Capital Schemes-Housing,Other External Fees - CDM Planning Supervisor,16/07/2019,5250968,784.98,Watts Group Limited
Housing Revenue Account,No Service Specified,No Division Specified,Capital Schemes-Housing,Other External Fees - Structural Engineers Fees,10/07/2019,5246072,"1,600.00",Engineering Design Associates
Housing Revenue Account,No Service Specified,No Division Specified,New Supply - GLA Pipeline,Other External Fees - Consultants Fees,03/07/2019,5249993,"2,525.00",Bureau Veritas UK Ltd
Housing Revenue Account,No Service Specified,No Division Specified,New Supply - GLA Pipeline,Other External Fees - Consultants Fees,03/07/2019,5249994,"3,160.00",Bureau Veritas UK Ltd
Housing Revenue Account,No Service Specified,No Division Specified,New Supply - GLA Pipeline,Other External Fees - Consultants Fees,03/07/2019,5250032,"6,300.00",Bloom Procurement Services Limited
Housing Revenue Account,No Service Specified,No Division Specified,New Supply - GLA Pipeline,Other External Fees - Consultants Fees,26/07/2019,5266808,935.00,Paragon Acoustic Consultants Ltd
Housing Revenue Account,No Service Specified,No Division Specified,New Supply - 1-4-1 receipts - Hereford St/Locksley Estate,Other External Fees - Consultants Fees,01/07/2019,5246318,"2,004.11",Potter Raper & Partnership
Housing Revenue Account,No Service Specified,No Division Specified,New Supply - 1-4-1 receipts - Hereford St/Locksley Estate,Other External Fees - Consultants Fees,16/07/2019,5254296,"16,350.00",Network Rail
Housing Revenue Account,No Service Specified,No Division Specified,New Supply - 1-4-1 receipts - Hereford St/Locksley Estate,Other External Fees - Consultants Fees,26/07/2019,5258561,550.00,Macegreen Consulting Ltd
Housing Revenue Account,No Service Specified,No Division Specified,New Supply - 1-4-1 receipts - Hereford St/Locksley Estate,Other External Fees - Consultants Fees,26/07/2019,5265807,"5,504.10",Potter Raper & Partnership
Housing Revenue Account,No Service Specified,No Division Specified,New Supply - 1-4-1 receipts - Hereford St/Locksley Estate,Other External Fees - Consultants Fees,26/07/2019,5265808,"2,310.00",Potter Raper & Partnership
Housing Revenue Account,No Service Specified,No Division Specified,New Supply - 1-4-1 receipts - Baroness Rd/Jubilee St,Other External Fees - Consultants Fees,26/07/2019,5263298,550.00,Macegreen Consulting Ltd
Housing Revenue Account,No Service Specified,No Division Specified,New Supply - 1-4-1 receipts - Baroness Rd/Jubilee St,Other External Fees - Consultants Fees,26/07/2019,5263299,550.00,Macegreen Consulting Ltd
Housing Revenue Account,No Service Specified,No Division Specified,New Supply - 1-4-1 receipts - Baroness Rd/Jubilee St,Other External Fees - Consultants Fees,26/07/2019,5265805,"4,782.05",Potter Raper & Partnership
Housing Revenue Account,No Service Specified,No Division Specified,New Supply - 1-4-1 receipts - Baroness Rd/Jubilee St,Other External Fees - Consultants Fees,26/07/2019,5265806,"5,038.50",Potter Raper & Partnership
Housing Revenue Account,No Service Specified,No Division Specified,New Supply - 1-4-1 receipts,Other External Fees - Consultants Fees,29/07/2019,5265646,"5,250.00",Bloom Procurement Services Limited
Housing Revenue Account,No Service Specified,No Division Specified,Blackwall Reach,Acquisition of Land/Buildings - Buybacks,24/07/2019,5267186,580.00,SHERIFFS HIGH COURT ENFORCEMENT LTD
Housing Revenue Account,No Service Specified,No Division Specified,Housing Capital Pipeline (HRA),Other External Fees - Architects Fees,16/07/2019,5250913,588.09,Atkins Ltd
Housing Revenue Account,No Service Specified,No Division Specified,Housing Capital Pipeline (HRA),Other External Fees - Consultants Fees,05/07/2019,5241991,"6,938.40",Crofton
Housing Revenue Account,No Service Specified,No Division Specified,Housing Capital Pipeline (HRA),Other External Fees - Consultants Fees,01/07/2019,5242799,"1,500.00",Staton Cohen Ltd
Housing Revenue Account,No Service Specified,No Division Specified,Housing Capital Pipeline (HRA),Other External Fees - Consultants Fees,16/07/2019,5250045,"1,050.00",Syntegra Consulting Ltd
Housing Revenue Account,No Service Specified,No Division Specified,Housing Capital Pipeline (HRA),Other External Fees - Consultants Fees,22/07/2019,5256277,"2,500.00",Makespace Architects Ltd
Housing Revenue Account,No Service Specified,No Division Specified,Housing Capital Pipeline (HRA),Other External Fees - Consultants Fees,03/07/2019,5256290,750.00,NTR Planning Ltd
Housing Revenue Account,No Service Specified,No Division Specified,Housing Capital Pipeline (HRA),Other External Fees - Consultants Fees,26/07/2019,5257757,"3,600.00",Henley Halebrown Rorrison (HHbR) Ltd
Housing Revenue Account,No Service Specified,No Division Specified,Housing Capital Pipeline (HRA),Other External Fees - Consultants Fees,31/07/2019,5257768,"2,900.00",Aspire Community Works
Housing Revenue Account,No Service Specified,No Division Specified,Housing Capital Pipeline (HRA),Other External Fees - Consultants Fees,26/07/2019,5257932,"2,500.00",Renew Planning Ltd
Housing Revenue Account,No Service Specified,No Division Specified,Housing Capital Pipeline (HRA),Other External Fees - Consultants Fees,26/07/2019,5262919,"2,393.75",Bloom Procurement Services Limited
Housing Revenue Account,No Service Specified,No Division Specified,Housing Capital Pipeline (HRA),Other External Fees - Consultants Fees,29/07/2019,5267106,"2,250.00",Peter Marsh Consulting Ltd
Housing Revenue Account,No Service Specified,No Division Specified,Housing Capital Pipeline (HRA),Other External Fees - Other External Fees,26/07/2019,5262917,"6,825.00",Bloom Procurement Services Limited
Housing Revenue Account,HRA Income,Non-Dwelling Rents (Gross),CLI Shop Income,Services - Professional Fees - Valuation Fees,26/07/2019,5267566,500.00,SFP Property
Housing Revenue Account,HRA Income,Non-Dwelling Rents (Gross),CLI Shop Income,Services - Professional Fees - Valuation Fees,26/07/2019,5267567,500.00,SFP Property
Housing Revenue Account,HRA Income,Non-Dwelling Rents (Gross),CLI Shop Income,Services - Professional Fees - Valuation Fees,26/07/2019,5267568,675.00,SFP Property
Housing Revenue Account,HRA Income,Non-Dwelling Rents (Gross),CLI Shop Income,Services - Professional Fees - Valuation Fees,26/07/2019,5267569,500.00,SFP Property
Housing Revenue Account,HRA Income,Non-Dwelling Rents (Gross),CLI Shop Income,Services - Professional Fees - Valuation Fees,26/07/2019,5267631,"1,500.00",GVA T/A Avison Young
Housing Revenue Account,HRA Expenditure,Repairs and Maintenance,CLI Shop Repairs,Repairs and Maintenance - Responsive - Door Entry Systems,03/07/2019,5249801,800.00,Eales Shutters Ltd
Housing Revenue Account,HRA Expenditure,Repairs and Maintenance,CLI Shop Repairs,Repairs and Maintenance - Responsive - Electrical,24/07/2019,5255108,"4,365.00",Chamberlain Consulting LLP
Housing Revenue Account,HRA Expenditure,Repairs and Maintenance,CLI Shop Repairs,Repairs and Maintenance - Responsive - Repair & Maintenance,26/07/2019,5194193,"1,035.00",The Generator Company
Housing Revenue Account,HRA Expenditure,Repairs and Maintenance,CLI Shop Repairs,Services - Professional Fees - Burial Fees,01/07/2019,5256079,652.40,Phoenix Commercial Collections Ltd
Housing Revenue Account,HRA Income,Non-Dwelling Rents (Gross),CLI Other Buildings Inc,Electricity,22/07/2019,5267177,440.83,British Gas Business
Housing Revenue Account,HRA Expenditure,Repairs and Maintenance,CLI Community Buildings Repairs,Contract Cleaning,26/07/2019,5257791,"1,561.58",Wetton Cleaning Services LTD
Housing Revenue Account,HRA Expenditure,Repairs and Maintenance,CLI Community Buildings Repairs,Services - Professional Fees - Valuation Fees,16/07/2019,5251001,"3,500.00",Strutt & Parker LLP
Housing Revenue Account,HRA Expenditure,Repairs and Maintenance,CLI Other Building Repairs,Repairs and Maintenance - Responsive - Electrical,18/07/2019,5256914,"3,139.00",surelock security systems ltd
Housing Revenue Account,HRA Expenditure,Repairs and Maintenance,CLI Other Building Repairs,Services - Professional Fees - Security Fees,03/07/2019,5252448,"10,826.64",Manpower Direct UK
Housing Revenue Account,HRA Expenditure,Repairs and Maintenance,CLI Other Building Repairs,Services - Professional Fees - Security Fees,03/07/2019,5252452,"21,653.28",Manpower Direct UK
Housing Revenue Account,HRA Expenditure,Supervision and Management,CLI HRA Empty Properties expenditure,Electricity,01/07/2019,5256076,660.15,SOUTHERN ELECTRIC
Housing Revenue Account,HRA Expenditure,Supervision and Management,CLI HRA Empty Properties expenditure,Contract Cleaning,26/07/2019,5257968,520.40,Wetton Cleaning Services LTD
Housing Revenue Account,HRA Expenditure,Supervision and Management,CLI HRA Empty Properties expenditure,Services - Professional Fees - Security Fees,03/07/2019,5252433,"10,809.55",Manpower Direct UK
Housing Revenue Account,HRA Expenditure,Supervision and Management,CLI HRA Empty Properties expenditure,Services - Professional Fees - Security Fees,03/07/2019,5252449,"10,826.64",Manpower Direct UK
Housing Revenue Account,HRA Expenditure,Supervision and Management,CLI HRA Empty Properties expenditure,Services - Professional Fees - Security Fees,03/07/2019,5252451,"17,820.00",Manpower Direct UK
Resources,Corporate & Democratic Core,Corporate Management,Client Team,Services - Professional Fees - Financial Services Fees,10/07/2019,5246238,"30,000.00",London Councils
Resources,Corporate & Democratic Core,Corporate Management,People Resourcing,Services - Professional Fees - Financial Services Fees,18/07/2019,5265655,"5,516.00",Disclosure and Barring Service
Resources,Corporate & Democratic Core,Corporate Management,Chief Financial Officer Team,Computing - Consumables,08/07/2019,5246488,376.32,CCS Media Ltd
Resources,Corporate & Democratic Core,Corporate Management,Corp  Services  Finance Team,Staff Advertising,31/07/2019,5257858,"3,510.00",Penna PLC
Resources,Corporate & Democratic Core,Corporate Management,Corp  Services  Finance Team,Services - Professional Fees - Consultants Fees,19/07/2019,5266807,"3,520.58",Waje Consulting Ltd
Resources,Corporate & Democratic Core,Corporate Management,Corp  Services  Finance Team,Services - Professional Fees - Consultants Fees,24/07/2019,5267257,"7,750.00",Robertson Rumsey Limited
Resources,Central Services to the Public,Local Tax Collection,Local Taxation,Services - Professional Fees - Legal Fees/Expenses,01/07/2019,5246345,"1,270.00",J E Baring & Co
Resources,Central Services to the Public,Local Tax Collection,Local Taxation,Services - Professional Fees - Legal Fees/Expenses,16/07/2019,5250858,"11,334.00",J E Baring & Co
Resources,Central Services to the Public,Local Tax Collection,Local Taxation,Services - Professional Fees - Legal Fees/Expenses,01/07/2019,5254566,309.99,Rundle & Co LTD
Resources,Central Services to the Public,Local Tax Collection,Local Taxation,Services - Professional Fees - Legal Fees/Expenses,24/07/2019,5257741,"3,760.00",J E Baring & Co
Resources,Central Services to the Public,Local Tax Collection,Local Taxation,Services - Professional Fees - Legal Fees/Expenses,31/07/2019,5266414,-358.48,Newlyn PLC
Resources,Central Services to the Public,Local Tax Collection,NNDR & Community Charge,Services - Professional Fees - Consultants Fees,18/07/2019,5258504,"1,591.78",LG Futures Ltd
Resources,Central Services to the Public,Local Tax Collection,NNDR & Community Charge,Services - Professional Fees - Legal Fees/Expenses,01/07/2019,5254567,310.00,Rundle & Co LTD
Resources,Central Services to the Public,Local Tax Collection,NNDR & Community Charge,Services - Professional Fees - Legal Fees/Expenses,19/07/2019,5257732,"4,767.26",Rundle & Co LTD
Resources,Central Services to the Public,Local Tax Collection,NNDR & Community Charge,Services - Professional Fees - Legal Fees/Expenses,24/07/2019,5257742,"9,478.48",J E Baring & Co
Resources,Central Services to the Public,Local Tax Collection,NNDR & Community Charge,Services - Professional Fees - Legal Fees/Expenses,26/07/2019,5258612,"5,040.00",Masters Legal Costs Services LLP
Resources,Central Services to the Public,Local Tax Collection,NNDR & Community Charge,Computing - Purchase of Software,08/07/2019,5257805,297.00,Agilisys Professional Services
Resources,Central Services to the Public,Local Tax Collection,NNDR & Community Charge,Third Party Payments - Payments to Schools,29/07/2019,5271180,"1,425.00",London Borough Of Newham
Resources,Corporate & Democratic Core,Corporate Management,Financial Planning,Training Expenses - Staff External Training (UK Based),29/07/2019,5258505,390.00,LG Futures Ltd
Resources,Central Services to the Public,Local Tax Collection,Central Revenues,Services - Professional Fees - Legal Fees/Expenses,24/07/2019,5257740,"3,282.88",J E Baring & Co
Resources,Corporate & Democratic Core,Corporate Management,HR Learning and OD management,Third Party Payments - Payments to Schools,05/07/2019,5256103,700.00,London Borough Of Newham
Resources,Corporate & Democratic Core,Corporate Management,HR Learning and OD Corporate Training,Computing - Licences - Software,05/07/2019,5257948,"3,500.00",Callidus Software Inc.
Resources,Corporate & Democratic Core,Corporate Management,ICT Office,Computing - Maint Agreements - Maintenance,26/07/2019,5257923,"8,625.00",Kingsfield Computer Products Ltd
Resources,Corporate & Democratic Core,Corporate Management,ICT Transition,Services - Professional Fees - Legal Fees/Expenses,26/07/2019,5257755,"2,883.90",Bevan Brittan LLP Client Account
Resources,General Fund/Council Fund,Housing Benefits Administration,Central Benefits Team,Computing - Purchase of Software,22/07/2019,5256341,"59,519.00",CIVICA UK LTD
Resources,General Fund/Council Fund,Housing Benefits Administration,Central Benefits Team,Education & Training - Non Staff Tuition Fees,01/07/2019,5244256,291.00,Shelter
Resources,General Fund/Council Fund,Housing Benefits Administration,Central Benefits Team,Education & Training - Non Staff Tuition Fees,01/07/2019,5244256,"6,321.00",Shelter
Resources,General Fund/Council Fund,Housing Benefits Administration,Central Benefits Team,Payments to Private Contractors - Private Contractor,22/07/2019,5223709,454.55,Northgate Public Services (UK) LTD
Resources,General Fund/Council Fund,Housing Benefits Administration,Central Benefits Team,Payments to Private Contractors - Private Contractor,31/07/2019,5271567,"12,521.81",Northgate Public Services (UK) LTD
Resources,Corporate & Democratic Core,Corporate Management,Multi Functional Printers,Office Furniture/Equipment,18/07/2019,5206152,"5,216.18",Xerox Finance LTD
Resources,Corporate & Democratic Core,Corporate Management,Multi Functional Printers,Computing - Purchase of Software,16/07/2019,5250082,"2,402.05",Agilisys Professional Services
Resources,Corporate & Democratic Core,Corporate Management,Occupational Health,Services - Professional Fees - Consultants Fees,08/07/2019,5235202,"11,982.00",Health Management Ltd
Resources,Corporate & Democratic Core,Corporate Management,Occupational Health,Services - Professional Fees - Consultants Fees,19/07/2019,5255193,"1,062.00",Health Management Ltd
Resources,Corporate & Democratic Core,Corporate Management,Occupational Health,Services - Professional Fees - Consultants Fees,19/07/2019,5255194,"15,565.50",Health Management Ltd
Resources,Corporate & Democratic Core,Corporate Management,Occupational Health,Recreational Activities,26/07/2019,5263230,"3,205.85",Crystal Palace Physio Group
Resources,Corporate & Democratic Core,Corporate Management,People Resourcing,Staff Advertising,16/07/2019,5251024,"3,580.00",Penna PLC
Resources,Corporate & Democratic Core,Corporate Management,Chief Financial Officer Team,Services - Professional Fees - Consultants Fees,03/07/2019,5235148,"7,876.19",SOLACE ENTERPRISES
Resources,Corporate & Democratic Core,Corporate Management,Corp  Services  Finance Team,Services - Professional Fees - Consultants Fees,24/07/2019,5267239,"12,500.00",Grant Thornton UK LLP
Resources,Corporate & Democratic Core,Corporate Management,Corp  Services  Finance Team,Services - Professional Fees - Consultants Fees,24/07/2019,5267259,"2,000.00",Syzygy
Resources,Corporate & Democratic Core,Corporate Management,Internal Audit,Services - Professional Fees - Consultants Fees,22/07/2019,5254272,"11,040.00",BDO LLP
Resources,Corporate & Democratic Core,Corporate Management,Internal Audit,Services - Professional Fees - Consultants Fees,22/07/2019,5254273,"2,205.00",BDO LLP
Resources,Corporate & Democratic Core,Corporate Management,Internal Audit,Services - Professional Fees - Counsel's Fees,03/07/2019,5233954,350.00,Drystone Chambers
Resources,Corporate & Democratic Core,Corporate Management,Internal Audit,Services - Professional Fees - Counsel's Fees,05/07/2019,5249775,"1,000.00",Drystone Chambers
Resources,Corporate & Democratic Core,Corporate Management,Internal Audit,Services - Professional Fees - Counsel's Fees,22/07/2019,5257674,"1,500.00",Drystone Chambers
Resources,Corporate & Democratic Core,Corporate Management,Internal Audit,Services - Professional Fees - Counsel's Fees,19/07/2019,5266930,"6,575.00",5 Paper Buildings
Resources,Corporate & Democratic Core,Corporate Management,Internal Audit,Computing - Purchase of Software,10/07/2019,5246606,643.13,Agilisys Professional Services
Resources,Corporate & Democratic Core,Corporate Management,Internal Audit,Computing - Purchase of Software,19/07/2019,5252499,254.70,TAMESIDE METROPOLITAN BOROUGH COUNCIL (N
Resources,Corporate & Democratic Core,Corporate Management,Internal Audit,Subscriptions - Subscriptions to Associations,31/07/2019,5258408,373.75,HQN LTD
Resources,Corporate & Democratic Core,Corporate Management,Risk Management,Training Expenses - Staff External Training (UK Based),10/07/2019,5255179,900.00,Browne Jacobson LLP
Resources,Corporate & Democratic Core,Corporate Management,Insurance Trading Centre,Insurance Premiums - Motor Insurance,22/07/2019,5267027,"172,233.07",Zurich Municipal
Resources,Corporate & Democratic Core,Corporate Management,Insurance Trading Centre,Insurance Claims - Public Liability Insurance,18/07/2019,5258614,"5,600.00",Dorians Solicitors Ltd Client Account
Resources,Corporate & Democratic Core,Corporate Management,Insurance Trading Centre,Insurance Claims - Public Liability Insurance,18/07/2019,5258615,"2,991.60",Dorians Solicitors
Resources,Corporate & Democratic Core,Corporate Management,Insurance Trading Centre,Insurance Claims - Public Liability Insurance,18/07/2019,5266314,637.00,DWP CRU
Resources,Corporate & Democratic Core,Corporate Management,Insurance Trading Centre,Insurance Claims - Public Liability Insurance,18/07/2019,5266386,"10,541.00",Aegis Legal Limited
Resources,Corporate & Democratic Core,Corporate Management,Insurance Trading Centre,Insurance Claims - Public Liability Insurance,22/07/2019,5267159,"1,193.33",The Graham High Group Limited
Resources,Corporate & Democratic Core,Corporate Management,Insurance Trading Centre,Insurance Claims - Public Liability Insurance,24/07/2019,5267169,665.00,DWP CRU
Resources,Corporate & Democratic Core,Corporate Management,Insurance Trading Centre,Insurance Claims - Public Liability Insurance,26/07/2019,5270252,"5,156.00",Michael W Halsall Client Account
Resources,Central Services to the Public,Local Tax Collection,Local Taxation,Computing - Purchase of Software,26/07/2019,5256340,582.28,CIVICA UK LTD
Resources,Central Services to the Public,Local Tax Collection,Local Taxation,Computing - Purchase of Software,18/07/2019,5265163,"6,919.44",Northgate Public Services (UK) LTD
Resources,Central Services to the Public,Local Tax Collection,Local Taxation,Computing - Purchase of Software,26/07/2019,5265164,"7,472.45",Northgate Public Services (UK) LTD
Resources,Central Services to the Public,Local Tax Collection,Local Taxation,Computing - Purchase of Software,26/07/2019,5267627,"1,692.47",CIVICA UK LTD
Resources,Central Services to the Public,Local Tax Collection,NNDR & Community Charge,Computing - Purchase of Software,08/07/2019,5257804,469.00,Agilisys Professional Services
Resources,Corporate & Democratic Core,Corporate Management,Financial operations,Third Party Payments - Other Establishments,31/07/2019,5271178,272.95,Mulberry School for Girls
Resources,Corporate & Democratic Core,Corporate Management,Financial Transactions,Computing - Purchase of Software,31/07/2019,5271596,"2,676.00",Proactis Group Ltd
Resources,Corporate & Democratic Core,Corporate Management,Financial Transactions,Computing - Purchase of Software,31/07/2019,5271597,"2,351.40",Proactis Group Ltd
Resources,Corporate & Democratic Core,Corporate Management,Cashiers,Non Staff Transport Costs - Reimbursement,26/07/2019,5270242,"1,951.85",Jade Security Services
Resources,Corporate & Democratic Core,Corporate Management,Cashiers,Services - Professional Fees - Financial Services Fees,26/07/2019,5266446,810.00,Prepaid Financial Services Limited
Resources,Corporate & Democratic Core,Corporate Management,Payroll,Administration Charges - Administration Charges,17/07/2019,5265835,-767.50,Unison
Resources,Corporate & Democratic Core,Corporate Management,Payroll,Administration Charges - Administration Charges,22/07/2019,5267158,-764.54,Unison
Resources,Corporate & Democratic Core,Corporate Management,HR Specialist Services,Third Party Payments - Voluntary Associations,22/07/2019,5266965,"2,500.00",STONEWALL
Resources,Corporate & Democratic Core,Corporate Management,HR Learning and OD management,Training Expenses - Staff External Training (UK Based),05/07/2019,5257931,"3,275.00",New Media Warehouse T/A Synergy Learning
Resources,Corporate & Democratic Core,Corporate Management,HR Learning and OD Corporate Training,Training Expenses - Staff External Training (UK Based),22/07/2019,5252478,"1,430.00",NaKeD Development
Resources,Corporate & Democratic Core,Corporate Management,HR Learning and OD Corporate Training,Training Expenses - Staff External Training (UK Based),22/07/2019,5254297,480.00,Pulse First Aid Ltd
Resources,Corporate & Democratic Core,Corporate Management,HR Learning and OD Corporate Training,Training Expenses - Staff External Training (UK Based),22/07/2019,5254300,900.00,Pulse First Aid Ltd
Resources,Corporate & Democratic Core,Corporate Management,HR Learning and OD Corporate Training,Training Expenses - Staff External Training (UK Based),22/07/2019,5254301,600.00,Pulse First Aid Ltd
Resources,Corporate & Democratic Core,Corporate Management,HR Learning and OD Corporate Training,Training Expenses - Staff External Training (UK Based),22/07/2019,5254302,"1,700.00",Pulse First Aid Ltd
Resources,Corporate & Democratic Core,Corporate Management,HR Learning and OD Corporate Training,Training Expenses - Staff External Training (UK Based),22/07/2019,5254303,600.00,Pulse First Aid Ltd
Resources,Corporate & Democratic Core,Corporate Management,HR Learning and OD Corporate Training,Training Expenses - Staff External Training (UK Based),22/07/2019,5254304,480.00,Pulse First Aid Ltd
Resources,Corporate & Democratic Core,Corporate Management,HR Learning and OD Corporate Training,Training Expenses - Staff External Training (UK Based),22/07/2019,5254305,600.00,Pulse First Aid Ltd
Resources,Corporate & Democratic Core,Corporate Management,HR Learning and OD Corporate Training,Training Expenses - Staff External Training (UK Based),22/07/2019,5254306,600.00,Pulse First Aid Ltd
Resources,Corporate & Democratic Core,Corporate Management,HR Learning and OD Corporate Training,Training Expenses - Staff External Training (UK Based),22/07/2019,5254307,480.00,Pulse First Aid Ltd
Resources,Corporate & Democratic Core,Corporate Management,HR Learning and OD Corporate Training,Training Expenses - Staff External Training (UK Based),22/07/2019,5254308,600.00,Pulse First Aid Ltd
Resources,Corporate & Democratic Core,Corporate Management,HR Learning and OD Corporate Training,Training Expenses - Staff External Training (UK Based),22/07/2019,5254309,900.00,Pulse First Aid Ltd
Resources,Corporate & Democratic Core,Corporate Management,HR Learning and OD Corporate Training,Training Expenses - Staff External Training (UK Based),22/07/2019,5254310,600.00,Pulse First Aid Ltd
Resources,Corporate & Democratic Core,Corporate Management,HR Learning and OD Corporate Training,Training Expenses - Staff External Training (UK Based),22/07/2019,5254311,350.00,Pulse First Aid Ltd
Resources,Corporate & Democratic Core,Corporate Management,HR Learning and OD Corporate Training,Training Expenses - Staff External Training (UK Based),22/07/2019,5255750,"1,250.00",Stephen Lloyd Training
Resources,Corporate & Democratic Core,Corporate Management,HR Learning and OD Corporate Training,Training Expenses - Staff External Training (UK Based),26/07/2019,5256317,925.00,Passe-Partout Consulting Limited
Resources,Corporate & Democratic Core,Corporate Management,HR Learning and OD Corporate Training,Training Expenses - Staff External Training (UK Based),08/07/2019,5257930,"13,130.00",New Media Warehouse T/A Synergy Learning
Resources,Corporate & Democratic Core,Corporate Management,HR Learning and OD Corporate Training,Training Expenses - Staff External Training (UK Based),31/07/2019,5257949,480.00,Pulse First Aid Ltd
Resources,Corporate & Democratic Core,Corporate Management,HR Learning and OD Corporate Training,Training Expenses - Staff External Training (UK Based),31/07/2019,5257950,900.00,Pulse First Aid Ltd
Resources,Corporate & Democratic Core,Corporate Management,HR Learning and OD Corporate Training,Training Expenses - Staff External Training (UK Based),18/07/2019,5258712,979.50,Premier Life Skills LTD
Resources,Corporate & Democratic Core,Corporate Management,C & TR -Reprographics,Printing - External,05/07/2019,5256105,"75,536.16",London Borough Of Newham
Resources,Corporate & Democratic Core,Corporate Management,C & TR -Reprographics,Printing - External,08/07/2019,5256106,"43,387.23",London Borough Of Newham
Resources,Corporate & Democratic Core,Corporate Management,ICT Mosaic Project,Services - Professional Fees - Consultants Fees,24/07/2019,5257806,"8,712.00",Agilisys Professional Services
Resources,Corporate & Democratic Core,Corporate Management,ICT Mosaic Project,Services - Professional Fees - Consultants Fees,24/07/2019,5257807,"8,712.00",Agilisys Professional Services
Resources,Corporate & Democratic Core,Corporate Management,ICT Mosaic Project,Computing - Apportionment of Costs,24/07/2019,5257808,"12,672.00",Agilisys Professional Services
Resources,Corporate & Democratic Core,Corporate Management,ICT Office,Comms - Purchase of Equipment,19/07/2019,5256311,"11,182.67",Telefonica UK Limited
Resources,Corporate & Democratic Core,Corporate Management,ICT Office,Computing - Purchase of Software,16/07/2019,5250080,"1,083.88",Agilisys Professional Services
Resources,Corporate & Democratic Core,Corporate Management,ICT Office,Computing - Purchase of Software,24/07/2019,5256349,"6,240.00",Agilisys Professional Services
Resources,Corporate & Democratic Core,Corporate Management,ICT Office,Computing - Purchase of Software,24/07/2019,5256349,312.00,Agilisys Professional Services
Resources,Corporate & Democratic Core,Corporate Management,ICT Office,Computing - Purchase of Software,26/07/2019,5257958,464.09,Specialist Computer Centres PLC
Resources,Corporate & Democratic Core,Corporate Management,ICT Office,Computing - Purchase of Software,26/07/2019,5257959,"2,434.08",Specialist Computer Centres PLC
Resources,Corporate & Democratic Core,Corporate Management,THH - Rechargable Work,Services - Professional Fees - Consultants Fees,16/07/2019,5250084,"3,546.00",Agilisys Professional Services
Resources,Corporate & Democratic Core,Corporate Management,THH - Rechargable Work,Services - Professional Fees - Consultants Fees,16/07/2019,5250094,311.99,Agilisys Professional Services
Resources,Corporate & Democratic Core,Corporate Management,ICT Transition,Services - Professional Fees - Consultants Fees,16/07/2019,5250093,"2,364.00",Agilisys Professional Services
Resources,Corporate & Democratic Core,Corporate Management,ICT PArtnership,Payments to Private Contractors - Private Contractor,22/07/2019,5266797,"7,350.00",Firmstep Ltd
Resources,Corporate & Democratic Core,Corporate Management,ICT PArtnership,Payments to Private Contractors - Private Contractor,26/07/2019,5270229,"17,831.50",Agilisys Professional Services
Resources,Corporate & Democratic Core,Corporate Management,ICT PArtnership,Payments to Private Contractors - Private Contractor,26/07/2019,5270229,"8,740.00",Agilisys Professional Services
Resources,Corporate & Democratic Core,Corporate Management,ICT PArtnership,Payments to Private Contractors - Private Contractor,26/07/2019,5270229,"21,943.18",Agilisys Professional Services
Resources,Corporate & Democratic Core,Corporate Management,ICT PArtnership,Payments to Private Contractors - Private Contractor,26/07/2019,5270229,"2,564.77",Agilisys Professional Services
Resources,Corporate & Democratic Core,Corporate Management,ICT PArtnership,Payments to Private Contractors - Private Contractor,26/07/2019,5270229,"23,351.94",Agilisys Professional Services
Resources,Corporate & Democratic Core,Corporate Management,ICT PArtnership,Payments to Private Contractors - Private Contractor,26/07/2019,5270229,"407,993.41",Agilisys Professional Services
Resources,Corporate & Democratic Core,Corporate Management,ICT Returned Contracts,Services - Professional Fees - Financial Services Fees,22/07/2019,5266837,630.00,NCC Services Limited
Resources,Corporate & Democratic Core,Corporate Management,ICT Returned Contracts,Services - Professional Fees - Financial Services Fees,22/07/2019,5266838,620.00,NCC Services Limited
Resources,Corporate & Democratic Core,Corporate Management,ICT Returned Contracts,Services - Professional Fees - Financial Services Fees,24/07/2019,5267275,630.00,NCC Services Limited
Resources,Corporate & Democratic Core,Corporate Management,ICT Returned Contracts,Computing - Purchase of Software,24/07/2019,5255780,"18,900.00",IDOX Software LTD
Resources,Corporate & Democratic Core,Corporate Management,ICT Returned Contracts,Computing - Purchase of Software,08/07/2019,5256264,"18,324.00",QUALITY EDUCATION SOLUTIONS LTD
Resources,Corporate & Democratic Core,Corporate Management,ICT Returned Contracts,Payments to Private Contractors - Other Contractors,03/07/2019,5246199,"4,105.26",Softcat PLC
Resources,Corporate & Democratic Core,Corporate Management,ICT Returned Contracts,Payments to Private Contractors - Other Contractors,10/07/2019,5249776,560.00,RM Education PLC
Resources,Corporate & Democratic Core,Corporate Management,ICT Returned Contracts,Payments to Private Contractors - Other Contractors,29/07/2019,5249777,-560.00,RM Education PLC
Resources,Corporate & Democratic Core,Corporate Management,ICT Returned Contracts,Payments to Private Contractors - Other Contractors,16/07/2019,5254198,"20,000.00",Northgate Public Services (UK) LTD
Resources,Corporate & Democratic Core,Corporate Management,ICT Returned Contracts,Payments to Private Contractors - Other Contractors,29/07/2019,5256821,"2,927.96",Kappa Lambda Squared LTD
Resources,Corporate & Democratic Core,Corporate Management,ICT Returned Contracts,Payments to Private Contractors - Other Contractors,29/07/2019,5258811,"16,975.00",RM Education PLC
Resources,Corporate & Democratic Core,Corporate Management,ICT Returned Contracts,Payments to Private Contractors - Other Contractors,17/07/2019,5263166,"10,532.06",Northgate Public Services (UK) LTD
Resources,Corporate & Democratic Core,Corporate Management,ICT Returned Contracts,Payments to Private Contractors - Other Contractors,22/07/2019,5266964,"124,523.00",Inform Communications PLC
Resources,Corporate & Democratic Core,Corporate Management,ICT Returned Contracts,Payments to Private Contractors - Other Contractors,31/07/2019,5266966,"35,600.00",Northgate Public Services (UK) LTD
Resources,Corporate & Democratic Core,Corporate Management,ICT Returned Contracts,Payments to Private Contractors - Other Contractors,24/07/2019,5267532,"12,004.00",Oracle
Resources,Corporate & Democratic Core,Corporate Management,ICT Returned Contracts,Payments to Private Contractors - Other Contractors,24/07/2019,5267533,"14,619.51",Oracle
Resources,Corporate & Democratic Core,Corporate Management,ICT Returned Contracts,Payments to Private Contractors - Other Contractors,31/07/2019,5271323,"147,272.60",Heywood LTD
Resources,Corporate & Democratic Core,Corporate Management,Network Transformation,Services - Professional Fees - Consultants Fees,31/07/2019,5250067,"2,758.00",Agilisys Professional Services
Resources,Corporate & Democratic Core,Corporate Management,Network Transformation,Services - Professional Fees - Consultants Fees,16/07/2019,5250089,"11,917.50",Agilisys Professional Services
Resources,Corporate & Democratic Core,Corporate Management,Network Transformation,Services - Professional Fees - Consultants Fees,26/07/2019,5270302,"1,500.00",Gowling WLG (UK) LLP
Resources,Corporate & Democratic Core,Corporate Management,Network Transformation,Services - Professional Fees - Consultants Fees,29/07/2019,5271149,"1,500.00",Gowling WLG (UK) LLP
Resources,Corporate & Democratic Core,Corporate Management,Network Transformation,Computing - Purchase of Hardware,10/07/2019,5246233,654.00,VMS Network Cabling Ltd
Resources,Corporate & Democratic Core,Corporate Management,Network Transformation,Computing - Purchase of Hardware,26/07/2019,5256331,660.77,VMS Network Cabling Ltd
Resources,Corporate & Democratic Core,Corporate Management,Cloud Migration,Services - Professional Fees - Consultants Fees,24/07/2019,5250068,"18,335.22",Agilisys Professional Services
Resources,Corporate & Democratic Core,Corporate Management,Cloud Migration,Services - Professional Fees - Consultants Fees,24/07/2019,5250070,"14,648.49",Agilisys Professional Services
Resources,Corporate & Democratic Core,Corporate Management,Cloud Migration,Services - Professional Fees - Consultants Fees,31/07/2019,5250072,"6,092.84",Agilisys Professional Services
Resources,Corporate & Democratic Core,Corporate Management,Cloud Migration,Services - Professional Fees - Consultants Fees,18/07/2019,5265183,473.00,Firmstep Ltd
Resources,Corporate & Democratic Core,Corporate Management,Cloud Migration,Computing - Purchase of Software,18/07/2019,5265183,"3,150.00",Firmstep Ltd
Resources,Corporate & Democratic Core,Corporate Management,ICT Project Team,Services - Professional Fees - Consultants Fees,10/07/2019,5246202,"61,826.75",Bloom Procurement Services Limited
Resources,Corporate & Democratic Core,Corporate Management,Desktop Transformation,Services - Professional Fees - Consultants Fees,16/07/2019,5250066,"12,695.25",Agilisys Professional Services
Resources,Corporate & Democratic Core,Corporate Management,Desktop Transformation,Services - Professional Fees - Consultants Fees,16/07/2019,5250069,"1,379.00",Agilisys Professional Services
Resources,Corporate & Democratic Core,Corporate Management,Desktop Transformation,Services - Professional Fees - Consultants Fees,16/07/2019,5250071,"3,053.50",Agilisys Professional Services
Resources,Corporate & Democratic Core,Corporate Management,Desktop Transformation,Services - Professional Fees - Consultants Fees,16/07/2019,5250074,"9,922.25",Agilisys Professional Services
Resources,Corporate & Democratic Core,Corporate Management,Desktop Transformation,Services - Professional Fees - Consultants Fees,16/07/2019,5250993,"2,100.00",Agilisys Professional Services
Resources,Corporate & Democratic Core,Corporate Management,Desktop Transformation,Services - Professional Fees - Consultants Fees,22/07/2019,5255198,"6,950.00",Corporate Project Solutions Ltd
Resources,Corporate & Democratic Core,Corporate Management,Desktop Transformation,Computing - Purchase of Software,16/07/2019,5250078,689.50,Agilisys Professional Services
Resources,Corporate & Democratic Core,Corporate Management,Desktop Transformation,Computing - Purchase of Software,16/07/2019,5250992,"7,780.50",Agilisys Professional Services
Resources,Corporate & Democratic Core,Corporate Management,Desktop Transformation,Computing - Purchase of Software,16/07/2019,5255229,"26,301.75",Agilisys Professional Services
Resources,Corporate & Democratic Core,Corporate Management,Desktop Transformation,Computing - Purchase of Software,24/07/2019,5256350,"4,389.00",Agilisys Professional Services
Resources,Corporate & Democratic Core,Corporate Management,Desktop Transformation,Computing - Purchase of Software,31/07/2019,5271655,"160,289.30",Agilisys Professional Services
Resources,No Service Specified,No Division Specified,"Resources - Capital Works		",Other External Fees - Consultants Fees,17/07/2019,5255683,275.00,Pellings LLP
Resources,No Service Specified,No Division Specified,"Resources - Capital Works		",Other External Fees - Consultants Fees,05/07/2019,5256201,"9,549.30",Rainbow Office Design Ltd
Resources,No Service Specified,No Division Specified,"Resources - Capital Works		",Other External Fees - Consultants Fees,26/07/2019,5256296,"7,240.00",Capital Property & Construction  Consultants  Ltd
Resources,No Service Specified,No Division Specified,"Resources - Capital Works		",Other External Fees - Other External Fees,16/07/2019,5254286,"5,650.00",Interior Service Limited
Resources,No Service Specified,No Division Specified,"Resources - Capital Works		",Other External Fees - Other External Fees,26/07/2019,5258415,"12,090.06",Rainbow Office Design Ltd
Resources,No Service Specified,No Division Specified,"Resources - Capital Works		",Building Works - Main Works,16/07/2019,5246068,"5,110.00",JC Coster (Metalworks) Ltd
Resources,Corporate & Democratic Core,Corporate Management,Consultancy Central Costs,Subscriptions - Associations,03/07/2019,5245734,"6,930.00",university of bedfordshire
Resources,Cultural and Related Services,Library Service,Idea Store Management,Comms - Courier,08/07/2019,5242705,973.33,Inline removals & storage ltd
Resources,Cultural and Related Services,Library Service,Idea Store Management,Computing - Purchase of Software,24/07/2019,5256347,807.00,Boxspaced Networks Ltd
Resources,Cultural and Related Services,Library Service,Bibliographical Service,Books - General Purchases,01/07/2019,5238442,735.61,Askews and Holts Library Services Ltd
Resources,Cultural and Related Services,Library Service,Bibliographical Service,Books - General Purchases,01/07/2019,5238444,608.50,Askews and Holts Library Services Ltd
Resources,Cultural and Related Services,Library Service,Bibliographical Service,Books - General Purchases,01/07/2019,5238445,530.02,Askews and Holts Library Services Ltd
Resources,Cultural and Related Services,Library Service,Bibliographical Service,Books - General Purchases,01/07/2019,5238451,367.12,Askews and Holts Library Services Ltd
Resources,Cultural and Related Services,Library Service,Bibliographical Service,Books - General Purchases,01/07/2019,5238452,817.53,Askews and Holts Library Services Ltd
Resources,Cultural and Related Services,Library Service,Bibliographical Service,Books - General Purchases,01/07/2019,5238453,689.00,Askews and Holts Library Services Ltd
Resources,Cultural and Related Services,Library Service,Bibliographical Service,Books - General Purchases,01/07/2019,5238454,701.78,Askews and Holts Library Services Ltd
Resources,Cultural and Related Services,Library Service,Bibliographical Service,Books - General Purchases,01/07/2019,5238456,408.06,Askews and Holts Library Services Ltd
Resources,Cultural and Related Services,Library Service,Bibliographical Service,Books - General Purchases,01/07/2019,5238457,718.11,Askews and Holts Library Services Ltd
Resources,Cultural and Related Services,Library Service,Bibliographical Service,Books - General Purchases,01/07/2019,5238693,712.68,Askews and Holts Library Services Ltd
Resources,Cultural and Related Services,Library Service,Bibliographical Service,Books - General Purchases,03/07/2019,5239737,255.06,Askews and Holts Library Services Ltd
Resources,Cultural and Related Services,Library Service,Bibliographical Service,Books - General Purchases,03/07/2019,5241885,730.29,Peters Bookselling Services
Resources,Cultural and Related Services,Library Service,Bibliographical Service,Books - General Purchases,05/07/2019,5242108,539.17,Askews and Holts Library Services Ltd
Resources,Cultural and Related Services,Library Service,Bibliographical Service,Books - General Purchases,08/07/2019,5242531,625.94,Askews and Holts Library Services Ltd
Resources,Cultural and Related Services,Library Service,Bibliographical Service,Books - General Purchases,08/07/2019,5242532,350.05,Askews and Holts Library Services Ltd
Resources,Cultural and Related Services,Library Service,Bibliographical Service,Books - General Purchases,08/07/2019,5242534,743.75,Askews and Holts Library Services Ltd
Resources,Cultural and Related Services,Library Service,Bibliographical Service,Books - General Purchases,08/07/2019,5242535,698.06,Askews and Holts Library Services Ltd
Resources,Cultural and Related Services,Library Service,Bibliographical Service,Books - General Purchases,08/07/2019,5242536,729.58,Askews and Holts Library Services Ltd
Resources,Cultural and Related Services,Library Service,Bibliographical Service,Books - General Purchases,08/07/2019,5242537,673.59,Askews and Holts Library Services Ltd
Resources,Cultural and Related Services,Library Service,Bibliographical Service,Books - General Purchases,08/07/2019,5242539,394.93,Askews and Holts Library Services Ltd
Resources,Cultural and Related Services,Library Service,Bibliographical Service,Books - General Purchases,08/07/2019,5242540,664.55,Askews and Holts Library Services Ltd
Resources,Cultural and Related Services,Library Service,Bibliographical Service,Books - General Purchases,08/07/2019,5242541,510.13,Askews and Holts Library Services Ltd
Resources,Cultural and Related Services,Library Service,Bibliographical Service,Books - General Purchases,08/07/2019,5242544,264.95,Askews and Holts Library Services Ltd
Resources,Cultural and Related Services,Library Service,Bibliographical Service,Books - General Purchases,08/07/2019,5242878,426.39,Askews and Holts Library Services Ltd
Resources,Cultural and Related Services,Library Service,Bibliographical Service,Books - General Purchases,08/07/2019,5242879,281.22,Askews and Holts Library Services Ltd
Resources,Cultural and Related Services,Library Service,Bibliographical Service,Books - General Purchases,08/07/2019,5242881,772.42,Peters Bookselling Services
Resources,Cultural and Related Services,Library Service,Bibliographical Service,Books - General Purchases,08/07/2019,5242882,826.79,Peters Bookselling Services
Resources,Cultural and Related Services,Library Service,Bibliographical Service,Books - General Purchases,08/07/2019,5242883,464.53,Peters Bookselling Services
Resources,Cultural and Related Services,Library Service,Bibliographical Service,Books - General Purchases,08/07/2019,5242884,824.65,Peters Bookselling Services
Resources,Cultural and Related Services,Library Service,Bibliographical Service,Books - General Purchases,08/07/2019,5242885,459.97,Peters Bookselling Services
Resources,Cultural and Related Services,Library Service,Bibliographical Service,Books - General Purchases,08/07/2019,5242886,474.96,Askews and Holts Library Services Ltd
Resources,Cultural and Related Services,Library Service,Bibliographical Service,Books - General Purchases,08/07/2019,5242890,274.38,Peters Bookselling Services
Resources,Cultural and Related Services,Library Service,Bibliographical Service,Books - General Purchases,16/07/2019,5245714,703.21,Askews and Holts Library Services Ltd
Resources,Cultural and Related Services,Library Service,Bibliographical Service,Books - General Purchases,16/07/2019,5245716,528.14,Askews and Holts Library Services Ltd
Resources,Cultural and Related Services,Library Service,Bibliographical Service,Books - General Purchases,16/07/2019,5245718,664.89,Askews and Holts Library Services Ltd
Resources,Cultural and Related Services,Library Service,Bibliographical Service,Books - General Purchases,16/07/2019,5245720,265.45,Askews and Holts Library Services Ltd
Resources,Cultural and Related Services,Library Service,Bibliographical Service,Books - General Purchases,16/07/2019,5245721,729.08,Peters Bookselling Services
Resources,Cultural and Related Services,Library Service,Bibliographical Service,Books - General Purchases,16/07/2019,5245722,710.53,Askews and Holts Library Services Ltd
Resources,Cultural and Related Services,Library Service,Bibliographical Service,Books - General Purchases,16/07/2019,5246325,269.75,Peters Bookselling Services
Resources,Cultural and Related Services,Library Service,Bibliographical Service,Books - General Purchases,16/07/2019,5246331,307.67,Askews and Holts Library Services Ltd
Resources,Cultural and Related Services,Library Service,Bibliographical Service,Books - General Purchases,16/07/2019,5246333,373.90,Askews and Holts Library Services Ltd
Resources,Cultural and Related Services,Library Service,Bibliographical Service,Books - General Purchases,16/07/2019,5246720,339.01,Askews and Holts Library Services Ltd
Resources,Cultural and Related Services,Library Service,Bibliographical Service,Books - General Purchases,17/07/2019,5250860,708.36,Askews and Holts Library Services Ltd
Resources,Cultural and Related Services,Library Service,Bibliographical Service,Books - General Purchases,17/07/2019,5250867,449.37,Askews and Holts Library Services Ltd
Resources,Cultural and Related Services,Library Service,Bibliographical Service,Books - General Purchases,17/07/2019,5250870,763.51,Peters Bookselling Services
Resources,Cultural and Related Services,Library Service,Bibliographical Service,Books - General Purchases,22/07/2019,5252609,581.20,Peters Bookselling Services
Resources,Cultural and Related Services,Library Service,Bibliographical Service,Books - General Purchases,22/07/2019,5252614,276.39,Askews and Holts Library Services Ltd
Resources,Cultural and Related Services,Library Service,Bibliographical Service,Books - General Purchases,22/07/2019,5252618,258.46,Askews and Holts Library Services Ltd
Resources,Cultural and Related Services,Library Service,Bibliographical Service,Books - General Purchases,22/07/2019,5254038,311.87,Askews and Holts Library Services Ltd
Resources,Cultural and Related Services,Library Service,Bibliographical Service,Books - General Purchases,22/07/2019,5254039,251.07,Askews and Holts Library Services Ltd
Resources,Cultural and Related Services,Library Service,Bibliographical Service,Books - General Purchases,24/07/2019,5255927,313.17,Peters Bookselling Services
Resources,Cultural and Related Services,Library Service,Bibliographical Service,Books - General Purchases,29/07/2019,5257125,521.27,Askews and Holts Library Services Ltd
Resources,Cultural and Related Services,Library Service,Bibliographical Service,Books - General Purchases,29/07/2019,5257128,371.39,Peters Bookselling Services
Resources,Cultural and Related Services,Library Service,Bibliographical Service,Books - General Purchases,29/07/2019,5257129,399.13,Peters Bookselling Services
Resources,Cultural and Related Services,Library Service,Bibliographical Service,Books - General Purchases,29/07/2019,5257131,345.11,Peters Bookselling Services
Resources,Cultural and Related Services,Library Service,Bibliographical Service,Books - General Purchases,29/07/2019,5257132,"1,202.56",Peters Bookselling Services
Resources,Cultural and Related Services,Library Service,Bibliographical Service,Books - General Purchases,29/07/2019,5257143,252.66,Askews and Holts Library Services Ltd
Resources,Cultural and Related Services,Library Service,Bibliographical Service,Books - General Purchases,31/07/2019,5258075,511.61,Askews and Holts Library Services Ltd
Resources,Cultural and Related Services,Library Service,Bibliographical Service,Books - General Purchases,31/07/2019,5258077,254.43,Askews and Holts Library Services Ltd
Resources,Cultural and Related Services,Library Service,Bibliographical Service,Books - General Purchases,31/07/2019,5258078,"1,481.60",Peters Bookselling Services
Resources,Cultural and Related Services,Library Service,Bibliographical Service,Books - General Purchases,31/07/2019,5258086,"2,189.34",Peters Bookselling Services
Resources,Cultural and Related Services,Library Service,Bibliographical Service,Third Party Payments - Other Establishments,24/07/2019,5256955,"7,925.00",Bridgeall Libraries Ltd
Resources,Cultural and Related Services,Library Service,Idea Store - Watney Market,Services - Professional Fees - Security Fees,03/07/2019,5252442,"4,360.73",Manpower Direct UK
Resources,Cultural and Related Services,Library Service,Local History/Archive,Photocopier Charges - Consumables,19/07/2019,5255212,417.96,INSIGHT DIRECT (UK) LTD
Resources,Cultural and Related Services,Library Service,Local History/Archive,Computing - Purchase of Hardware,24/07/2019,5267013,380.99,INSIGHT DIRECT (UK) LTD
Resources,Cultural and Related Services,Library Service,Local History/Archive,Computing - Purchase of Hardware,24/07/2019,5267013,381.99,INSIGHT DIRECT (UK) LTD
Resources,Cultural and Related Services,Library Service,Local History/Archive,Computing - Purchase of Hardware,24/07/2019,5267013,259.99,INSIGHT DIRECT (UK) LTD
Resources,Cultural and Related Services,Library Service,Local History/Archive,Computing - Purchase of Hardware,24/07/2019,5267013,382.99,INSIGHT DIRECT (UK) LTD
Resources,Cultural and Related Services,Library Service,Idea Store - whitechapel,Stationery,24/07/2019,5258528,277.00,ESPO
Resources,Cultural and Related Services,Library Service,Idea Store - whitechapel,Services - Professional Fees - Security Fees,03/07/2019,5252443,273.40,Manpower Direct UK
Resources,Cultural and Related Services,Library Service,Idea Store - whitechapel,Services - Professional Fees - Security Fees,03/07/2019,5252444,"13,294.08",Manpower Direct UK
Resources,Cultural and Related Services,Library Service,Idea Store - Bow,Services - Professional Fees - Security Fees,03/07/2019,5252440,"4,230.87",Manpower Direct UK
Resources,Cultural and Related Services,Library Service,Idea Store - Chrisp Street,Services - Professional Fees - Security Fees,03/07/2019,5252441,389.60,Manpower Direct UK
Resources,Cultural and Related Services,Library Service,Idea Store - Chrisp Street,Services - Professional Fees - Security Fees,10/07/2019,5252454,"4,644.38",Manpower Direct UK
Resources,Cultural and Related Services,Library Service,Idea Store - ICT and Capital Projects,Office Furniture/Equipment,19/07/2019,5256954,"2,460.00",Unique Office Solutions
Resources,Cultural and Related Services,Library Service,Idea Store - ICT and Capital Projects,Office Furniture/Equipment,19/07/2019,5256954,560.70,Unique Office Solutions
Resources,Cultural and Related Services,Library Service,Idea Store - ICT and Capital Projects,Computing - Purchase of Hardware,19/07/2019,5252486,298.24,VMS Network Cabling Ltd
Resources,Education Services,Other Education and Community Budget,Creative & Performing Arts,Contract Cleaning,29/07/2019,5262916,350.00,Creative Events
Resources,Education Services,Other Education and Community Budget,Creative & Performing Arts,Storage Costs,24/07/2019,5246621,274.00,ESPO
Resources,Education Services,Other Education and Community Budget,Creative & Performing Arts,Educational/Training Supplies - Arts & Crafts,10/07/2019,5246496,260.52,Specialist Crafts LTD
Resources,Education Services,Other Education and Community Budget,MIS - Data,Services - Professional Fees - Consultants Fees,16/07/2019,5250075,"6,414.25",Agilisys Professional Services
Resources,Education Services,Other Education and Community Budget,MIS - Exams,Educational/Training Supplies - Resources,10/07/2019,5242740,360.00,Ascentis
Resources,Education Services,Other Education and Community Budget,MIS - Exams,Educational/Training Supplies - Resources,10/07/2019,5244196,400.00,Ascentis
Resources,No Service Specified,No Division Specified,Balance Sheet,Employees Debtor - STL Advances,17/07/2019,5258358,"7,879.62",ABELLIO EAST ANGLIA LTD
Resources,No Service Specified,No Division Specified,Balance Sheet,Employees Debtor - STL Advances,17/07/2019,5258359,"10,063.62",ABELLIO EAST ANGLIA LTD
Resources,No Service Specified,No Division Specified,Balance Sheet,Employees Debtor - STL Advances,17/07/2019,5265830,"9,645.43",ABELLIO EAST ANGLIA LTD
Resources,No Service Specified,No Division Specified,Balance Sheet,Employees Debtor - STL Advances,22/07/2019,5267146,345.01,ABELLIO EAST ANGLIA LTD
Resources,No Service Specified,No Division Specified,Balance Sheet,Employees Debtor - STL Advances,24/07/2019,5267681,"1,053.91",ABELLIO EAST ANGLIA LTD
Resources,No Service Specified,No Division Specified,Balance Sheet,Sundry Debtors - G.M.B.,17/07/2019,5265833,"3,820.60",GMB
Resources,No Service Specified,No Division Specified,Balance Sheet,Sundry Debtors - G.M.B.,22/07/2019,5267149,"3,798.94",GMB
Resources,No Service Specified,No Division Specified,Balance Sheet,Sundry Debtors - UNISON,17/07/2019,5265835,"30,699.81",Unison
Resources,No Service Specified,No Division Specified,Balance Sheet,Sundry Debtors - UNISON,22/07/2019,5267158,"30,581.70",Unison
Resources,No Service Specified,No Division Specified,Balance Sheet,Sundry Debtors - UNITE,17/07/2019,5265834,"1,577.25",TGWU
Resources,No Service Specified,No Division Specified,Balance Sheet,Sundry Debtors - UNITE,22/07/2019,5267156,"1,577.25",TGWU
Resources,No Service Specified,No Division Specified,Balance Sheet,Sundry Debtors - Cashiers Suspense - Unidentified Cash Receipts,18/07/2019,5266391,"3,882.50",HILL PARTNERSHIPS LTD
Resources,No Service Specified,No Division Specified,Balance Sheet,Inter-company Account - Due from THH - External Payments,29/07/2019,5270291,"6,000.00",CEL Solicitors
Resources,No Service Specified,No Division Specified,Balance Sheet,SX3 AR Control - SX3 Debtors System,26/07/2019,5256071,"7,708.47",Acenden Limited
Resources,No Service Specified,No Division Specified,Balance Sheet,Energy Debtors - Electricity,29/07/2019,5224047,355.88,British Gas Business
Resources,No Service Specified,No Division Specified,Balance Sheet,Energy Debtors - Electricity,29/07/2019,5242113,393.01,British Gas Business
Resources,No Service Specified,No Division Specified,Balance Sheet,Energy Debtors - Electricity,29/07/2019,5270303,487.08,British Gas Business
Resources,No Service Specified,No Division Specified,Balance Sheet,Sundry Creditors - GLC Fund,17/07/2019,5265831,"8,483.67",LONDON PENSIONS FUND AUTHORITY
Resources,No Service Specified,No Division Specified,Balance Sheet,Sundry Creditors - GLC Fund,17/07/2019,5265832,"11,977.66",LONDON PENSIONS FUND AUTHORITY
Resources,No Service Specified,No Division Specified,Balance Sheet,Sundry Creditors - LPFA-Ers Lump Sum,17/07/2019,5265831,"5,543.17",LONDON PENSIONS FUND AUTHORITY
Resources,No Service Specified,No Division Specified,Balance Sheet,Sundry Creditors - LPFA-Opt Out Schs Payment,17/07/2019,5265832,906.91,LONDON PENSIONS FUND AUTHORITY
Resources,No Service Specified,No Division Specified,Balance Sheet,System Interface Control Account - Comensura,01/07/2019,11373449,"666,618.17",Adecco UK Ltd
Resources,No Service Specified,No Division Specified,Balance Sheet,System Interface Control Account - Comensura,05/07/2019,11376584,"656,829.24",Adecco UK Ltd
Resources,No Service Specified,No Division Specified,Balance Sheet,System Interface Control Account - Comensura,19/07/2019,11383215,"638,054.40",Adecco UK Ltd
Resources,No Service Specified,No Division Specified,Balance Sheet,System Interface Control Account - Comensura,26/07/2019,11386611,"609,287.83",Adecco UK Ltd
Resources,No Service Specified,No Division Specified,Balance Sheet,Capital Receipts Reserve HRA - Pooling Payments,24/07/2019,5267204,"434,241.57",COMMUNITIES AND LOCAL GOVERMENT
Corporate Costs and Central Financing,Corporate & Democratic Core,Corporate Management,Corporate Budget,Computing - Purchase of Software,26/07/2019,5266803,"5,619.78",Firesouls Ltd
Corporate Costs and Central Financing,Corporate & Democratic Core,Democratic Representation & Management,Pension Fund Management,Pension Fund Management Exps - Legal & General,24/07/2019,5258517,"3,123.52",Legal & General
Corporate Costs and Central Financing,Corporate & Democratic Core,Democratic Representation & Management,Pension Fund Management,Pension Fund Management Exps - Legal & General,24/07/2019,5258518,"4,130.92",Legal & General
Corporate Costs and Central Financing,Corporate & Democratic Core,Democratic Representation & Management,Pension Fund Management,Pension Fund Management Exps - Legal & General,22/07/2019,5258519,"4,337.91",Legal & General
Corporate Costs and Central Financing,Corporate & Democratic Core,Democratic Representation & Management,Pension Fund Management,Pension Fund Management Exps - Legal & General,22/07/2019,5258520,"4,345.90",Legal & General
Corporate Costs and Central Financing,Corporate & Democratic Core,Democratic Representation & Management,Pension Fund Management,Pension Fund Management Exps - Legal & General,22/07/2019,5258521,"2,315.70",Legal & General
Corporate Costs and Central Financing,Corporate & Democratic Core,Democratic Representation & Management,Pension Fund Management,Pension Fund Management Exps - Legal & General,22/07/2019,5258522,"13,413.50",Legal & General
Corporate Costs and Central Financing,Corporate & Democratic Core,Democratic Representation & Management,Pension Fund Management,Pension Fund Management Exps - Legal & General,22/07/2019,5258523,"39,415.22",Legal & General
Corporate Costs and Central Financing,Corporate & Democratic Core,Democratic Representation & Management,Pension Fund Management,Pension Fund Management Exps - Legal & General,22/07/2019,5258524,"21,301.77",Legal & General
Corporate Costs and Central Financing,Corporate & Democratic Core,Democratic Representation & Management,Pension Fund Management,Pension Fund Management Exps - Legal & General,22/07/2019,5258525,908.16,Legal & General
Corporate Costs and Central Financing,Corporate & Democratic Core,Democratic Representation & Management,Pension Fund Management,Administration Expenses - Chair of Pension Board,24/07/2019,5256279,"3,500.00",MJ Hudson Investment Advisers Limited
Health Adults and Community,Adult Social Care,Physical Support - older people (65+),Generic Care Packages NE Team -PS,Social Care - Direct Payments,24/07/2019,5268151,"2,204.55",Redacted Section 40 FOI ACT
Health Adults and Community,Adult Social Care,Sensory Support - older people (65+),Public Health-LSCTP Project,Services - Professional Fees - Consultants Fees,18/07/2019,5257767,"2,250.00",Redacted Section 40 FOI ACT
Health Adults and Community,Adult Social Care,Sensory Support - older people (65+),Public Health-LSCTP Project,Services - Professional Fees - Consultants Fees,29/07/2019,5271235,"1,714.74",Redacted Section 40 FOI ACT
Health Adults and Community,Environmental and Regulatory Services,Community Safety (Safety Services),T H Enforcement Officers,Training Expenses - Staff External Training (UK Based),18/07/2019,5249810,750.00,Redacted Section 40 FOI ACT
Health Adults and Community,Adult Social Care,Physical Support - older people (65+),Generic Care Packages SE Team -PS,Social Care - Direct Payments,24/07/2019,5267874,"2,809.93",Redacted Section 40 FOI ACT
Health Adults and Community,Adult Social Care,Physical Support - older people (65+),Generic Care Packages SW Team - PS,Social Care - Nursing Care,31/07/2019,5271730,"3,764.29",Abbey Care Complex Ltd
Health Adults and Community,Public Health,Substance Misuse,"Contracted Services (Drug and Alcohol)		",Payments to Private Contractors - Pharmacies,29/07/2019,5258828,"2,193.30",ABC DRUGSTORES LTD
Health Adults and Community,Public Health,Substance Misuse,"Contracted Services (Drug and Alcohol)		",Payments to Private Contractors - Pharmacies,18/07/2019,5263197,"1,446.70",ABC DRUGSTORES LTD
Health Adults and Community,Adult Social Care,Physical Support - older people (65+),Generic Care Packages NW Team -PS,Social Care - Nursing Care,03/07/2019,5253993,"3,265.03",ACORN LODGE CARE HOME
Health Adults and Community,Adult Social Care,Physical Support - older people (65+),Generic Care Packages SE Team -PS,Social Care - Nursing Care,03/07/2019,5253988,"10,176.06",ACORN LODGE CARE HOME
Health Adults and Community,Adult Social Care,Physical Support - older people (65+),Generic Care Packages SE Team -PS,Social Care - Nursing Care,03/07/2019,5253996,"3,857.14",ACORN LODGE CARE HOME
Health Adults and Community,Adult Social Care,Physical Support - older people (65+),Generic Care Packages SE Team -PS,Income from Health - Nursing Care,03/07/2019,5253988,"-1,671.98",ACORN LODGE CARE HOME
Health Adults and Community,Adult Social Care,Physical Support - older people (65+),Generic Care Packages SE Team -PS,Income from Health - Nursing Care,03/07/2019,5253996,-677.83,ACORN LODGE CARE HOME
Health Adults and Community,Adult Social Care,Physical Support - older people (65+),Generic Care Packages SW Team - PS,Social Care - Residential Care,31/07/2019,5263492,"-3,882.44",ACTION ON HEARING LOSS
Health Adults and Community,Adult Social Care,Physical Support - older people (65+),Generic Care Packages SW Team - PS,Social Care - Residential Care,31/07/2019,5265005,"3,757.20",ACTION ON HEARING LOSS
Health Adults and Community,Adult Social Care,Sensory Support - older people (65+),Sight and Hearing Service,Social Care - Residential Care,31/07/2019,5271986,"3,946.48",ACTION ON HEARING LOSS
Health Adults and Community,Adult Social Care,Sensory Support - older people (65+),Sight and Hearing Service,Social Care - Residential Care,31/07/2019,5271987,"4,146.34",ACTION ON HEARING LOSS
Health Adults and Community,Adult Social Care,Physical Support - older people (65+),Generic Care Packages SW Team - PS,Social Care - Homecare,29/07/2019,5263331,"13,738.54",Active Assistance
Health Adults and Community,Adult Social Care,Physical Support - older people (65+),Generic Care Packages NE Team -PS,Social Care - Homecare,10/07/2019,5259671,515.16,AGE UK EAST LONDON
Health Adults and Community,Adult Social Care,Physical Support - older people (65+),Generic Care Packages NE Team -PS,Social Care - Homecare,17/07/2019,5263353,515.16,AGE UK EAST LONDON
Health Adults and Community,Adult Social Care,Physical Support - older people (65+),Generic Care Packages NE Team -PS,Social Care - Homecare,17/07/2019,5263394,488.64,AGE UK EAST LONDON
Health Adults and Community,Adult Social Care,Physical Support - older people (65+),Generic Care Packages NW Team -PS,Social Care - Homecare,10/07/2019,5259682,457.92,AGE UK EAST LONDON
Health Adults and Community,Adult Social Care,Physical Support - older people (65+),Generic Care Packages NW Team -PS,Social Care - Homecare,10/07/2019,5259691,515.16,AGE UK EAST LONDON
Health Adults and Community,Adult Social Care,Physical Support - older people (65+),Generic Care Packages NW Team -PS,Social Care - Homecare,10/07/2019,5259695,515.16,AGE UK EAST LONDON
Health Adults and Community,Adult Social Care,Physical Support - older people (65+),Generic Care Packages NW Team -PS,Social Care - Homecare,10/07/2019,5259699,"3,663.36",AGE UK EAST LONDON
Health Adults and Community,Adult Social Care,Physical Support - older people (65+),Generic Care Packages NW Team -PS,Social Care - Homecare,10/07/2019,5259700,457.92,AGE UK EAST LONDON
Health Adults and Community,Adult Social Care,Physical Support - older people (65+),Generic Care Packages NW Team -PS,Social Care - Homecare,10/07/2019,5259704,427.56,AGE UK EAST LONDON
Health Adults and Community,Adult Social Care,Physical Support - older people (65+),Generic Care Packages NW Team -PS,Social Care - Homecare,17/07/2019,5263338,536.15,AGE UK EAST LONDON
Health Adults and Community,Adult Social Care,Physical Support - older people (65+),Generic Care Packages NW Team -PS,Social Care - Homecare,17/07/2019,5263392,407.20,AGE UK EAST LONDON
Health Adults and Community,Adult Social Care,Physical Support - older people (65+),Generic Care Packages NW Team -PS,Social Care - Homecare,17/07/2019,5263396,488.64,AGE UK EAST LONDON
Health Adults and Community,Adult Social Care,Physical Support - older people (65+),Generic Care Packages NW Team -PS,Social Care - Homecare,24/07/2019,5267715,400.68,AGE UK EAST LONDON
Health Adults and Community,Adult Social Care,Physical Support - older people (65+),Generic Care Packages NW Team -PS,Social Care - Homecare,24/07/2019,5267725,515.16,AGE UK EAST LONDON
Health Adults and Community,Adult Social Care,Physical Support - older people (65+),Generic Care Packages NW Team -PS,Social Care - Homecare,24/07/2019,5267727,629.64,AGE UK EAST LONDON
Health Adults and Community,Adult Social Care,Physical Support - older people (65+),Generic Care Packages SE Team -PS,Social Care - Homecare,10/07/2019,5259674,325.76,AGE UK EAST LONDON
Health Adults and Community,Adult Social Care,Physical Support - older people (65+),Generic Care Packages SE Team -PS,Social Care - Homecare,10/07/2019,5259702,488.64,AGE UK EAST LONDON
Health Adults and Community,Adult Social Care,Physical Support - older people (65+),Generic Care Packages SE Team -PS,Social Care - Homecare,10/07/2019,5259709,274.86,AGE UK EAST LONDON
Health Adults and Community,Adult Social Care,Physical Support - older people (65+),Generic Care Packages SE Team -PS,Social Care - Homecare,17/07/2019,5263332,534.24,AGE UK EAST LONDON
Health Adults and Community,Adult Social Care,Physical Support - older people (65+),Generic Care Packages SE Team -PS,Social Care - Homecare,17/07/2019,5263363,496.80,AGE UK EAST LONDON
Health Adults and Community,Adult Social Care,Physical Support - older people (65+),Generic Care Packages SE Team -PS,Social Care - Homecare,17/07/2019,5263389,488.64,AGE UK EAST LONDON
Health Adults and Community,Adult Social Care,Physical Support - older people (65+),Generic Care Packages SE Team -PS,Social Care - Homecare,24/07/2019,5267728,457.92,AGE UK EAST LONDON
Health Adults and Community,Adult Social Care,Physical Support - older people (65+),Generic Care Packages SE Team -PS,Social Care - Homecare,24/07/2019,5267730,287.12,AGE UK EAST LONDON
Health Adults and Community,Adult Social Care,Physical Support - older people (65+),Generic Care Packages SE Team -PS,Social Care - Homecare,24/07/2019,5267747,457.92,AGE UK EAST LONDON
Health Adults and Community,Adult Social Care,Physical Support - older people (65+),Generic Care Packages SE Team -PS,Social Care - Homecare,26/07/2019,5270404,496.08,AGE UK EAST LONDON
Health Adults and Community,Adult Social Care,Physical Support - older people (65+),Generic Care Packages SE Team -PS,Social Care - Homecare,26/07/2019,5270925,267.12,AGE UK EAST LONDON
Health Adults and Community,Adult Social Care,Physical Support - older people (65+),Generic Care Packages SE Team -PS,Social Care - Homecare,26/07/2019,5270927,305.28,AGE UK EAST LONDON
Health Adults and Community,Adult Social Care,Physical Support - older people (65+),Generic Care Packages SW Team - PS,Social Care - Homecare,10/07/2019,5259690,286.20,AGE UK EAST LONDON
Health Adults and Community,Adult Social Care,Physical Support - older people (65+),Generic Care Packages SW Team - PS,Social Care - Homecare,24/07/2019,5268421,547.60,AGE UK EAST LONDON
Health Adults and Community,Adult Social Care,Mental Health Support - adults (18-64),"Generic Care Packages NW Team-MH						",Social Care - Homecare,17/07/2019,5263334,381.60,AGE UK EAST LONDON
Health Adults and Community,Adult Social Care,Mental Health Support - adults (18-64),"Generic Care Packages NW Team-MH						",Social Care - Homecare,17/07/2019,5263336,400.68,AGE UK EAST LONDON
Health Adults and Community,Adult Social Care,Mental Health Support - adults (18-64),"Generic Care Packages NW Team-MH						",Social Care - Homecare,17/07/2019,5263351,457.92,AGE UK EAST LONDON
Health Adults and Community,Adult Social Care,Mental Health Support - adults (18-64),"Generic Care Packages NW Team-MH						",Social Care - Homecare,17/07/2019,5263352,515.16,AGE UK EAST LONDON
Health Adults and Community,Adult Social Care,Mental Health Support - adults (18-64),"Generic Care Packages NW Team-MH						",Social Care - Homecare,17/07/2019,5263361,515.16,AGE UK EAST LONDON
Health Adults and Community,Adult Social Care,Mental Health Support - adults (18-64),"Generic Care Packages NW Team-MH						",Social Care - Homecare,17/07/2019,5263365,438.34,AGE UK EAST LONDON
Health Adults and Community,Adult Social Care,Mental Health Support - adults (18-64),"Generic Care Packages NW Team-MH						",Social Care - Homecare,24/07/2019,5267713,457.92,AGE UK EAST LONDON
Health Adults and Community,Adult Social Care,Mental Health Support - adults (18-64),"Generic Care Packages NW Team-MH						",Social Care - Homecare,24/07/2019,5267723,457.92,AGE UK EAST LONDON
Health Adults and Community,Adult Social Care,Mental Health Support - adults (18-64),"Generic Care Packages NW Team-MH						",Social Care - Homecare,24/07/2019,5267731,515.16,AGE UK EAST LONDON
Health Adults and Community,Adult Social Care,Mental Health Support - adults (18-64),"Generic Care Packages NW Team-MH						",Social Care - Homecare,24/07/2019,5267737,515.16,AGE UK EAST LONDON
Health Adults and Community,Adult Social Care,Mental Health Support - adults (18-64),"Generic Care Packages NW Team-MH						",Social Care - Homecare,26/07/2019,5270926,286.20,AGE UK EAST LONDON
Health Adults and Community,Adult Social Care,Mental Health Support - adults (18-64),"Generic Care Packages NW Team-MH						",Social Care - Homecare,26/07/2019,5270928,286.20,AGE UK EAST LONDON
Health Adults and Community,Adult Social Care,Mental Health Support - adults (18-64),"Generic Care Packages NW Team-MH						",Social Care - Homecare,26/07/2019,5270929,286.20,AGE UK EAST LONDON
Health Adults and Community,Adult Social Care,Mental Health Support - adults (18-64),"Generic Care Packages NW Team-MH						",Social Care - Homecare,26/07/2019,5270956,515.16,AGE UK EAST LONDON
Health Adults and Community,Adult Social Care,Mental Health Support - adults (18-64),"Generic Care Packages NW Team-MH						",Social Care - Homecare,26/07/2019,5270969,286.20,AGE UK EAST LONDON
Health Adults and Community,Adult Social Care,Learning Disabilty Support - older people (65+),CLDS - Health and Wellbeing,Social Care - Residential Care,31/07/2019,5271822,"9,949.71",AITCH CARE HOMES LONDON LTD
Health Adults and Community,Adult Social Care,Learning Disabilty Support - older people (65+),CLDS - Health and Wellbeing,Social Care - Residential Care,31/07/2019,5271836,"8,246.84",AITCH CARE HOMES LONDON LTD
Health Adults and Community,Adult Social Care,Mental Health Support - adults (18-64),Cmht Stepney / Wapping,Social Care - Residential Care,31/07/2019,5271927,"2,012.96",AK SUPPORTED HOUSING LTD
Health Adults and Community,Adult Social Care,Physical Support - older people (65+),Generic Care Packages NW Team -PS,Social Care - Nursing Care,31/07/2019,5272049,"5,285.90",Alexander Court
Health Adults and Community,Adult Social Care,Mental Health Support - adults (18-64),Cmht For Older People,Social Care - Nursing Care,31/07/2019,5272050,"3,462.66",Alexander Court
Health Adults and Community,Public Health,Substance Misuse,"Contracted Services (Drug and Alcohol)		",Payments to Private Contractors - Pharmacies,17/07/2019,5263175,761.40,Ali's Pharmacy
Health Adults and Community,Public Health,Substance Misuse,"Contracted Services (Drug and Alcohol)		",Payments to Private Contractors - Pharmacies,18/07/2019,5263176,278.20,Ali's Pharmacy
Health Adults and Community,Public Health,Substance Misuse,"Contracted Services (Drug and Alcohol)		",Payments to Private Contractors - Pharmacies,18/07/2019,5263177,652.10,Ali's Pharmacy
Health Adults and Community,Public Health,Physical Activity,Public Health � Healthy Middle Age & Older People.,Third Party Payments - Other Establishments,18/07/2019,5255115,845.12,Ali's Pharmacy
Health Adults and Community,Public Health,Substance Misuse,"Contracted Services (Drug and Alcohol)		",Payments to Private Contractors - Pharmacies,26/07/2019,5258994,335.70,ALLENS PHARMACY
Health Adults and Community,Public Health,Physical Activity,Public Health � Healthy Middle Age & Older People.,Third Party Payments - Other Establishments,08/07/2019,5255308,357.28,ALLENS PHARMACY
Health Adults and Community,Public Health,Physical Activity,Public Health � Healthy Middle Age & Older People.,Third Party Payments - Other Establishments,18/07/2019,5256480,601.08,ALLENS PHARMACY
Health Adults and Community,Adult Social Care,Learning Disabilty Support - older people (65+),CLDS - Health and Wellbeing,Social Care - Residential Care,10/07/2019,5259957,"8,356.71",Amber Care East Anglia Ltd
Health Adults and Community,Adult Social Care,Learning Disabilty Support - older people (65+),CLDS - Health and Wellbeing,Social Care - Residential Care,10/07/2019,5259958,"8,087.14",Amber Care East Anglia Ltd
Health Adults and Community,Adult Social Care,Physical Support - older people (65+),Generic Care Packages NE Team -PS,Social Care - Residential Care,10/07/2019,5259753,"-2,074.65",ANCHOR TRUST HOMES ACCOUNT
Health Adults and Community,Adult Social Care,Physical Support - older people (65+),Generic Care Packages NE Team -PS,Social Care - Residential Care,10/07/2019,5259756,"2,378.66",ANCHOR TRUST HOMES ACCOUNT
Health Adults and Community,Adult Social Care,Physical Support - older people (65+),Generic Care Packages NE Team -PS,Social Care - Residential Care,10/07/2019,5259800,824.60,ANCHOR TRUST HOMES ACCOUNT
Health Adults and Community,Adult Social Care,Physical Support - older people (65+),Generic Care Packages SE Team -PS,Social Care - Residential Care,10/07/2019,5259955,"3,365.71",ANCHOR TRUST WATERSIDE CARE HOME
Health Adults and Community,Adult Social Care,Physical Support - older people (65+),Generic Care Packages SE Team -PS,Social Care - Residential Care,10/07/2019,5259988,"-3,347.62",ANCHOR TRUST WATERSIDE CARE HOME
Health Adults and Community,Adult Social Care,Physical Support - older people (65+),Generic Care Packages SE Team -PS,Social Care - Residential Care,26/07/2019,5270402,"3,257.14",ANCHOR TRUST WATERSIDE CARE HOME
Health Adults and Community,Adult Social Care,Mental Health Support - adults (18-64),Cmht For Older People,Social Care - Supported Living,31/07/2019,5273687,"7,307.14",ANGEL SUPPORT LIVING (UK) LTD
Health Adults and Community,Adult Social Care,Mental Health Support - adults (18-64),Cmht Bow / Poplar North,Social Care - Supported Living,31/07/2019,5273709,"5,650.85",ANGEL SUPPORT LIVING LTD
Health Adults and Community,Adult Social Care,Mental Health Support - adults (18-64),Cmht Stepney / Wapping,Social Care - Supported Living,17/07/2019,5263488,"2,357.14",ANGEL SUPPORT LIVING LTD
Health Adults and Community,Adult Social Care,Mental Health Support - adults (18-64),Cmht Stepney / Wapping,Social Care - Supported Living,31/07/2019,5272051,"2,435.71",ANGEL SUPPORT LIVING LTD
Health Adults and Community,Adult Social Care,Learning Disabilty Support - older people (65+),CLDS - Health and Wellbeing,Social Care - Residential Care,31/07/2019,5271864,"3,270.32",ANGEL SUPPORT LIVING LTD
Health Adults and Community,Adult Social Care,Learning Disabilty Support - older people (65+),CLDS - Health and Wellbeing,Social Care - Residential Care,31/07/2019,5271872,"1,638.57",ANGEL SUPPORT LIVING LTD
Health Adults and Community,Adult Social Care,Mental Health Support - adults (18-64),Cmht Bow / Poplar North,Social Care - Supported Living,17/07/2019,5265071,"2,037.01",ANTRIM CARE SERVICES LIMITED
Health Adults and Community,Adult Social Care,Physical Support - older people (65+),Generic Care Packages NE Team -PS,Social Care - Homecare,10/07/2019,5260085,838.73,APASENTH
Health Adults and Community,Adult Social Care,Physical Support - older people (65+),Generic Care Packages NW Team -PS,Social Care - Homecare,10/07/2019,5260039,272.13,APASENTH
Health Adults and Community,Adult Social Care,Physical Support - older people (65+),Generic Care Packages NW Team -PS,Social Care - Homecare,10/07/2019,5260046,440.67,APASENTH
Health Adults and Community,Adult Social Care,Physical Support - older people (65+),Generic Care Packages NW Team -PS,Social Care - Homecare,10/07/2019,5260073,335.49,APASENTH
Health Adults and Community,Adult Social Care,Physical Support - older people (65+),Generic Care Packages NW Team -PS,Social Care - Homecare,10/07/2019,5260075,259.05,APASENTH
Health Adults and Community,Adult Social Care,Physical Support - older people (65+),Generic Care Packages NW Team -PS,Social Care - Homecare,10/07/2019,5260078,733.21,APASENTH
Health Adults and Community,Adult Social Care,Physical Support - older people (65+),Generic Care Packages NW Team -PS,Social Care - Homecare,10/07/2019,5260094,398.82,APASENTH
Health Adults and Community,Adult Social Care,Physical Support - older people (65+),Generic Care Packages NW Team -PS,Social Care - Homecare,10/07/2019,5260101,275.84,APASENTH
Health Adults and Community,Adult Social Care,Physical Support - older people (65+),Generic Care Packages NW Team -PS,Social Care - Homecare,10/07/2019,5260202,291.56,APASENTH
Health Adults and Community,Adult Social Care,Physical Support - older people (65+),Generic Care Packages NW Team -PS,Social Care - Homecare,10/07/2019,5260209,266.24,APASENTH
Health Adults and Community,Adult Social Care,Physical Support - older people (65+),Generic Care Packages NW Team -PS,Social Care - Homecare,10/07/2019,5260217,294.61,APASENTH
Health Adults and Community,Adult Social Care,Physical Support - older people (65+),Generic Care Packages NW Team -PS,Social Care - Homecare,10/07/2019,5260233,371.22,APASENTH
Health Adults and Community,Adult Social Care,Physical Support - older people (65+),Generic Care Packages NW Team -PS,Social Care - Homecare,10/07/2019,5260237,665.49,APASENTH
Health Adults and Community,Adult Social Care,Physical Support - older people (65+),Generic Care Packages NW Team -PS,Social Care - Homecare,10/07/2019,5260240,400.26,APASENTH
Health Adults and Community,Adult Social Care,Physical Support - older people (65+),Generic Care Packages NW Team -PS,Social Care - Homecare,10/07/2019,5260244,786.61,APASENTH
Health Adults and Community,Adult Social Care,Physical Support - older people (65+),Generic Care Packages NW Team -PS,Social Care - Homecare,10/07/2019,5260297,339.56,APASENTH
Health Adults and Community,Adult Social Care,Physical Support - older people (65+),Generic Care Packages NW Team -PS,Social Care - Homecare,10/07/2019,5260304,518.29,APASENTH
Health Adults and Community,Adult Social Care,Physical Support - older people (65+),Generic Care Packages NW Team -PS,Social Care - Homecare,10/07/2019,5260327,372.22,APASENTH
Health Adults and Community,Adult Social Care,Physical Support - older people (65+),Generic Care Packages NW Team -PS,Social Care - Homecare,10/07/2019,5260328,281.12,APASENTH
Health Adults and Community,Adult Social Care,Physical Support - older people (65+),Generic Care Packages NW Team -PS,Social Care - Homecare,10/07/2019,5260331,688.46,APASENTH
Health Adults and Community,Adult Social Care,Physical Support - older people (65+),Generic Care Packages NW Team -PS,Social Care - Homecare,10/07/2019,5260338,824.41,APASENTH
Health Adults and Community,Adult Social Care,Physical Support - older people (65+),Generic Care Packages NW Team -PS,Social Care - Homecare,10/07/2019,5260349,471.77,APASENTH
Health Adults and Community,Adult Social Care,Physical Support - older people (65+),Generic Care Packages NW Team -PS,Social Care - Homecare,10/07/2019,5260356,275.84,APASENTH
Health Adults and Community,Adult Social Care,Physical Support - older people (65+),Generic Care Packages NW Team -PS,Social Care - Homecare,10/07/2019,5260458,296.66,APASENTH
Health Adults and Community,Adult Social Care,Physical Support - older people (65+),Generic Care Packages NW Team -PS,Social Care - Homecare,10/07/2019,5260459,253.54,APASENTH
Health Adults and Community,Adult Social Care,Physical Support - older people (65+),Generic Care Packages NW Team -PS,Social Care - Homecare,10/07/2019,5260465,255.59,APASENTH
Health Adults and Community,Adult Social Care,Physical Support - older people (65+),Generic Care Packages NW Team -PS,Social Care - Homecare,10/07/2019,5260469,"1,418.48",APASENTH
Health Adults and Community,Adult Social Care,Physical Support - older people (65+),Generic Care Packages NW Team -PS,Social Care - Homecare,10/07/2019,5260472,281.13,APASENTH
Health Adults and Community,Adult Social Care,Physical Support - older people (65+),Generic Care Packages NW Team -PS,Social Care - Homecare,10/07/2019,5260494,643.99,APASENTH
Health Adults and Community,Adult Social Care,Physical Support - older people (65+),Generic Care Packages NW Team -PS,Social Care - Homecare,10/07/2019,5260497,299.75,APASENTH
Health Adults and Community,Adult Social Care,Physical Support - older people (65+),Generic Care Packages NW Team -PS,Social Care - Homecare,10/07/2019,5260503,750.65,APASENTH
Health Adults and Community,Adult Social Care,Physical Support - older people (65+),Generic Care Packages NW Team -PS,Social Care - Homecare,17/07/2019,5263545,267.03,APASENTH
Health Adults and Community,Adult Social Care,Physical Support - older people (65+),Generic Care Packages NW Team -PS,Social Care - Homecare,17/07/2019,5263552,411.86,APASENTH
Health Adults and Community,Adult Social Care,Physical Support - older people (65+),Generic Care Packages NW Team -PS,Social Care - Homecare,17/07/2019,5263577,343.64,APASENTH
Health Adults and Community,Adult Social Care,Physical Support - older people (65+),Generic Care Packages NW Team -PS,Social Care - Homecare,17/07/2019,5263582,729.96,APASENTH
Health Adults and Community,Adult Social Care,Physical Support - older people (65+),Generic Care Packages NW Team -PS,Social Care - Homecare,17/07/2019,5263709,267.02,APASENTH
Health Adults and Community,Adult Social Care,Physical Support - older people (65+),Generic Care Packages NW Team -PS,Social Care - Homecare,17/07/2019,5263713,"1,170.40",APASENTH
Health Adults and Community,Adult Social Care,Physical Support - older people (65+),Generic Care Packages NW Team -PS,Social Care - Homecare,17/07/2019,5263715,282.38,APASENTH
Health Adults and Community,Adult Social Care,Physical Support - older people (65+),Generic Care Packages NW Team -PS,Social Care - Homecare,17/07/2019,5263719,"1,039.28",APASENTH
Health Adults and Community,Adult Social Care,Physical Support - older people (65+),Generic Care Packages NW Team -PS,Social Care - Homecare,17/07/2019,5263722,278.27,APASENTH
Health Adults and Community,Adult Social Care,Physical Support - older people (65+),Generic Care Packages NW Team -PS,Social Care - Homecare,17/07/2019,5263742,653.40,APASENTH
Health Adults and Community,Adult Social Care,Physical Support - older people (65+),Generic Care Packages NW Team -PS,Social Care - Homecare,17/07/2019,5263745,364.95,APASENTH
Health Adults and Community,Adult Social Care,Physical Support - older people (65+),Generic Care Packages NW Team -PS,Social Care - Homecare,17/07/2019,5263750,723.26,APASENTH
Health Adults and Community,Adult Social Care,Physical Support - older people (65+),Generic Care Packages NW Team -PS,Social Care - Homecare,17/07/2019,5263770,"1,250.70",APASENTH
Health Adults and Community,Adult Social Care,Physical Support - older people (65+),Generic Care Packages NW Team -PS,Social Care - Homecare,17/07/2019,5263773,670.48,APASENTH
Health Adults and Community,Adult Social Care,Physical Support - older people (65+),Generic Care Packages NW Team -PS,Social Care - Homecare,17/07/2019,5263781,"1,403.58",APASENTH
Health Adults and Community,Adult Social Care,Physical Support - older people (65+),Generic Care Packages NW Team -PS,Social Care - Homecare,17/07/2019,5263786,701.61,APASENTH
Health Adults and Community,Adult Social Care,Physical Support - older people (65+),Generic Care Packages NW Team -PS,Social Care - Homecare,17/07/2019,5263793,891.59,APASENTH
Health Adults and Community,Adult Social Care,Physical Support - older people (65+),Generic Care Packages NW Team -PS,Social Care - Homecare,24/07/2019,5268483,324.86,APASENTH
Health Adults and Community,Adult Social Care,Physical Support - older people (65+),Generic Care Packages NW Team -PS,Social Care - Homecare,24/07/2019,5268489,426.79,APASENTH
Health Adults and Community,Adult Social Care,Physical Support - older people (65+),Generic Care Packages NW Team -PS,Social Care - Homecare,24/07/2019,5268511,334.24,APASENTH
Health Adults and Community,Adult Social Care,Physical Support - older people (65+),Generic Care Packages NW Team -PS,Social Care - Homecare,24/07/2019,5268513,270.09,APASENTH
Health Adults and Community,Adult Social Care,Physical Support - older people (65+),Generic Care Packages NW Team -PS,Social Care - Homecare,24/07/2019,5268516,634.13,APASENTH
Health Adults and Community,Adult Social Care,Physical Support - older people (65+),Generic Care Packages NW Team -PS,Social Care - Homecare,24/07/2019,5268523,836.47,APASENTH
Health Adults and Community,Adult Social Care,Physical Support - older people (65+),Generic Care Packages NW Team -PS,Social Care - Homecare,24/07/2019,5268534,265.04,APASENTH
Health Adults and Community,Adult Social Care,Physical Support - older people (65+),Generic Care Packages NW Team -PS,Social Care - Homecare,24/07/2019,5268642,255.59,APASENTH
Health Adults and Community,Adult Social Care,Physical Support - older people (65+),Generic Care Packages NW Team -PS,Social Care - Homecare,24/07/2019,5268648,"1,154.69",APASENTH
Health Adults and Community,Adult Social Care,Physical Support - older people (65+),Generic Care Packages NW Team -PS,Social Care - Homecare,24/07/2019,5268652,"1,182.52",APASENTH
Health Adults and Community,Adult Social Care,Physical Support - older people (65+),Generic Care Packages NW Team -PS,Social Care - Homecare,24/07/2019,5268655,286.09,APASENTH
Health Adults and Community,Adult Social Care,Physical Support - older people (65+),Generic Care Packages NW Team -PS,Social Care - Homecare,24/07/2019,5268671,725.55,APASENTH
Health Adults and Community,Adult Social Care,Physical Support - older people (65+),Generic Care Packages NW Team -PS,Social Care - Homecare,24/07/2019,5268675,635.82,APASENTH
Health Adults and Community,Adult Social Care,Physical Support - older people (65+),Generic Care Packages NW Team -PS,Social Care - Homecare,24/07/2019,5268678,317.55,APASENTH
Health Adults and Community,Adult Social Care,Physical Support - older people (65+),Generic Care Packages NW Team -PS,Social Care - Homecare,24/07/2019,5268682,750.99,APASENTH
Health Adults and Community,Adult Social Care,Physical Support - older people (65+),Generic Care Packages NW Team -PS,Social Care - Homecare,24/07/2019,5268703,583.73,APASENTH
Health Adults and Community,Adult Social Care,Physical Support - older people (65+),Generic Care Packages NW Team -PS,Social Care - Homecare,24/07/2019,5268709,253.16,APASENTH
Health Adults and Community,Adult Social Care,Physical Support - older people (65+),Generic Care Packages NW Team -PS,Social Care - Homecare,31/07/2019,5272142,349.99,APASENTH
Health Adults and Community,Adult Social Care,Physical Support - older people (65+),Generic Care Packages NW Team -PS,Social Care - Homecare,31/07/2019,5272148,460.28,APASENTH
Health Adults and Community,Adult Social Care,Physical Support - older people (65+),Generic Care Packages NW Team -PS,Social Care - Homecare,31/07/2019,5272174,746.11,APASENTH
Health Adults and Community,Adult Social Care,Physical Support - older people (65+),Generic Care Packages NW Team -PS,Social Care - Homecare,31/07/2019,5272197,275.84,APASENTH
Health Adults and Community,Adult Social Care,Physical Support - older people (65+),Generic Care Packages NW Team -PS,Social Care - Homecare,31/07/2019,5272299,254.37,APASENTH
Health Adults and Community,Adult Social Care,Physical Support - older people (65+),Generic Care Packages NW Team -PS,Social Care - Homecare,31/07/2019,5272300,263.17,APASENTH
Health Adults and Community,Adult Social Care,Physical Support - older people (65+),Generic Care Packages NW Team -PS,Social Care - Homecare,31/07/2019,5272301,271.31,APASENTH
Health Adults and Community,Adult Social Care,Physical Support - older people (65+),Generic Care Packages NW Team -PS,Social Care - Homecare,31/07/2019,5272304,"1,278.50",APASENTH
Health Adults and Community,Adult Social Care,Physical Support - older people (65+),Generic Care Packages NW Team -PS,Social Care - Homecare,31/07/2019,5272310,"1,007.63",APASENTH
Health Adults and Community,Adult Social Care,Physical Support - older people (65+),Generic Care Packages NW Team -PS,Social Care - Homecare,31/07/2019,5272313,275.87,APASENTH
Health Adults and Community,Adult Social Care,Physical Support - older people (65+),Generic Care Packages NW Team -PS,Social Care - Homecare,31/07/2019,5272329,250.70,APASENTH
Health Adults and Community,Adult Social Care,Physical Support - older people (65+),Generic Care Packages NW Team -PS,Social Care - Homecare,31/07/2019,5272333,590.86,APASENTH
Health Adults and Community,Adult Social Care,Physical Support - older people (65+),Generic Care Packages NW Team -PS,Social Care - Homecare,31/07/2019,5272339,710.57,APASENTH
Health Adults and Community,Adult Social Care,Physical Support - older people (65+),Generic Care Packages NW Team -PS,Social Care - Home Care (Short Term),17/07/2019,5263773,520.37,APASENTH
Health Adults and Community,Adult Social Care,Social Support - Substance Misuse Support,Generic Care Packages NW Team -SM,Social Care - Homecare,10/07/2019,5260496,254.18,APASENTH
Health Adults and Community,Adult Social Care,Physical Support - older people (65+),Generic Care Packages SE Team -PS,Social Care - Homecare,10/07/2019,5260064,371.41,APASENTH
Health Adults and Community,Adult Social Care,Physical Support - older people (65+),Generic Care Packages SE Team -PS,Social Care - Homecare,10/07/2019,5260138,357.76,APASENTH
Health Adults and Community,Adult Social Care,Physical Support - older people (65+),Generic Care Packages SE Team -PS,Social Care - Homecare,10/07/2019,5260320,376.11,APASENTH
Health Adults and Community,Adult Social Care,Physical Support - older people (65+),Generic Care Packages SE Team -PS,Social Care - Homecare,17/07/2019,5263569,385.90,APASENTH
Health Adults and Community,Adult Social Care,Physical Support - older people (65+),Generic Care Packages SE Team -PS,Social Care - Homecare,17/07/2019,5263645,374.90,APASENTH
Health Adults and Community,Adult Social Care,Physical Support - older people (65+),Generic Care Packages SE Team -PS,Social Care - Homecare,24/07/2019,5268504,346.51,APASENTH
Health Adults and Community,Adult Social Care,Physical Support - older people (65+),Generic Care Packages SE Team -PS,Social Care - Homecare,31/07/2019,5272163,276.81,APASENTH
Health Adults and Community,Adult Social Care,Support with Memory and Cognition - older people (65+),Generic Care Packages SE Team-SMC,Social Care - Homecare,10/07/2019,5260071,385.10,APASENTH
Health Adults and Community,Adult Social Care,Support with Memory and Cognition - older people (65+),Generic Care Packages SE Team-SMC,Social Care - Homecare,10/07/2019,5260325,398.78,APASENTH
Health Adults and Community,Adult Social Care,Support with Memory and Cognition - older people (65+),Generic Care Packages SE Team-SMC,Social Care - Homecare,17/07/2019,5263575,360.41,APASENTH
Health Adults and Community,Adult Social Care,Support with Memory and Cognition - older people (65+),Generic Care Packages SE Team-SMC,Social Care - Homecare,24/07/2019,5268509,446.37,APASENTH
Health Adults and Community,Adult Social Care,Support with Memory and Cognition - older people (65+),Generic Care Packages SE Team-SMC,Social Care - Homecare,31/07/2019,5272169,416.74,APASENTH
Health Adults and Community,Adult Social Care,Physical Support - older people (65+),Generic Care Packages SW Team - PS,Social Care - Homecare,10/07/2019,5260047,413.35,APASENTH
Health Adults and Community,Adult Social Care,Physical Support - older people (65+),Generic Care Packages SW Team - PS,Social Care - Homecare,10/07/2019,5260070,302.39,APASENTH
Health Adults and Community,Adult Social Care,Physical Support - older people (65+),Generic Care Packages SW Team - PS,Social Care - Homecare,10/07/2019,5260081,691.34,APASENTH
Health Adults and Community,Adult Social Care,Physical Support - older people (65+),Generic Care Packages SW Team - PS,Social Care - Homecare,10/07/2019,5260086,250.32,APASENTH
Health Adults and Community,Adult Social Care,Physical Support - older people (65+),Generic Care Packages SW Team - PS,Social Care - Homecare,10/07/2019,5260087,284.42,APASENTH
Health Adults and Community,Adult Social Care,Physical Support - older people (65+),Generic Care Packages SW Team - PS,Social Care - Homecare,10/07/2019,5260090,331.61,APASENTH
Health Adults and Community,Adult Social Care,Physical Support - older people (65+),Generic Care Packages SW Team - PS,Social Care - Homecare,10/07/2019,5260093,"1,769.49",APASENTH
Health Adults and Community,Adult Social Care,Physical Support - older people (65+),Generic Care Packages SW Team - PS,Social Care - Homecare,10/07/2019,5260096,"1,065.42",APASENTH
Health Adults and Community,Adult Social Care,Physical Support - older people (65+),Generic Care Packages SW Team - PS,Social Care - Homecare,10/07/2019,5260102,335.86,APASENTH
Health Adults and Community,Adult Social Care,Physical Support - older people (65+),Generic Care Packages SW Team - PS,Social Care - Homecare,10/07/2019,5260111,"1,014.47",APASENTH
Health Adults and Community,Adult Social Care,Physical Support - older people (65+),Generic Care Packages SW Team - PS,Social Care - Homecare,10/07/2019,5260113,668.95,APASENTH
Health Adults and Community,Adult Social Care,Physical Support - older people (65+),Generic Care Packages SW Team - PS,Social Care - Homecare,10/07/2019,5260114,267.02,APASENTH
Health Adults and Community,Adult Social Care,Physical Support - older people (65+),Generic Care Packages SW Team - PS,Social Care - Homecare,10/07/2019,5260117,325.28,APASENTH
Health Adults and Community,Adult Social Care,Physical Support - older people (65+),Generic Care Packages SW Team - PS,Social Care - Homecare,10/07/2019,5260118,320.40,APASENTH
Health Adults and Community,Adult Social Care,Physical Support - older people (65+),Generic Care Packages SW Team - PS,Social Care - Homecare,10/07/2019,5260119,"1,124.31",APASENTH
Health Adults and Community,Adult Social Care,Physical Support - older people (65+),Generic Care Packages SW Team - PS,Social Care - Homecare,10/07/2019,5260120,399.61,APASENTH
Health Adults and Community,Adult Social Care,Physical Support - older people (65+),Generic Care Packages SW Team - PS,Social Care - Homecare,10/07/2019,5260125,774.35,APASENTH
Health Adults and Community,Adult Social Care,Physical Support - older people (65+),Generic Care Packages SW Team - PS,Social Care - Homecare,10/07/2019,5260127,424.93,APASENTH
Health Adults and Community,Adult Social Care,Physical Support - older people (65+),Generic Care Packages SW Team - PS,Social Care - Homecare,10/07/2019,5260133,367.53,APASENTH
Health Adults and Community,Adult Social Care,Physical Support - older people (65+),Generic Care Packages SW Team - PS,Social Care - Homecare,10/07/2019,5260137,255.40,APASENTH
Health Adults and Community,Adult Social Care,Physical Support - older people (65+),Generic Care Packages SW Team - PS,Social Care - Homecare,10/07/2019,5260140,575.70,APASENTH
Health Adults and Community,Adult Social Care,Physical Support - older people (65+),Generic Care Packages SW Team - PS,Social Care - Homecare,10/07/2019,5260144,453.77,APASENTH
Health Adults and Community,Adult Social Care,Physical Support - older people (65+),Generic Care Packages SW Team - PS,Social Care - Homecare,10/07/2019,5260151,694.84,APASENTH
Health Adults and Community,Adult Social Care,Physical Support - older people (65+),Generic Care Packages SW Team - PS,Social Care - Homecare,10/07/2019,5260156,833.38,APASENTH
